Body Name,Body,Service Division Label,Service Division Code,Organisational Unit,Expenditure Category,Expenditure Code,CIPFA detailed expediture type,CIPFA detailed expediture code,Narrative,Date,Transaction number,Net Amount,Capital and Revenue,Supplier Name,Supplier ID,,
Chorley Borough Council,http://statistics.data.gov.uk/id/local-authority/30UE,Central Support Services,1009,Communities,Core Funding Grants,40133,Grants and Subscriptions,5031,Core Small Funding Grant,01/12/2021,0162916,500.00,Revenue,#Watch Us Grow,78296,,
Chorley Borough Council,http://statistics.data.gov.uk/id/local-authority/30UE,Central Support Services,1009,Policy & Governance,Grants to Voluntary Organisations,40124,Grants and Subscriptions,5031,Support for Community Provision with Substance Recovery enabling volunteers to provide sessions on training and resilience,22/12/2021,0163494,350.00,Revenue,#Watch Us Grow,78296,,
Chorley Borough Council,http://statistics.data.gov.uk/id/local-authority/30UE,Central Support Services,1009,Communities,Core Funding Grants,40133,Grants and Subscriptions,5031,Core Small Funding Grant,08/12/2021,0163157,360.00,Revenue,1st Clayton Brook Scout Group,65993,,
Chorley Borough Council,http://statistics.data.gov.uk/id/local-authority/30UE,Capital,Capital,Commercial & Property,Main Contractor,03007,Capital Expenditure,Capital,Line Markings for Buzz Bingo car park site,01/12/2021,0162904,"1,293.30",Capital,A1 Streamline Road Markings LTD,21544,,
Chorley Borough Council,http://statistics.data.gov.uk/id/local-authority/30UE,Central Support Services,1009,Communities,Miscellaneous Expenses,40200,Miscellaneous Expenses,5034,Provision of public access defibrillator at school and delivery of awareness training for local community,15/12/2021,0163043,"2,150.00",Revenue,Abbey Village Primary School,22239,,
Chorley Borough Council,http://statistics.data.gov.uk/id/local-authority/30UE,Central Support Services,1009,Customer & Digital,Telephones - Other,40085,Communication and Computing,5028,Adept Telecom - October 2021,15/12/2021,0161983,"1,806.72",Revenue,Adept Telecom PLC,77452,,
Chorley Borough Council,http://statistics.data.gov.uk/id/local-authority/30UE,Central Support Services,1009,Customer & Digital,Telephones - Other,40085,Communication and Computing,5028,Adept Telecom - September 2021,22/12/2021,0162540,"1,806.72",Revenue,Adept Telecom PLC,77452,,
Chorley Borough Council,http://statistics.data.gov.uk/id/local-authority/30UE,Central Support Services,1009,Customer & Digital,Telephones - Other,40085,Communication and Computing,5028,Adept Telecom - November 2021,22/12/2021,0163452,"1,806.72",Revenue,Adept Telecom PLC,77452,,
Chorley Borough Council,http://statistics.data.gov.uk/id/local-authority/30UE,Capital,Capital,Commercial & Property,Architects Fees,03022,Capital Expenditure,Capital,Tenant Liaison services for Unit 4 - Lucianos & Unit 4b (tbc),01/12/2021,0162883,"1,678.75",Capital,AEW Architects & Designers Ltd,66520,,
Chorley Borough Council,http://statistics.data.gov.uk/id/local-authority/30UE,Central Support Services,1009,Customer & Digital,Bank Charges,40151,Miscellaneous Expenses,5034,add ac fee,15/12/2021,0163085,10.00,Revenue,Allpay Net Ltd,17242,,
Chorley Borough Council,http://statistics.data.gov.uk/id/local-authority/30UE,Central Support Services,1009,Customer & Digital,Bank Charges,40151,Miscellaneous Expenses,5034,post off,15/12/2021,0163085,582.82,Revenue,Allpay Net Ltd,17242,,
Chorley Borough Council,http://statistics.data.gov.uk/id/local-authority/30UE,Central Support Services,1009,Customer & Digital,Bank Charges,40151,Miscellaneous Expenses,5034,paypoint,15/12/2021,0163085,196.84,Revenue,Allpay Net Ltd,17242,,
Chorley Borough Council,http://statistics.data.gov.uk/id/local-authority/30UE,Central Support Services,1009,Customer & Digital,Bank Charges,40151,Miscellaneous Expenses,5034,webcon,15/12/2021,0163085,46.00,Revenue,Allpay Net Ltd,17242,,
Chorley Borough Council,http://statistics.data.gov.uk/id/local-authority/30UE,Central Support Services,1009,Communities,External Contractor,40198,Miscellaneous Expenses,5034,Pest Control External Contractor Costs,15/12/2021,0162332,"4,630.36",Revenue,ALPHA PEST CONTROL LIMITED,18208,,
Chorley Borough Council,http://statistics.data.gov.uk/id/local-authority/30UE,Central Support Services,1009,Communities,External Contractor,40198,Miscellaneous Expenses,5034,Pest Control External Contractor Costs,22/12/2021,0162516,562.59,Revenue,ALPHA PEST CONTROL LIMITED,18208,,
Chorley Borough Council,http://statistics.data.gov.uk/id/local-authority/30UE,Central Support Services,1009,Communities,External Contractor,40198,Miscellaneous Expenses,5034,Providing Pest Control for Chorley Council,15/12/2021,0163070,"8,806.89",Revenue,ALPHA PEST CONTROL LIMITED,18208,,
Chorley Borough Council,http://statistics.data.gov.uk/id/local-authority/30UE,Central Support Services,1009,Commercial & Property,Planned Maintenance,20006,Repairs Maintenance & Alts,5005,Server room control panel batteries need replacing cost below is to replace and remove the old batteries for disposal,08/12/2021,0163049,330.00,Revenue,Amalgamated Ltd,78289,,
Chorley Borough Council,http://statistics.data.gov.uk/id/local-authority/30UE,Business Support,1095,Commercial & Property,Planned Maintenance,20006,Repairs Maintenance & Alts,5005,Market Walk Extension 106469 Preventative Maintenance Fire Alarm System Action 1 Completion Date: 20/10/21 @ 14:00:00,08/12/2021,0163050,250.00,Revenue,Amalgamated Ltd,78289,,
Chorley Borough Council,http://statistics.data.gov.uk/id/local-authority/30UE,Central Support Services,1009,Customer & Digital,Computer Software-Additional,40102,Communication and Computing,5028,Amazon AWS web services - 718576685325 Cloud charges April 2021,22/12/2021,0163704,"3,098.06",Revenue,Amazon Web Services EMEA SARL,80604,,
Chorley Borough Council,http://statistics.data.gov.uk/id/local-authority/30UE,Central Support Services,1009,Customer & Digital,Computer Software-Additional,40102,Communication and Computing,5028,Amazon AWS web services - 718576685325 Cloud charges November 2021,22/12/2021,0163717,"3,392.32",Revenue,Amazon Web Services EMEA SARL,80604,,
Chorley Borough Council,http://statistics.data.gov.uk/id/local-authority/30UE,Central Support Services,1009,Customer & Digital,Computer Software-Additional,40102,Communication and Computing,5028,Amazon AWS web services - 718576685325 Cloud charges May 2021,22/12/2021,0163760,"2,022.25",Revenue,Amazon Web Services EMEA SARL,80604,,
Chorley Borough Council,http://statistics.data.gov.uk/id/local-authority/30UE,Central Support Services,1009,Customer & Digital,Computer Software-Additional,40102,Communication and Computing,5028,Amazon AWS web services - 718576685325 Cloud charges October 2021,22/12/2021,0163761,"2,051.71",Revenue,Amazon Web Services EMEA SARL,80604,,
Chorley Borough Council,http://statistics.data.gov.uk/id/local-authority/30UE,Planning Policy,1092,Communities,Professional Fees,40063,Services,5027,Preston City Council and Chorley Council Housing Need and Demand Assessment,22/12/2021,0162985,"15,259.60",Revenue,Arc4,60831,,
Chorley Borough Council,http://statistics.data.gov.uk/id/local-authority/30UE,Service Management & Support,1009,Customer & Digital,Protective Clothing,40040,"Clothing, Uniforms and Laundry",5025,"x 2 Small, x 4 Medium, x 4 Large, Pulsar P206 Hi Viz Yellow over trouser; Breathable 300-denier PU-coated polyester",01/12/2021,0162852,277.80,Revenue,Arco Limited,17458,,
Chorley Borough Council,http://statistics.data.gov.uk/id/local-authority/30UE,Capital,Capital,Commercial & Property,Main Contractor,03007,Capital Expenditure,Capital,"Re Buzz Bingo, Chorley, Brick infill panels to boundary wall, Partially take down and rebuild brick wall at the top of the car park",22/12/2021,0163454,"3,109.84",Capital,Attain Construction NW Ltd,84176,,
Chorley Borough Council,http://statistics.data.gov.uk/id/local-authority/30UE,Service Management & Support,1009,Customer & Digital,Vehicles and Plant Maintenance,30045,Direct Transport Costs,5016,FL66 OKV MOT service 2 x new tyres LED marker sets,01/12/2021,0162515,426.86,Revenue,Autofit,78140,,
Chorley Borough Council,http://statistics.data.gov.uk/id/local-authority/30UE,Service Management & Support,1009,Customer & Digital,Vehicles and Plant Maintenance,30045,Direct Transport Costs,5016,mot,01/12/2021,0162515,54.45,Revenue,Autofit,78140,,
Chorley Borough Council,http://statistics.data.gov.uk/id/local-authority/30UE,Service Management & Support,1009,Customer & Digital,Vehicles and Plant Maintenance,30045,Direct Transport Costs,5016,NJ10 OTW MOT + Retest Service Welding Ball Joint Anti roll bar links D Bushes Read D bushes 3 x tyres Leaf Spring,01/12/2021,0162517,"1,236.69",Revenue,Autofit,78140,,
Chorley Borough Council,http://statistics.data.gov.uk/id/local-authority/30UE,Service Management & Support,1009,Customer & Digital,Vehicles and Plant Maintenance,30045,Direct Transport Costs,5016,mot,01/12/2021,0162517,99.00,Revenue,Autofit,78140,,
Chorley Borough Council,http://statistics.data.gov.uk/id/local-authority/30UE,Service Management & Support,1009,Customer & Digital,Supplies-Grounds Maintenance,40025,"Equipment, Furniture & Materia",5023,"Hot pressure washing/surface cleaning of paving including chewing gum removal, Cleaning of brickwork in various areas",01/12/2021,0162752,950.00,Revenue,AWAY SERVICES GROUP LTD T/AS BLAST AWAY,83471,,
Chorley Borough Council,http://statistics.data.gov.uk/id/local-authority/30UE,Central Support Services,1009,Commercial & Property,General Repairs - Reactive,20004,Repairs Maintenance & Alts,5005,"ADDRESS REDACTED MONTPELLIER GAS RANGE COOKER 90CM,STAINLESS STEEL 24 mth warranty",01/12/2021,0162934,749.17,Revenue,Aztec Domestics,16214,,
Chorley Borough Council,http://statistics.data.gov.uk/id/local-authority/30UE,Central Support Services,1009,Commercial & Property,General Repairs - Reactive,20004,Repairs Maintenance & Alts,5005,G7 work External redecoration of railings,01/12/2021,0162944,"4,176.00",Revenue,Bagnalls,77004,,
Chorley Borough Council,http://statistics.data.gov.uk/id/local-authority/30UE,Service Management & Support,1009,Customer & Digital,Hire Of Vehicles and Plant,30028,Contrct Hire & Operating Lease,5018,As per submission to ITT Invitation to Tender for the contract hire with servicing and maintenance of Grounds Machinery,01/12/2021,0162199,"1,242.40",Revenue,Balmers Garden Machinery,17075,,
Chorley Borough Council,http://statistics.data.gov.uk/id/local-authority/30UE,Service Management & Support,1009,Customer & Digital,Hire Of Vehicles and Plant,30028,Contrct Hire & Operating Lease,5018,As per submission to ITT Invitation to Tender for the contract hire with servicing and maintenance of Grounds Machinery,01/12/2021,0162816,"1,242.40",Revenue,Balmers Garden Machinery,17075,,
Chorley Borough Council,http://statistics.data.gov.uk/id/local-authority/30UE,Capital,Capital,Communities,Main Contractor,03007,Capital Expenditure,Capital,"Crataegus monogyna (Hawthorn), Corylus Avellana (Hazel), Acer campestre (field maple) - 40-60cm bare root whips",01/12/2021,0163029,"2,221.44",Capital,Bannister Hall Ltd,22515,,
Chorley Borough Council,http://statistics.data.gov.uk/id/local-authority/30UE,Central Support Services,1009,Commercial & Property,Legal Fees,40171,Miscellaneous Expenses,5034,"""Legal advice on restrictive covenants affecting council owned land near Alker Lane Euxton""",01/12/2021,0162885,"1,600.00",Revenue,Barry Denyer-Green,78290,,
Chorley Borough Council,http://statistics.data.gov.uk/id/local-authority/30UE,Central Support Services,1009,Commercial & Property,Planned Maintenance,20006,Repairs Maintenance & Alts,5005,Bengal St. For the Bi-Annual Maintenance of 2 X Vehicle Barriers,01/12/2021,0162940,295.00,Revenue,Boundary Gate and Barrier Contracts Ltd,78225,,
Chorley Borough Council,http://statistics.data.gov.uk/id/local-authority/30UE,Business Support,1095,Commercial & Property,Electricity,20013,Energy Costs,5006,29/10 to 28/11/21 13 market walk,22/12/2021,0163656,390.77,Revenue,British Gas Business,22242,,
Chorley Borough Council,http://statistics.data.gov.uk/id/local-authority/30UE,Capital,Capital,Commercial & Property,Other Contractor,03012,Capital Expenditure,Capital,Strawberry Fields DOP. Sub-division Second Floor East Wing. Following successful win of the tender,01/12/2021,0162812,"35,721.55",Capital,Bryan Lee Building Contractors Ltd,78160,,
Chorley Borough Council,http://statistics.data.gov.uk/id/local-authority/30UE,Central Support Services,1009,Commercial & Property,General Repairs - Reactive,20004,Repairs Maintenance & Alts,5005,cannon repairs in courtyard before G7 sumitt,01/12/2021,0162943,"2,280.00",Revenue,Bryan Lee Building Contractors Ltd,78160,,
Chorley Borough Council,http://statistics.data.gov.uk/id/local-authority/30UE,Service Management & Support,1009,Customer & Digital,Supplies-Grounds Maintenance,40025,"Equipment, Furniture & Materia",5023,"Bengal St Depot - Empty yard catch pits each month, Empty yard interceptor every 3 months, Rowan Croft Pond",01/12/2021,0162463,"1,110.00",Revenue,C J Lyon,16579,,
Chorley Borough Council,http://statistics.data.gov.uk/id/local-authority/30UE,Service Management & Support,1009,Customer & Digital,Vehicles and Plant Maintenance,30045,Direct Transport Costs,5016,As per WIP No. 26352 Replaced all brake pads YM70 GXB,08/12/2021,0163197,632.04,Revenue,C P Davidson & Sons Ltd,21093,,
Chorley Borough Council,http://statistics.data.gov.uk/id/local-authority/30UE,Service Management & Support,1009,Customer & Digital,Gas,20014,Energy Costs,5006,bulk propane,01/12/2021,0162876,"1,484.03",Revenue,Calor Gas Limited,22104,,
Chorley Borough Council,http://statistics.data.gov.uk/id/local-authority/30UE,Building Control,1090,Customer & Digital,Agency Staff,13000,Direct Employee Expenses,5001,Agency fees for NAME REDACTED,08/12/2021,0162953,"1,755.00",Revenue,Carrington West Ltd,83124,,
Chorley Borough Council,http://statistics.data.gov.uk/id/local-authority/30UE,Building Control,1090,Customer & Digital,Agency Staff,13000,Direct Employee Expenses,5001,Agency fees for NAME REDACTED,15/12/2021,0163472,"1,716.00",Revenue,Carrington West Ltd,83124,,
Chorley Borough Council,http://statistics.data.gov.uk/id/local-authority/30UE,Building Control,1090,Customer & Digital,Agency Staff,13000,Direct Employee Expenses,5001,Agency fees for NAME REDACTED,15/12/2021,0163473,"1,729.00",Revenue,Carrington West Ltd,83124,,
Chorley Borough Council,http://statistics.data.gov.uk/id/local-authority/30UE,Building Control,1090,Customer & Digital,Agency Staff,13000,Direct Employee Expenses,5001,Agency fees for NAME REDACTED,22/12/2021,0163719,"1,118.00",Revenue,Carrington West Ltd,83124,,
Chorley Borough Council,http://statistics.data.gov.uk/id/local-authority/30UE,Central Support Services,1009,Policy & Governance,Agency Staff,13000,Direct Employee Expenses,5001,NAME REDACTED for the period 05/10/2021 - 28/10/2021,22/12/2021,0162282,"1,650.00",Revenue,Castlefield Recruitment Limited,80454,,
Chorley Borough Council,http://statistics.data.gov.uk/id/local-authority/30UE,Central Support Services,1009,Policy & Governance,Agency Staff,13000,Direct Employee Expenses,5001,NAME REDACTED,22/12/2021,0162453,"2,100.00",Revenue,Castlefield Recruitment Limited,80454,,
Chorley Borough Council,http://statistics.data.gov.uk/id/local-authority/30UE,Central Support Services,1009,Policy & Governance,Agency Staff,13000,Direct Employee Expenses,5001,NAME REDACTED,22/12/2021,0162727,"1,680.00",Revenue,Castlefield Recruitment Limited,80454,,
Chorley Borough Council,http://statistics.data.gov.uk/id/local-authority/30UE,Central Support Services,1009,Policy & Governance,Agency Staff,13000,Direct Employee Expenses,5001,NAME REDACTED,15/12/2021,0163078,"2,100.00",Revenue,Castlefield Recruitment Limited,80454,,
Chorley Borough Council,http://statistics.data.gov.uk/id/local-authority/30UE,Central Support Services,1009,Policy & Governance,Agency Staff,13000,Direct Employee Expenses,5001,NAME REDACTED,15/12/2021,0163079,"2,100.00",Revenue,Castlefield Recruitment Limited,80454,,
Chorley Borough Council,http://statistics.data.gov.uk/id/local-authority/30UE,Corporate Management,1008,Policy & Governance,Other Contributions,40145,Grants and Subscriptions,5031,To provide community transports services in Chorley throughout the pandemic. Trips for essential shopping and medical appointments.,22/12/2021,0163466,"10,000.00",Revenue,Central Lancs Dial-A-Ride Ltd,16617,,
Chorley Borough Council,http://statistics.data.gov.uk/id/local-authority/30UE,Central Support Services,1009,Policy & Governance,Miscellaneous Expenses,40200,Miscellaneous Expenses,5034,"PO for second half of costs for Mayflower 400 Willow Sculpture, including metal sculpture supports and ground fixing brackets",15/12/2021,0163489,"2,150.00",Revenue,Cherry Chung,80771,,
Chorley Borough Council,http://statistics.data.gov.uk/id/local-authority/30UE,Central Support Services,1009,Policy & Governance,Miscellaneous Expenses,40200,Miscellaneous Expenses,5034,First half of the total fee for the creation of a willow sculpture for the Mayflower Borough Garden,15/12/2021,0163499,"1,500.00",Revenue,Cherry Chung,80771,,
Chorley Borough Council,http://statistics.data.gov.uk/id/local-authority/30UE,Parking Services,1066,Commercial & Property,External Contractors,50008,Private Contractors,5042,"Notice Processing Services, Automated Telephone and Internet Payments, Internet Evidence and Submission Services",22/12/2021,0162411,253.17,Revenue,Chipside Ltd,22063,,
Chorley Borough Council,http://statistics.data.gov.uk/id/local-authority/30UE,Parking Services,1066,Commercial & Property,External Contractors,50008,Private Contractors,5042,"Processing 075, 076, 077, 079, 080, 085, 086, MIPERMIT FEEES & CHARGE, ELECPAYBANKFEE, Processing 010, 011",22/12/2021,0162411,93.15,Revenue,Chipside Ltd,22063,,
Chorley Borough Council,http://statistics.data.gov.uk/id/local-authority/30UE,Parking Services,1066,Commercial & Property,External Contractors,50008,Private Contractors,5042,"Notice Processing Services, Automated Telephone and Internet Payments, Internet Evidence and Submission Services",22/12/2021,0162686,302.64,Revenue,Chipside Ltd,22063,,
Chorley Borough Council,http://statistics.data.gov.uk/id/local-authority/30UE,Parking Services,1066,Commercial & Property,External Contractors,50008,Private Contractors,5042,"Processing 075, 076, 077, 079, 080, 085, 086, MIPERMIT FEEES & CHARGE, ELECPAYBANKFEE, Processing 010, 011",22/12/2021,0162686,35.19,Revenue,Chipside Ltd,22063,,
Chorley Borough Council,http://statistics.data.gov.uk/id/local-authority/30UE,Parking Services,1066,Commercial & Property,External Contractors,50008,Private Contractors,5042,"Processing 075, 076, 077, 079, 080, 085, 086, MIPERMIT FEEES & CHARGE, ELECPAYBANKFEE, Processing 010, 011",22/12/2021,0162690,502.40,Revenue,Chipside Ltd,22063,,
Chorley Borough Council,http://statistics.data.gov.uk/id/local-authority/30UE,Parking Services,1066,Commercial & Property,External Contractors,50008,Private Contractors,5042,"Processing 075, 076, 077, 079, 080, 085, 086, MIPERMIT FEEES & CHARGE, ELECPAYBANKFEE, Processing 010, 011",22/12/2021,0163552,455.87,Revenue,Chipside Ltd,22063,,
Chorley Borough Council,http://statistics.data.gov.uk/id/local-authority/30UE,Tourism,1039,Policy & Governance,Miscellaneous Expenses,40200,Miscellaneous Expenses,5034,flower show,08/12/2021,0163318,600.00,Revenue,Chorley & District Gardening Society,21287,,
Chorley Borough Council,http://statistics.data.gov.uk/id/local-authority/30UE,Central Support Services,1009,Communities,Core Funding Grants,40133,Grants and Subscriptions,5031,Core Small Funding Grant,08/12/2021,0163142,500.00,Revenue,Chorley & Leyland MS Society,77561,,
Chorley Borough Council,http://statistics.data.gov.uk/id/local-authority/30UE,Central Support Services,1009,Communities,Core Funding Grants,40133,Grants and Subscriptions,5031,Core Small Funding Grant,01/12/2021,0162915,300.00,Revenue,Chorley Amatetur Boxing Club,22332,,
Chorley Borough Council,http://statistics.data.gov.uk/id/local-authority/30UE,Regulatory Services,1048,Customer & Digital,Taxi Testing & Vehicle Safety Report,40234,Services,5027,mot,01/12/2021,0162866,"1,042.15",Revenue,Chorley Autocare Ltd,17110,,
Chorley Borough Council,http://statistics.data.gov.uk/id/local-authority/30UE,Regulatory Services,1048,Customer & Digital,Taxi Testing & Vehicle Safety Report,40234,Services,5027,taxi test,01/12/2021,0162866,162.45,Revenue,Chorley Autocare Ltd,17110,,
Chorley Borough Council,http://statistics.data.gov.uk/id/local-authority/30UE,Central Support Services,1009,Communities,Core Funding Grants,40133,Grants and Subscriptions,5031,comm grant,15/12/2021,0163540,280.00,Revenue,Chorley FC Community Foundation,84109,,
Chorley Borough Council,http://statistics.data.gov.uk/id/local-authority/30UE,Democratic Represent and  Mgnt,1007,Policy & Governance,Grants To Other Organisations,40127,Grants and Subscriptions,5031,llr rant,08/12/2021,0162677,300.00,Revenue,Chorley Hedgehog Rescue CIC,56626,,
Chorley Borough Council,http://statistics.data.gov.uk/id/local-authority/30UE,Central Support Services,1009,Communities,Core Funding Grants,40133,Grants and Subscriptions,5031,Core Small Funding Grant,08/12/2021,0163144,250.00,Revenue,Chorley In Bloom group,70247,,
Chorley Borough Council,http://statistics.data.gov.uk/id/local-authority/30UE,Central Support Services,1009,Communities,Core Funding Grants,40133,Grants and Subscriptions,5031,Core Small Funding Grant,08/12/2021,0163146,360.00,Revenue,Chorley Runners,78271,,
Chorley Borough Council,http://statistics.data.gov.uk/id/local-authority/30UE,Central Support Services,1009,Communities,Core Funding Grants,40133,Grants and Subscriptions,5031,Core Small Funding Grant,08/12/2021,0163148,300.00,Revenue,Chorley Safe Space,77559,,
Chorley Borough Council,http://statistics.data.gov.uk/id/local-authority/30UE,Central Support Services,1009,Communities,Core Funding Grants,40133,Grants and Subscriptions,5031,Core Small Funding Grant,08/12/2021,0163153,500.00,Revenue,Chorley United Reformed Church,77003,,
Chorley Borough Council,http://statistics.data.gov.uk/id/local-authority/30UE,Central Support Services,1009,Communities,Core Funding Grants,40133,Grants and Subscriptions,5031,Core Small Funding Grant,08/12/2021,0163163,445.00,Revenue,Chorley United Reformed Church,77003,,
Chorley Borough Council,http://statistics.data.gov.uk/id/local-authority/30UE,Central Support Services,1009,Communities,Children's Activities,40188,Miscellaneous Expenses,5034,Lancashire Breaktime Respite Care by Inspire Youth Zone Summer Holiday 2021,15/12/2021,0163353,"4,462.40",Revenue,Chorley Youth Zone,77339,,
Chorley Borough Council,http://statistics.data.gov.uk/id/local-authority/30UE,Central Support Services,1009,Communities,Children's Activities,40188,Miscellaneous Expenses,5034,Lancashire Breaktime Respite Care by Inspire Youth Zone July 2021 Term Time,15/12/2021,0163354,"1,054.86",Revenue,Chorley Youth Zone,77339,,
Chorley Borough Council,http://statistics.data.gov.uk/id/local-authority/30UE,Central Support Services,1009,Communities,Children's Activities,40188,Miscellaneous Expenses,5034,Lancashire Breaktime Respite Care by Inspire Youth Zone June 2021 Term Time,15/12/2021,0163355,"1,562.48",Revenue,Chorley Youth Zone,77339,,
Chorley Borough Council,http://statistics.data.gov.uk/id/local-authority/30UE,Community Development,1097,Communities,Citizens Advice Bureau,40125,Grants and Subscriptions,5031,Core Funding Grant for provision of advice services - Third payment subject to successful completion of 2nd Quarter monitoring,08/12/2021,0163058,"18,934.00",Revenue,Citizens Advice Lancashire,17035,,
Chorley Borough Council,http://statistics.data.gov.uk/id/local-authority/30UE,Economic Development,1096,Commercial & Property,Christmas Lights,40179,Miscellaneous Expenses,5034,Leisure Centre (separate Invoice required) 6m cone Tree (red)/RGB 100W Floods (staging costs to NAME REDACTED),01/12/2021,0162905,"4,610.00",Revenue,City Illuminations Ltd,77388,,
Chorley Borough Council,http://statistics.data.gov.uk/id/local-authority/30UE,Central Support Services,1009,Commercial & Property,Professional Fees,40063,Services,5027,BREEAm Design Stage Assessment & Submission Alker Lane,08/12/2021,0163046,"3,570.00",Revenue,Complete Sustainability Solutions,80558,,
Chorley Borough Council,http://statistics.data.gov.uk/id/local-authority/30UE,Central Support Services,1009,Customer & Digital,Items For Resale,40027,"Equipment, Furniture & Materia",5023,240L wheeled bins Colour  : Green  with Chorley logo in white Quantity : 560 (print plates included),01/12/2021,0159208,"9,520.00",Revenue,Contenur Uk Ltd,82451,,
Chorley Borough Council,http://statistics.data.gov.uk/id/local-authority/30UE,Recreation & Sport,1037,Commercial & Property,General Repairs - Reactive,20004,Repairs Maintenance & Alts,5005,"cglc inv66797 TF No's 13128, 13094, 13089, 13090, 13067, 12949, 12892",01/12/2021,0160981,"1,217.95",Revenue,Corlett Electrical Eng Co Ltd,16271,,
Chorley Borough Council,http://statistics.data.gov.uk/id/local-authority/30UE,Recreation & Sport,1037,Commercial & Property,General Repairs - Reactive,20004,Repairs Maintenance & Alts,5005,"aslc inv66798 TF Nos  13154, 13129, 13109, 13081, 12960, 12959",01/12/2021,0160983,"1,088.49",Revenue,Corlett Electrical Eng Co Ltd,16271,,
Chorley Borough Council,http://statistics.data.gov.uk/id/local-authority/30UE,Central Support Services,1009,Commercial & Property,General Repairs - Reactive,20004,Repairs Maintenance & Alts,5005,Primrose Gardens  - reactive repair works,08/12/2021,0162523,418.30,Revenue,Corlett Electrical Eng Co Ltd,16271,,
Chorley Borough Council,http://statistics.data.gov.uk/id/local-authority/30UE,Central Support Services,1009,Commercial & Property,General Repairs - Reactive,20004,Repairs Maintenance & Alts,5005,Westway sports Hub reactive repairs,15/12/2021,0162687,730.77,Revenue,Corlett Electrical Eng Co Ltd,16271,,
Chorley Borough Council,http://statistics.data.gov.uk/id/local-authority/30UE,Central Support Services,1009,Commercial & Property,General Repairs - Reactive,20004,Repairs Maintenance & Alts,5005,All Seasons - reactive blanket,15/12/2021,0162932,316.20,Revenue,Corlett Electrical Eng Co Ltd,16271,,
Chorley Borough Council,http://statistics.data.gov.uk/id/local-authority/30UE,Central Support Services,1009,Commercial & Property,General Repairs - Reactive,20004,Repairs Maintenance & Alts,5005,G7 lighting installation works at Astley and site attendance to provide electrical cover during the summit itself,01/12/2021,0162950,"1,298.16",Revenue,Corlett Electrical Eng Co Ltd,16271,,
Chorley Borough Council,http://statistics.data.gov.uk/id/local-authority/30UE,Central Support Services,1009,Commercial & Property,Planned Maintenance,20006,Repairs Maintenance & Alts,5005,"Clayton Green Leisure Centre � LED Lighting in the Gym, replace existing 600x600 light fittings, installed suspended ceiling",15/12/2021,0162978,"1,196.00",Revenue,Corlett Electrical Eng Co Ltd,16271,,
Chorley Borough Council,http://statistics.data.gov.uk/id/local-authority/30UE,Central Support Services,1009,Commercial & Property,General Repairs - Reactive,20004,Repairs Maintenance & Alts,5005,All Seasons - reactive blanket,15/12/2021,0162984,388.85,Revenue,Corlett Electrical Eng Co Ltd,16271,,
Chorley Borough Council,http://statistics.data.gov.uk/id/local-authority/30UE,Central Support Services,1009,Commercial & Property,General Repairs - Reactive,20004,Repairs Maintenance & Alts,5005,Westway sports Hub reactive repairs,15/12/2021,0163104,306.82,Revenue,Corlett Electrical Eng Co Ltd,16271,,
Chorley Borough Council,http://statistics.data.gov.uk/id/local-authority/30UE,Business Support,1095,Commercial & Property,General Repairs - Reactive,20004,Repairs Maintenance & Alts,5005,Market Walk - reactive repair works,15/12/2021,0163105,563.86,Revenue,Corlett Electrical Eng Co Ltd,16271,,
Chorley Borough Council,http://statistics.data.gov.uk/id/local-authority/30UE,Business Support,1095,Commercial & Property,Gas,20014,Energy Costs,5006,Oct-21 to Nov-21,01/12/2021,0162918,"1,601.97",Revenue,Corona Energy Retail 2 Ltd,67249,,
Chorley Borough Council,http://statistics.data.gov.uk/id/local-authority/30UE,Central Support Services,1009,Commercial & Property,Gas,20014,Energy Costs,5006,oct-nov21,01/12/2021,0162997,920.45,Revenue,Corona Energy Retail 2 Ltd,67249,,
Chorley Borough Council,http://statistics.data.gov.uk/id/local-authority/30UE,Central Support Services,1009,Commercial & Property,Gas,20014,Energy Costs,5006,oct-nov21,01/12/2021,0162998,605.94,Revenue,Corona Energy Retail 2 Ltd,67249,,
Chorley Borough Council,http://statistics.data.gov.uk/id/local-authority/30UE,Open Spaces,1038,Commercial & Property,Gas,20014,Energy Costs,5006,oct-nov21,01/12/2021,0162999,729.75,Revenue,Corona Energy Retail 2 Ltd,67249,,
Chorley Borough Council,http://statistics.data.gov.uk/id/local-authority/30UE,Recreation & Sport,1037,Commercial & Property,Gas,20014,Energy Costs,5006,oct-nov,01/12/2021,0163002,451.63,Revenue,Corona Energy Retail 2 Ltd,67249,,
Chorley Borough Council,http://statistics.data.gov.uk/id/local-authority/30UE,Homelessness,1075,Commercial & Property,Gas,20014,Energy Costs,5006,oct-nov21,01/12/2021,0163003,765.25,Revenue,Corona Energy Retail 2 Ltd,67249,,
Chorley Borough Council,http://statistics.data.gov.uk/id/local-authority/30UE,Recreation & Sport,1037,Commercial & Property,Gas,20014,Energy Costs,5006,oct - nov 21,01/12/2021,0163008,808.14,Revenue,Corona Energy Retail 2 Ltd,67249,,
Chorley Borough Council,http://statistics.data.gov.uk/id/local-authority/30UE,Recreation & Sport,1037,Commercial & Property,Gas,20014,Energy Costs,5006,oct to nov21,01/12/2021,0163009,"1,718.74",Revenue,Corona Energy Retail 2 Ltd,67249,,
Chorley Borough Council,http://statistics.data.gov.uk/id/local-authority/30UE,Recreation & Sport,1037,Commercial & Property,Gas,20014,Energy Costs,5006,oct - nov 21,01/12/2021,0163010,"5,735.61",Revenue,Corona Energy Retail 2 Ltd,67249,,
Chorley Borough Council,http://statistics.data.gov.uk/id/local-authority/30UE,Homelessness,1075,Commercial & Property,Gas,20014,Energy Costs,5006,jul-aug21,08/12/2021,0163235,340.30,Revenue,Corona Energy Retail 2 Ltd,67249,,
Chorley Borough Council,http://statistics.data.gov.uk/id/local-authority/30UE,Recreation & Sport,1037,Commercial & Property,Gas,20014,Energy Costs,5006,jul-aug21,08/12/2021,0163236,274.66,Revenue,Corona Energy Retail 2 Ltd,67249,,
Chorley Borough Council,http://statistics.data.gov.uk/id/local-authority/30UE,Business Support,1095,Commercial & Property,Gas,20014,Energy Costs,5006,jul-aug21,08/12/2021,0163245,"1,016.36",Revenue,Corona Energy Retail 2 Ltd,67249,,
Chorley Borough Council,http://statistics.data.gov.uk/id/local-authority/30UE,Recreation & Sport,1037,Commercial & Property,Gas,20014,Energy Costs,5006,jul-aug21,08/12/2021,0163246,416.18,Revenue,Corona Energy Retail 2 Ltd,67249,,
Chorley Borough Council,http://statistics.data.gov.uk/id/local-authority/30UE,Recreation & Sport,1037,Commercial & Property,Gas,20014,Energy Costs,5006,jun-jul21,08/12/2021,0163247,917.03,Revenue,Corona Energy Retail 2 Ltd,67249,,
Chorley Borough Council,http://statistics.data.gov.uk/id/local-authority/30UE,Recreation & Sport,1037,Commercial & Property,Gas,20014,Energy Costs,5006,jul-aug21,08/12/2021,0163248,795.93,Revenue,Corona Energy Retail 2 Ltd,67249,,
Chorley Borough Council,http://statistics.data.gov.uk/id/local-authority/30UE,Recreation & Sport,1037,Commercial & Property,Gas,20014,Energy Costs,5006,jul-aug21,08/12/2021,0163250,"3,698.86",Revenue,Corona Energy Retail 2 Ltd,67249,,
Chorley Borough Council,http://statistics.data.gov.uk/id/local-authority/30UE,Recreation & Sport,1037,Commercial & Property,Gas,20014,Energy Costs,5006,nov-dec21,22/12/2021,0163780,"6,752.08",Revenue,Corona Energy Retail 2 Ltd,67249,,
Chorley Borough Council,http://statistics.data.gov.uk/id/local-authority/30UE,Recreation & Sport,1037,Commercial & Property,Gas,20014,Energy Costs,5006,nov-dec21,22/12/2021,0163782,"1,828.08",Revenue,Corona Energy Retail 2 Ltd,67249,,
Chorley Borough Council,http://statistics.data.gov.uk/id/local-authority/30UE,Recreation & Sport,1037,Commercial & Property,Gas,20014,Energy Costs,5006,nov-dec21,22/12/2021,0163783,958.34,Revenue,Corona Energy Retail 2 Ltd,67249,,
Chorley Borough Council,http://statistics.data.gov.uk/id/local-authority/30UE,Business Support,1095,Commercial & Property,Gas,20014,Energy Costs,5006,nov-dec21,22/12/2021,0163784,"1,942.87",Revenue,Corona Energy Retail 2 Ltd,67249,,
Chorley Borough Council,http://statistics.data.gov.uk/id/local-authority/30UE,Central Support Services,1009,Commercial & Property,General Subscriptions,40146,Grants and Subscriptions,5031,Annual Subscription to online property valuation resource Nov 21,22/12/2021,0163619,"3,538.38",Revenue,CoStar UK Limited,67985,,
Chorley Borough Council,http://statistics.data.gov.uk/id/local-authority/30UE,Central Support Services,1009,Communities,Miscellaneous Expenses,40200,Miscellaneous Expenses,5034,Serve and Evict GRT Encampment at Queens Road Car Park 15/11/21,01/12/2021,0162853,"1,550.00",Revenue,COURT ENFORCEMENT SPECIALISTS LTD,77924,,
Chorley Borough Council,http://statistics.data.gov.uk/id/local-authority/30UE,Central Support Services,1009,Communities,Core Funding Grants,40133,Grants and Subscriptions,5031,Core Small Funding Grant,08/12/2021,0163161,300.00,Revenue,Crohns & Colitis Support Group Lancashire,77914,,
Chorley Borough Council,http://statistics.data.gov.uk/id/local-authority/30UE,Central Support Services,1009,Communities,Core Funding Grants,40133,Grants and Subscriptions,5031,Core Small Funding Grant,08/12/2021,0163152,300.00,Revenue,Croston Village Festivities Group,59024,,
Chorley Borough Council,http://statistics.data.gov.uk/id/local-authority/30UE,Capital,Capital,Customer & Digital,Main Contractor,03007,Capital Expenditure,Capital,"3x 1000-litres HVO Road IBC @ 1,350 each, 1x 240V pump with the bottom suction kit @ 495.00, 3x Delivery charge",08/12/2021,0163326,550.00,Capital,Crown Oil Ltd,16739,,
Chorley Borough Council,http://statistics.data.gov.uk/id/local-authority/30UE,Central Support Services,1009,Customer & Digital,Computer Equipment-Purchase,40098,Communication and Computing,5028,359.00 + 12 delivery excluding VAT. iPhone se,15/12/2021,0163488,371.00,Revenue,DAC Technology Ltd,76398,,
Chorley Borough Council,http://statistics.data.gov.uk/id/local-authority/30UE,Recreation & Sport,1037,Customer & Digital,Computer Equipment-Purchase,40098,Communication and Computing,5028,"Legend Club - Leisure Centre Management 3 year contract period Year One total 38,739.00",15/12/2021,0161973,"1,200.00",Revenue,Debit Finance Collections Plc T/A Legend Software,80920,,
Chorley Borough Council,http://statistics.data.gov.uk/id/local-authority/30UE,Recreation & Sport,1037,Customer & Digital,Computer Equipment-Purchase,40098,Communication and Computing,5028,"Legend Club - Leisure Centre Management 3 year contract period Year One total 38,739.00",15/12/2021,0162405,"1,980.00",Revenue,Debit Finance Collections Plc T/A Legend Software,80920,,
Chorley Borough Council,http://statistics.data.gov.uk/id/local-authority/30UE,Central Support Services,1009,Customer & Digital,Computer Equipment-Purchase,40098,Communication and Computing,5028,Leisure Centres Thermal Receipt Printer x 4 Web Cam x 4,15/12/2021,0163268,260.00,Revenue,Debit Finance Collections Plc T/A Legend Software,80920,,
Chorley Borough Council,http://statistics.data.gov.uk/id/local-authority/30UE,Recreation & Sport,1037,Customer & Digital,Computer Equipment-Purchase,40098,Communication and Computing,5028,"Legend Club - Leisure Centre Management 3 year contract period Year One total 38,739.00",15/12/2021,0163279,"1,395.00",Revenue,Debit Finance Collections Plc T/A Legend Software,80920,,
Chorley Borough Council,http://statistics.data.gov.uk/id/local-authority/30UE,Recreation & Sport,1037,Customer & Digital,Computer Equipment-Purchase,40098,Communication and Computing,5028,"Legend Club - Leisure Centre Management 3 year contract period Year One total 38,739.00",15/12/2021,0163282,"1,190.01",Revenue,Debit Finance Collections Plc T/A Legend Software,80920,,
Chorley Borough Council,http://statistics.data.gov.uk/id/local-authority/30UE,Recreation & Sport,1037,Customer & Digital,Computer Equipment-Purchase,40098,Communication and Computing,5028,"Legend Club - Leisure Centre Management 3 year contract period Year One total 38,739.00",15/12/2021,0163284,"1,580.00",Revenue,Debit Finance Collections Plc T/A Legend Software,80920,,
Chorley Borough Council,http://statistics.data.gov.uk/id/local-authority/30UE,Recreation & Sport,1037,Customer & Digital,Computer Equipment-Purchase,40098,Communication and Computing,5028,"Legend Club - Leisure Centre Management 3 year contract period Year One total 38,739.00",15/12/2021,0163285,"1,395.00",Revenue,Debit Finance Collections Plc T/A Legend Software,80920,,
Chorley Borough Council,http://statistics.data.gov.uk/id/local-authority/30UE,Recreation & Sport,1037,Customer & Digital,Computer Equipment-Purchase,40098,Communication and Computing,5028,"Legend Club - Leisure Centre Management 3 year contract period Year One total 38,739.00",15/12/2021,0163333,"1,395.00",Revenue,Debit Finance Collections Plc T/A Legend Software,80920,,
Chorley Borough Council,http://statistics.data.gov.uk/id/local-authority/30UE,Recreation & Sport,1037,Customer & Digital,Computer Equipment-Purchase,40098,Communication and Computing,5028,"Legend Club - Leisure Centre Management 3 year contract period Year One total 38,739.00",15/12/2021,0163334,"1,395.00",Revenue,Debit Finance Collections Plc T/A Legend Software,80920,,
Chorley Borough Council,http://statistics.data.gov.uk/id/local-authority/30UE,Recreation & Sport,1037,Customer & Digital,Computer Equipment-Purchase,40098,Communication and Computing,5028,"Legend Club - Leisure Centre Management 3 year contract period Year One total 38,739.00",15/12/2021,0163335,538.00,Revenue,Debit Finance Collections Plc T/A Legend Software,80920,,
Chorley Borough Council,http://statistics.data.gov.uk/id/local-authority/30UE,Central Support Services,1009,Customer & Digital,Computer Equipment-Purchase,40098,Communication and Computing,5028,Leisure Centres Thermal Receipt Printer x 4 Web Cam x 4,15/12/2021,0163336,925.95,Revenue,Debit Finance Collections Plc T/A Legend Software,80920,,
Chorley Borough Council,http://statistics.data.gov.uk/id/local-authority/30UE,Recreation & Sport,1037,Customer & Digital,Computer Equipment-Purchase,40098,Communication and Computing,5028,"Legend Club - Leisure Centre Management 3 year contract period Year One total 38,739.00",15/12/2021,0163337,"3,145.00",Revenue,Debit Finance Collections Plc T/A Legend Software,80920,,
Chorley Borough Council,http://statistics.data.gov.uk/id/local-authority/30UE,Recreation & Sport,1037,Customer & Digital,Computer Equipment-Purchase,40098,Communication and Computing,5028,"Legend Club - Leisure Centre Management 3 year contract period Year One total 38,739.00",15/12/2021,0163338,"3,510.00",Revenue,Debit Finance Collections Plc T/A Legend Software,80920,,
Chorley Borough Council,http://statistics.data.gov.uk/id/local-authority/30UE,Recreation & Sport,1037,Customer & Digital,Computer Equipment-Purchase,40098,Communication and Computing,5028,"Legend Club - Leisure Centre Management 3 year contract period Year One total 38,739.00",22/12/2021,0163716,"2,220.00",Revenue,Debit Finance Collections Plc T/A Legend Software,80920,,
Chorley Borough Council,http://statistics.data.gov.uk/id/local-authority/30UE,Control Accounts,Control,Policy & Governance,General Balances,00100,Balance Sheet,Balance,Child Maintenance Attachment of Earning,22/12/2021,0163680,252.08,Revenue,Department for Work and Pensions (A Wilson),83955,,
Chorley Borough Council,http://statistics.data.gov.uk/id/local-authority/30UE,Corporate Management,1008,Policy & Governance,Refunds,40220,Miscellaneous Expenses,5034,rec -repayment of surplus,01/12/2021,0162818,"690,239.00",Revenue,Dept for Business Energy & Ind. Strategy (BEIS),82937,,
Chorley Borough Council,http://statistics.data.gov.uk/id/local-authority/30UE,Service Management & Support,1009,Customer & Digital,Grounds Maintenance Contractor,20043,Grounds Maintenance Costs,5013,1 days work for man and machine to clear silt out of big lodge at Yarrow valley Park,01/12/2021,0162608,300.00,Revenue,Derek R Smith,21092,,
Chorley Borough Council,http://statistics.data.gov.uk/id/local-authority/30UE,Service Management & Support,1009,Customer & Digital,Grounds Maintenance Contractor,20043,Grounds Maintenance Costs,5013,Hire of machine and dumper to clear away silt that has been removed from big lodge at Yarrow alley.,08/12/2021,0162929,425.00,Revenue,Derek R Smith,21092,,
Chorley Borough Council,http://statistics.data.gov.uk/id/local-authority/30UE,Service Management & Support,1009,Customer & Digital,Supplies - Workshop,40246,"Equipment, Furniture & Materia",5023,As per Document 053389 Order ref  230126,15/12/2021,0163455,575.07,Revenue,Dick Leigh,17138,,
Chorley Borough Council,http://statistics.data.gov.uk/id/local-authority/30UE,Central Support Services,1009,Customer & Digital,Mobile Voice and Data,40086,Communication and Computing,5028,03 oct 2021,01/12/2021,0162877,"3,454.59",Revenue,EE - Orange,16486,,
Chorley Borough Council,http://statistics.data.gov.uk/id/local-authority/30UE,Central Support Services,1009,Customer & Digital,Mobile Voice and Data,40086,Communication and Computing,5028,non-vat,01/12/2021,0162877,50.02,Revenue,EE - Orange,16486,,
Chorley Borough Council,http://statistics.data.gov.uk/id/local-authority/30UE,Central Support Services,1009,Customer & Digital,Mobile Voice and Data,40086,Communication and Computing,5028,03 Nov 2021,01/12/2021,0162878,"3,186.46",Revenue,EE - Orange,16486,,
Chorley Borough Council,http://statistics.data.gov.uk/id/local-authority/30UE,Homelessness,1075,Commercial & Property,Laundry,40042,"Clothing, Uniforms and Laundry",5025,12 month laundry for Cotswold Supported House,08/12/2021,0163254,693.23,Revenue,Elis UK Ltd,20799,,
Chorley Borough Council,http://statistics.data.gov.uk/id/local-authority/30UE,Homelessness,1075,Commercial & Property,Laundry,40042,"Clothing, Uniforms and Laundry",5025,12 month laundry for Cotswold Supported House,08/12/2021,0163257,693.23,Revenue,Elis UK Ltd,20799,,
Chorley Borough Council,http://statistics.data.gov.uk/id/local-authority/30UE,Homelessness,1075,Commercial & Property,Laundry,40042,"Clothing, Uniforms and Laundry",5025,12 month laundry for Cotswold Supported House,08/12/2021,0163258,715.59,Revenue,Elis UK Ltd,20799,,
Chorley Borough Council,http://statistics.data.gov.uk/id/local-authority/30UE,Homelessness,1075,Commercial & Property,Laundry,40042,"Clothing, Uniforms and Laundry",5025,12 month laundry for Cotswold Supported House,08/12/2021,0163259,858.48,Revenue,Elis UK Ltd,20799,,
Chorley Borough Council,http://statistics.data.gov.uk/id/local-authority/30UE,Homelessness,1075,Commercial & Property,Laundry,40042,"Clothing, Uniforms and Laundry",5025,12 month laundry for Cotswold Supported House,08/12/2021,0163260,693.23,Revenue,Elis UK Ltd,20799,,
Chorley Borough Council,http://statistics.data.gov.uk/id/local-authority/30UE,Business Support,1095,Commercial & Property,Internet Charges,40104,Communication and Computing,5028,"For all regular, monthly invoices to cover Operate Growth, Connect Growth and Public IP & Call Charges for the year 2021-22",15/12/2021,0163345,"3,810.00",Revenue,Essensys Ltd,77836,,
Chorley Borough Council,http://statistics.data.gov.uk/id/local-authority/30UE,Business Support,1095,Commercial & Property,Internet Charges,40104,Communication and Computing,5028,"For all regular, monthly invoices to cover Operate Growth, Connect Growth and Public IP & Call Charges for the year 2021-22",15/12/2021,0163362,257.44,Revenue,Essensys Ltd,77836,,
Chorley Borough Council,http://statistics.data.gov.uk/id/local-authority/30UE,Central Support Services,1009,Commercial & Property,Planned Maintenance,20006,Repairs Maintenance & Alts,5005,"Clayton Green Sports Centre, Fall arrest service remedials, GR01, GR02, IP03 & IP04 - Repairs & MS01 Recommendations",08/12/2021,0163195,"5,288.00",Revenue,Eurosafe Solutions Limited,66302,,
Chorley Borough Council,http://statistics.data.gov.uk/id/local-authority/30UE,Capital,Capital,Customer & Digital,Main Contractor,03007,Capital Expenditure,Capital,grant,22/12/2021,0162634,"10,402.73",Capital,Euxton Parish Council,16838,,
Chorley Borough Council,http://statistics.data.gov.uk/id/local-authority/30UE,Recreation & Sport,1037,Commercial & Property,Grants to Voluntary Organisations,40124,Grants and Subscriptions,5031,Annual maintenance grant 2021/22,01/12/2021,0162966,"8,000.00",Revenue,Fairview Youth & Community Association,20589,,
Chorley Borough Council,http://statistics.data.gov.uk/id/local-authority/30UE,Recreation & Sport,1037,Commercial & Property,Planned Maintenance,20006,Repairs Maintenance & Alts,5005,All Seasons Fire Risk Assessment,01/12/2021,0162945,750.00,Revenue,Fire and Risk Management Support Services Ltd,77505,,
Chorley Borough Council,http://statistics.data.gov.uk/id/local-authority/30UE,Recreation & Sport,1037,Commercial & Property,Planned Maintenance,20006,Repairs Maintenance & Alts,5005,Clayton Green Fire Risk Assessment,01/12/2021,0162945,650.00,Revenue,Fire and Risk Management Support Services Ltd,77505,,
Chorley Borough Council,http://statistics.data.gov.uk/id/local-authority/30UE,Recreation & Sport,1037,Commercial & Property,Planned Maintenance,20006,Repairs Maintenance & Alts,5005,Brinscall Baths Fire Risk Assessment,01/12/2021,0162945,400.00,Revenue,Fire and Risk Management Support Services Ltd,77505,,
Chorley Borough Council,http://statistics.data.gov.uk/id/local-authority/30UE,Other Long Term Debtors,,Commercial & Property,Other Debtors,00098,Balance Sheet,Balance,Capital Contribution,22/12/2021,0163627,"100,000.00",Revenue,Fortuna Catering and Events Ltd,84224,,
Chorley Borough Council,http://statistics.data.gov.uk/id/local-authority/30UE,Regulatory Services,1048,Customer & Digital,Legal Fees,40171,Miscellaneous Expenses,5034,"Fees in respect of NAME REDACTED (Taxi Licensing Appeal) Advising in conference, Brief on Hearing",01/12/2021,0162823,"2,000.00",Revenue,Freddie Humphreys,78375,,
Chorley Borough Council,http://statistics.data.gov.uk/id/local-authority/30UE,Central Support Services,1009,Communities,Core Funding Grants,40133,Grants and Subscriptions,5031,Core Small Funding Grant,08/12/2021,0163151,250.00,Revenue,Friends of Adlington Library,76734,,
Chorley Borough Council,http://statistics.data.gov.uk/id/local-authority/30UE,Central Support Services,1009,Commercial & Property,Planned Maintenance,20006,Repairs Maintenance & Alts,5005,All Seasons Hyproliser Monthly Rental Fee 420.14 pm,22/12/2021,0162946,420.14,Revenue,Gaffey Technical Services Ltd,18844,,
Chorley Borough Council,http://statistics.data.gov.uk/id/local-authority/30UE,Business Support,1095,Commercial & Property,Cleaning/Attendants' Services,20041,Cleaning and Domestic Supplies,5012,"Cleaning cover for both AM and PM shifts at Strawberry Fields, November 2021 - covering both NAMES REDACTED sick leave",22/12/2021,0163728,"1,683.00",Revenue,Gemini Group Ltd,83969,,
Chorley Borough Council,http://statistics.data.gov.uk/id/local-authority/30UE,Central Support Services,1009,Policy & Governance,Publicity - Advertising,40157,Miscellaneous Expenses,5034,Work on the staff Thank You event brochures.,08/12/2021,0162963,650.00,Revenue,Geminus Design Ltd,78351,,
Chorley Borough Council,http://statistics.data.gov.uk/id/local-authority/30UE,Democratic Represent and  Mgnt,1007,Policy & Governance,Mayoral Hospitality,40123,Expenses,5030,50% deposit for entertainment at Mayor's Casino Royale Charity Ball at Chorley Town Hall on Saturday 26th March 2022,22/12/2021,0163648,300.00,Revenue,Gemma Louise Doyle,84122,,
Chorley Borough Council,http://statistics.data.gov.uk/id/local-authority/30UE,Central Support Services,1009,Communities,Core Funding Grants,40133,Grants and Subscriptions,5031,Core Small Funding Grant,08/12/2021,0163156,460.00,Revenue,Genesis Care (North West) Ltd,53287,,
Chorley Borough Council,http://statistics.data.gov.uk/id/local-authority/30UE,Capital,Capital,Commercial & Property,Other Capital Related Fees,03024,Capital Expenditure,Capital,Covered Market Improvement works - Toilet fit out as per schedule of works,08/12/2021,0162888,"7,461.04",Capital,GK Construction & Project Management Ltd,82901,,
Chorley Borough Council,http://statistics.data.gov.uk/id/local-authority/30UE,Corporate Management,1008,Policy & Governance,Miscellaneous Expenses,40200,Miscellaneous Expenses,5034,Bus back advertising campaign for Chorley Flower Show - to encourage visitor footfall. Welcome Back fund to be used.,08/12/2021,0162728,499.00,Revenue,Global,82941,,
Chorley Borough Council,http://statistics.data.gov.uk/id/local-authority/30UE,Corporate Management,1008,Policy & Governance,Miscellaneous Expenses,40200,Miscellaneous Expenses,5034,6 week bus back advertising campaign. Christmas in Chorley to encourage footfall to the town centre.,08/12/2021,0162747,"4,447.67",Revenue,Global,82941,,
Chorley Borough Council,http://statistics.data.gov.uk/id/local-authority/30UE,Corporate Management,1008,Policy & Governance,Miscellaneous Expenses,40200,Miscellaneous Expenses,5034,Bus back advertising campaign for Chorley Flower Show - to encourage visitor footfall. Welcome Back fund to be used.,08/12/2021,0162811,"2,240.00",Revenue,Global,82941,,
Chorley Borough Council,http://statistics.data.gov.uk/id/local-authority/30UE,Recreation & Sport,1037,Communities,Miscellaneous Expenses,40200,Miscellaneous Expenses,5034,Annual Maintenance Agreement AWA July 2021 - June 2022,08/12/2021,0162571,325.00,Revenue,Global Maintainance Ltd,83334,,
Chorley Borough Council,http://statistics.data.gov.uk/id/local-authority/30UE,Recreation & Sport,1037,Communities,Miscellaneous Expenses,40200,Miscellaneous Expenses,5034,Annual Maintenance Agreement AWA July 2021 - June 2022,08/12/2021,0162617,325.00,Revenue,Global Maintainance Ltd,83334,,
Chorley Borough Council,http://statistics.data.gov.uk/id/local-authority/30UE,Homelessness,1075,Commercial & Property,Laundry,40042,"Clothing, Uniforms and Laundry",5025,Motivity Labour 3.75hr CALL OUT 1 = 68.00 ELEMENT 1 = 55.85 ELEMENT 2KW 1 = 80.01 Motivity Labour 1.25hr,22/12/2021,0163398,493.86,Revenue,Goodman Sparks Ltd,66818,,
Chorley Borough Council,http://statistics.data.gov.uk/id/local-authority/30UE,Homelessness,1075,Commercial & Property,Laundry,40042,"Clothing, Uniforms and Laundry",5025,"Maintenance and repair of the laundry machines at Cotswold House, Motivity Labour, CALL OUT",22/12/2021,0163399,329.00,Revenue,Goodman Sparks Ltd,66818,,
Chorley Borough Council,http://statistics.data.gov.uk/id/local-authority/30UE,Capital,Capital,Commercial & Property,Main Contractor,03007,Capital Expenditure,Capital,Buzz Bingo/Town Centre - Consultancy support 3.00 days + 180 disbursement paid to NAME REDACTED - built level survey,15/12/2021,0163340,"1,155.00",Capital,Gosling Consulting Limited,78380,,
Chorley Borough Council,http://statistics.data.gov.uk/id/local-authority/30UE,Central Support Services,1009,Customer & Digital,Vandalism Repairs,20005,Repairs Maintenance & Alts,5005,Graffiti Removal Contract June 2021 ongoing,22/12/2021,0163722,"1,225.00",Revenue,Graffiti Away Ltd,78340,,
Chorley Borough Council,http://statistics.data.gov.uk/id/local-authority/30UE,Corporate Management,1008,Commercial & Property,Publicity - Advertising,40157,Miscellaneous Expenses,5034,Social media for Market Walk SHopping Centre Chorley. July 2021 - March 2022 @500 Per month Total 9 months 4500,01/12/2021,0162914,500.00,Revenue,Gravity,77837,,
Chorley Borough Council,http://statistics.data.gov.uk/id/local-authority/30UE,Capital,Capital,Communities,Main Contractor,03007,Capital Expenditure,Capital,Love My River project delivery linked to grant. River Lostock and Carr Brook Enhancement. May 21 - March 22.,22/12/2021,0163723,"6,950.00",Capital,Groundwork Lancs West & Wigan,18150,,
Chorley Borough Council,http://statistics.data.gov.uk/id/local-authority/30UE,Corporate Management,1008,Policy & Governance,Miscellaneous Expenses,40200,Miscellaneous Expenses,5034,Hire of 8 mobile hand wash sinks from 1st to 30th November 2021. Contract no. 025502,08/12/2021,0162955,"1,440.00",Revenue,Hallmark Catering,78575,,
Chorley Borough Council,http://statistics.data.gov.uk/id/local-authority/30UE,Central Support Services,1009,Policy & Governance,Exhibitions & Special Events,40158,Miscellaneous Expenses,5034,Supply of fuel for the ice rink and Betty's Tipi heaters for the Winter Wonderland in Chorley.,08/12/2021,0163309,"1,464.19",Revenue,Harrison Oils Ltd,76429,,
Chorley Borough Council,http://statistics.data.gov.uk/id/local-authority/30UE,Central Support Services,1009,Policy & Governance,Exhibitions & Special Events,40158,Miscellaneous Expenses,5034,Supply of fuel for the ice rink and Betty's Tipi heaters for the Winter Wonderland in Chorley.,15/12/2021,0163546,"1,789.15",Revenue,Harrison Oils Ltd,76429,,
Chorley Borough Council,http://statistics.data.gov.uk/id/local-authority/30UE,Central Support Services,1009,Policy & Governance,Exhibitions & Special Events,40158,Miscellaneous Expenses,5034,Supply of fuel for the ice rink and Betty's Tipi heaters for the Winter Wonderland in Chorley.,22/12/2021,0163705,265.36,Revenue,Harrison Oils Ltd,76429,,
Chorley Borough Council,http://statistics.data.gov.uk/id/local-authority/30UE,Central Support Services,1009,Policy & Governance,Exhibitions & Special Events,40158,Miscellaneous Expenses,5034,Supply of fuel for the ice rink and Betty's Tipi heaters for the Winter Wonderland in Chorley.,22/12/2021,0163729,"1,997.71",Revenue,Harrison Oils Ltd,76429,,
Chorley Borough Council,http://statistics.data.gov.uk/id/local-authority/30UE,Culture & Heritage,1036,Policy & Governance,General Subscriptions,40146,Grants and Subscriptions,5031,Harwell Priority User Subscription December 2021 - November 2022. PU Number 0681,22/12/2021,0163015,300.00,Revenue,Harwell Technical Services Ltd,18416,,
Chorley Borough Council,http://statistics.data.gov.uk/id/local-authority/30UE,Central Support Services,1009,Communities,Core Funding Grants,40133,Grants and Subscriptions,5031,small comm grant,15/12/2021,0163541,465.00,Revenue,High Five,84108,,
Chorley Borough Council,http://statistics.data.gov.uk/id/local-authority/30UE,Corporate Management,1008,Communities,Miscellaneous Expenses,40200,Miscellaneous Expenses,5034,Accommodation for NAME REDACTED from 16/04/2021 - 18/05/2021 (at 65 per night),22/12/2021,0163586,"2,080.00",Revenue,Hill View (Private) Hotel,21260,,
Chorley Borough Council,http://statistics.data.gov.uk/id/local-authority/30UE,Planning Policy,1092,Communities,Professional Fees,40063,Services,5027,"Central Lancs Local Plan - Density Review study by consultants Hive Land & Planning, cost of the study plus Vat",22/12/2021,0163271,"5,833.33",Revenue,Hive Land & Planning Limited,77330,,
Chorley Borough Council,http://statistics.data.gov.uk/id/local-authority/30UE,Corporate Management,1008,Policy & Governance,Other Fees,40212,Miscellaneous Expenses,5034,Settlement for Leased Cars,15/12/2021,0163286,"22,272.24",Revenue,HM Revenue & Customs,21907,,
Chorley Borough Council,http://statistics.data.gov.uk/id/local-authority/30UE,Central Support Services,1009,Policy & Governance,Grants to Voluntary Organisations,40124,Grants and Subscriptions,5031,Professionals training from NHS CCG funding to support hoarding awareness,15/12/2021,0162682,875.00,Revenue,Hoarding Disorders UK CIC,81917,,
Chorley Borough Council,http://statistics.data.gov.uk/id/local-authority/30UE,Central Support Services,1009,Policy & Governance,Miscellaneous Expenses,40200,Miscellaneous Expenses,5034,2nd Payment for the construction of the Myles Standish Garden as per estimate,22/12/2021,0163232,"5,800.00",Revenue,Homescapes 1990 Ltd,83511,,
Chorley Borough Council,http://statistics.data.gov.uk/id/local-authority/30UE,Central Support Services,1009,Customer & Digital,Consultants` Fees,40077,Services,5027,Chorley Council Desktop Support,15/12/2021,0162298,"3,000.00",Revenue,Hybrit LLP,77925,,
Chorley Borough Council,http://statistics.data.gov.uk/id/local-authority/30UE,Central Support Services,1009,Customer & Digital,Computer - Support Services,40111,Communication and Computing,5028,"Review AD naming for user NAME REDACTED and prepare script, Prepare and review for change, Remote Support after change",15/12/2021,0162309,"1,950.00",Revenue,Hybrit LLP,77925,,
Chorley Borough Council,http://statistics.data.gov.uk/id/local-authority/30UE,Central Support Services,1009,Customer & Digital,Telephones - Other,40085,Communication and Computing,5028,Hybrit SIP charges Sept 21,15/12/2021,0162320,585.00,Revenue,Hybrit LLP,77925,,
Chorley Borough Council,http://statistics.data.gov.uk/id/local-authority/30UE,Central Support Services,1009,Customer & Digital,Telephones - Other,40085,Communication and Computing,5028,Hybrit SIP charges Oct 21,15/12/2021,0162895,"1,003.83",Revenue,Hybrit LLP,77925,,
Chorley Borough Council,http://statistics.data.gov.uk/id/local-authority/30UE,Central Support Services,1009,Customer & Digital,Telephones - Other,40085,Communication and Computing,5028,Hybrit SIP charges Dec 21,15/12/2021,0162896,"2,417.84",Revenue,Hybrit LLP,77925,,
Chorley Borough Council,http://statistics.data.gov.uk/id/local-authority/30UE,Business Support,1095,Commercial & Property,Refreshments,40036,Catering,5024,"Per your invoice 9448021221, milk deliveries for November 2021",15/12/2021,0163350,304.47,Revenue,I W Critchley & Son,77615,,
Chorley Borough Council,http://statistics.data.gov.uk/id/local-authority/30UE,Capital,Capital,Policy & Governance,Architects Fees,03022,Capital Expenditure,Capital,"Quantity Surveying/ Cost Manager services, feasibility study will be to provide a RIBA Stage 1 Cost Plan",22/12/2021,0163042,"1,950.00",Capital,Identity Consult Ltd,76426,,
Chorley Borough Council,http://statistics.data.gov.uk/id/local-authority/30UE,Capital,Capital,Communities,Main Contractor,03007,Capital Expenditure,Capital,"Consultancy for Astley Lighting Installation including: Contract administration until handover, Principal designer duties",22/12/2021,0162913,"2,736.00",Capital,IKTEC Ltd,83843,,
Chorley Borough Council,http://statistics.data.gov.uk/id/local-authority/30UE,Central Support Services,1009,Commercial & Property,Promotional Expenses,40159,Miscellaneous Expenses,5034,6x 3D Floor Plans - Strawberry Meadows Business Park,08/12/2021,0163304,"2,070.00",Revenue,Image Foundry Studios Ltd,84036,,
Chorley Borough Council,http://statistics.data.gov.uk/id/local-authority/30UE,Corporate Management,1008,Policy & Governance,Miscellaneous Expenses,40200,Miscellaneous Expenses,5034,NAME REDACTED Chorley and South Ribble Partnership Economic Summit Panel and on the Day Event Facilitator,01/12/2021,0162968,"1,100.00",Revenue,iMeg Partnership,83966,,
Chorley Borough Council,http://statistics.data.gov.uk/id/local-authority/30UE,Capital,Capital,Commercial & Property,Main Contractor,03007,Capital Expenditure,Capital,"Market Street Redevelopment, Demolition of Former Buzz Bingo and Units 7 - 11",15/12/2021,0163329,"48,960.60",Capital,Inglenorth (Contracting) Limited,81123,,
Chorley Borough Council,http://statistics.data.gov.uk/id/local-authority/30UE,Control Accounts,Control,System,Manual Control Account,00001,Balance Sheet,Balance,,15/12/2021,0162618,"1,072.26",Revenue,Inland Revenue,17445,,
Chorley Borough Council,http://statistics.data.gov.uk/id/local-authority/30UE,Control Accounts,Control,System,Manual Control Account,00001,Balance Sheet,Balance,,15/12/2021,0163040,274.60,Revenue,Inland Revenue,17445,,
Chorley Borough Council,http://statistics.data.gov.uk/id/local-authority/30UE,Central Support Services,1009,Communities,External Contractor,40198,Miscellaneous Expenses,5034,Payment for consultancy work,22/12/2021,0163736,"1,195.00",Revenue,J L Nelson Consultancy Ltd,84162,,
Chorley Borough Council,http://statistics.data.gov.uk/id/local-authority/30UE,Capital,Capital,Commercial & Property,Other Capital Related Fees,03024,Capital Expenditure,Capital,"Chorley Covered Market, Technical site survey, manufacture & installation: Side Blinds, Elite full-cassette roller blind systems",01/12/2021,0162923,"2,211.00",Capital,James Robertshaw & Sons (1954) Ltd,81520,,
Chorley Borough Council,http://statistics.data.gov.uk/id/local-authority/30UE,Parking Services,1066,Commercial & Property,Salting & Gritting,20059,Grounds Maintenance Costs,5013,"Please supply 3 grit bins: Grit Bin 7CUFT/250KG Yellow, Delivery to: Market Walk Management Suite, PR7 1DE",15/12/2021,0163360,285.00,Revenue,Jewsons Limited,17844,,
Chorley Borough Council,http://statistics.data.gov.uk/id/local-authority/30UE,Central Support Services,1009,Commercial & Property,General Repairs - Reactive,20004,Repairs Maintenance & Alts,5005,6.30am. Gutter and hoppers cleaned and jetted out at the town hall and slates re seated on right elevation.,08/12/2021,0163037,580.00,Revenue,JJL Windows and Exterior Cleaning,80931,,
Chorley Borough Council,http://statistics.data.gov.uk/id/local-authority/30UE,Central Support Services,1009,Commercial & Property,General Repairs - Reactive,20004,Repairs Maintenance & Alts,5005,"G7 works, Gutter clearance at astley hall ahead of the summit. Access to chimney and guttering from cherry picker",08/12/2021,0163038,400.00,Revenue,JJL Windows and Exterior Cleaning,80931,,
Chorley Borough Council,http://statistics.data.gov.uk/id/local-authority/30UE,Business Support,1095,Commercial & Property,Tools & Equipment - Purchase,40003,"Equipment, Furniture & Materia",5023,Washing machine and tumble dryer servicing for 12 months,22/12/2021,0162815,317.22,Revenue,JLA Total Care LTD,78420,,
Chorley Borough Council,http://statistics.data.gov.uk/id/local-authority/30UE,Business Support,1095,Commercial & Property,Tools & Equipment - Purchase,40003,"Equipment, Furniture & Materia",5023,Washing machine and tumble dryer servicing for 12 months,01/12/2021,0162857,317.22,Revenue,JLA Total Care LTD,78420,,
Chorley Borough Council,http://statistics.data.gov.uk/id/local-authority/30UE,Culture & Heritage,1036,Policy & Governance,Maintenance of Building Services,20070,Fixtures and Fittings,5010,"Vault exploratory work (monitoring) for work at St Laurence's Church, Chorley & disbursements associated with works",08/12/2021,0163013,"1,678.00",Revenue,John Coward Architects Ltd,84124,,
Chorley Borough Council,http://statistics.data.gov.uk/id/local-authority/30UE,Service Management & Support,1009,Customer & Digital,Supplies-Grounds Maintenance,40025,"Equipment, Furniture & Materia",5023,10 @ 3.6m x 150mm x 50mm green timber,15/12/2021,0160906,148.00,Revenue,John H Mayor & Sons Ltd,16635,,
Chorley Borough Council,http://statistics.data.gov.uk/id/local-authority/30UE,Service Management & Support,1009,Customer & Digital,Supplies-Grounds Maintenance,40025,"Equipment, Furniture & Materia",5023,1 WD 40,15/12/2021,0160906,5.00,Revenue,John H Mayor & Sons Ltd,16635,,
Chorley Borough Council,http://statistics.data.gov.uk/id/local-authority/30UE,Service Management & Support,1009,Customer & Digital,Supplies-Grounds Maintenance,40025,"Equipment, Furniture & Materia",5023,1 x mattock head,15/12/2021,0160906,15.00,Revenue,John H Mayor & Sons Ltd,16635,,
Chorley Borough Council,http://statistics.data.gov.uk/id/local-authority/30UE,Service Management & Support,1009,Customer & Digital,Supplies-Grounds Maintenance,40025,"Equipment, Furniture & Materia",5023,2 x shafts for Mattocks,15/12/2021,0160906,20.00,Revenue,John H Mayor & Sons Ltd,16635,,
Chorley Borough Council,http://statistics.data.gov.uk/id/local-authority/30UE,Service Management & Support,1009,Customer & Digital,Supplies-Grounds Maintenance,40025,"Equipment, Furniture & Materia",5023,1 Bacho saw,15/12/2021,0160906,12.00,Revenue,John H Mayor & Sons Ltd,16635,,
Chorley Borough Council,http://statistics.data.gov.uk/id/local-authority/30UE,Service Management & Support,1009,Customer & Digital,Supplies-Grounds Maintenance,40025,"Equipment, Furniture & Materia",5023,20 @ 3.6m x 100mm x 38mm green timber,15/12/2021,0160906,146.54,Revenue,John H Mayor & Sons Ltd,16635,,
Chorley Borough Council,http://statistics.data.gov.uk/id/local-authority/30UE,Service Management & Support,1009,Customer & Digital,Supplies-Grounds Maintenance,40025,"Equipment, Furniture & Materia",5023,"Quantity x20- 6x2 @ 3.6metres length @14.58 each, Quantity x20- 4x1 1.5 @3.6metres length @7.39 each",15/12/2021,0163294,600.98,Revenue,John H Mayor & Sons Ltd,16635,,
Chorley Borough Council,http://statistics.data.gov.uk/id/local-authority/30UE,Service Management & Support,1009,Customer & Digital,Supplies-Grounds Maintenance,40025,"Equipment, Furniture & Materia",5023,20 @ 4.2m x 75mm x 75mm green timber,15/12/2021,0163296,255.20,Revenue,John H Mayor & Sons Ltd,16635,,
Chorley Borough Council,http://statistics.data.gov.uk/id/local-authority/30UE,Service Management & Support,1009,Customer & Digital,Supplies-Grounds Maintenance,40025,"Equipment, Furniture & Materia",5023,Supply 35 ft+ Christmas tree and hire the Hiab wagon to erect the tree,15/12/2021,0163316,"2,000.00",Revenue,John H Mayor & Sons Ltd,16635,,
Chorley Borough Council,http://statistics.data.gov.uk/id/local-authority/30UE,Capital,Capital,Commercial & Property,Main Contractor,03007,Capital Expenditure,Capital,"all seasons, release of retention monies due for the resurfacing & ducting works",15/12/2021,0162311,"1,017.73",Capital,John Wade Groundworks Ltd,76676,,
Chorley Borough Council,http://statistics.data.gov.uk/id/local-authority/30UE,Capital,Capital,Commercial & Property,Main Contractor,03007,Capital Expenditure,Capital,"all seasons, release of retention monies due for the resurfacing & ducting works",15/12/2021,0162312,"1,209.30",Capital,John Wade Groundworks Ltd,76676,,
Chorley Borough Council,http://statistics.data.gov.uk/id/local-authority/30UE,Capital,Capital,Commercial & Property,Main Contractor,03007,Capital Expenditure,Capital,"Cleveland St Car Park, Supply and Install 8M Temp Tubular Column and LED Lantern 1,217.96 x 6",01/12/2021,0162622,"7,307.76",Capital,Jones Lighting Ltd,82417,,
Chorley Borough Council,http://statistics.data.gov.uk/id/local-authority/30UE,Capital,Capital,Commercial & Property,Main Contractor,03007,Capital Expenditure,Capital,6mm 3 Core SWA (installed in Ducting by Others) 6.62 x160,01/12/2021,0162622,"1,058.40",Capital,Jones Lighting Ltd,82417,,
Chorley Borough Council,http://statistics.data.gov.uk/id/local-authority/30UE,Capital,Capital,Commercial & Property,Main Contractor,03007,Capital Expenditure,Capital,Replace Cut-out in Exising Feeder Cols (as indicated on Sketch) 121.60 x2,01/12/2021,0162622,243.20,Capital,Jones Lighting Ltd,82417,,
Chorley Borough Council,http://statistics.data.gov.uk/id/local-authority/30UE,Capital,Capital,Commercial & Property,Main Contractor,03007,Capital Expenditure,Capital,Test and commission 132.72,01/12/2021,0162622,132.72,Capital,Jones Lighting Ltd,82417,,
Chorley Borough Council,http://statistics.data.gov.uk/id/local-authority/30UE,Service Management & Support,1009,Customer & Digital,Tools & Equipment - Maintenance,40005,"Equipment, Furniture & Materia",5023,"Quantity x 2- Size 12, x3- Size 10, x3- Size 9, x3- Size 8, x1- Size 6, x1-Size 7, Goliath SDR10CSI Black Safety Boot",08/12/2021,0162137,380.95,Revenue,Key Engineering & Hygene Supplies,51615,,
Chorley Borough Council,http://statistics.data.gov.uk/id/local-authority/30UE,Service Management & Support,1009,Customer & Digital,Protective Clothing,40040,"Clothing, Uniforms and Laundry",5025,"Quantity x 10 boxes, Size- Xtra Large Nitrile gloves @ 22.10 per box, Quantity x 3, Size 10, Goliath Black Safety Boot",08/12/2021,0162419,221.00,Revenue,Key Engineering & Hygene Supplies,51615,,
Chorley Borough Council,http://statistics.data.gov.uk/id/local-authority/30UE,Service Management & Support,1009,Customer & Digital,Protective Clothing,40040,"Clothing, Uniforms and Laundry",5025,zero items,08/12/2021,0162419,126.39,Revenue,Key Engineering & Hygene Supplies,51615,,
Chorley Borough Council,http://statistics.data.gov.uk/id/local-authority/30UE,Central Support Services,1009,Communities,Pest Control,20039,Cleaning and Domestic Supplies,5012,30 x tubs of the Ratimor Brodifacoum Blocks 37 each,01/12/2021,0162300,"1,110.00",Revenue,Killgerm Chemicals Ltd,16879,,
Chorley Borough Council,http://statistics.data.gov.uk/id/local-authority/30UE,Central Support Services,1009,Policy & Governance,Exhibitions & Special Events,40158,Miscellaneous Expenses,5034,Provision of Fireworks for Display on Friday 5 November.,01/12/2021,0162308,"6,000.00",Revenue,Komodo Fireworks Ltd,72809,,
Chorley Borough Council,http://statistics.data.gov.uk/id/local-authority/30UE,Control Accounts,Control,Policy & Governance,General Balances,00100,Balance Sheet,Balance,Monthly deductions from Expenses,22/12/2021,0163679,"1,225.38",Revenue,Labour Councillors Association,17577,,
Chorley Borough Council,http://statistics.data.gov.uk/id/local-authority/30UE,Central Support Services,1009,Commercial & Property,Legal Fees,40171,Miscellaneous Expenses,5034,Travel plan Section 106 contribution (Alker Lane) Including legal fees,01/12/2021,0162864,"6,350.00",Revenue,Lancashire County Council Highways,18845,,
Chorley Borough Council,http://statistics.data.gov.uk/id/local-authority/30UE,Capital,Capital,Commercial & Property,Main Contractor,03007,Capital Expenditure,Capital,temporary traffic regulation order plus the costs of advertising the order,08/12/2021,0163080,856.42,Capital,Lancashire County Council Highways,18845,,
Chorley Borough Council,http://statistics.data.gov.uk/id/local-authority/30UE,Central Support Services,1009,Customer & Digital,Clinical Waste Collection,50007,Private Contractors,5042,Domestic clinical waste collection services June 2021 to March 2022,01/12/2021,0162723,"2,079.08",Revenue,Lancashire Environmental Services,82309,,
Chorley Borough Council,http://statistics.data.gov.uk/id/local-authority/30UE,Central Support Services,1009,Customer & Digital,Clinical Waste Collection,50007,Private Contractors,5042,Domestic clinical waste collection services June 2021 to March 2022,15/12/2021,0163545,"2,145.12",Revenue,Lancashire Environmental Services,82309,,
Chorley Borough Council,http://statistics.data.gov.uk/id/local-authority/30UE,Central Support Services,1009,Commercial & Property,Planned Maintenance,20006,Repairs Maintenance & Alts,5005,Union St Air con service,01/12/2021,0162011,729.00,Revenue,Lancashire Gas Services Ltd,78192,,
Chorley Borough Council,http://statistics.data.gov.uk/id/local-authority/30UE,Central Support Services,1009,Commercial & Property,Planned Maintenance,20006,Repairs Maintenance & Alts,5005,Town Hall Air con service,01/12/2021,0162397,378.00,Revenue,Lancashire Gas Services Ltd,78192,,
Chorley Borough Council,http://statistics.data.gov.uk/id/local-authority/30UE,Central Support Services,1009,Commercial & Property,General Repairs - Reactive,20004,Repairs Maintenance & Alts,5005,Town Hall - reactive repair works,15/12/2021,0163132,"1,008.20",Revenue,Lancashire Gas Services Ltd,78192,,
Chorley Borough Council,http://statistics.data.gov.uk/id/local-authority/30UE,Central Support Services,1009,Commercial & Property,General Repairs - Reactive,20004,Repairs Maintenance & Alts,5005,Primrose Gardens - reactive repair works,15/12/2021,0163134,"1,048.50",Revenue,Lancashire Gas Services Ltd,78192,,
Chorley Borough Council,http://statistics.data.gov.uk/id/local-authority/30UE,Central Support Services,1009,Commercial & Property,General Repairs - Reactive,20004,Repairs Maintenance & Alts,5005,Town Hall - reactive repair works,15/12/2021,0163509,292.74,Revenue,Lancashire Gas Services Ltd,78192,,
Chorley Borough Council,http://statistics.data.gov.uk/id/local-authority/30UE,Central Support Services,1009,Commercial & Property,General Repairs - Reactive,20004,Repairs Maintenance & Alts,5005,Astley Hall and Buildings - reactive repair works,15/12/2021,0163518,"1,658.78",Revenue,Lancashire Gas Services Ltd,78192,,
Chorley Borough Council,http://statistics.data.gov.uk/id/local-authority/30UE,Central Support Services,1009,Commercial & Property,General Repairs - Reactive,20004,Repairs Maintenance & Alts,5005,Community Centres - reactive repair works,15/12/2021,0163519,388.32,Revenue,Lancashire Gas Services Ltd,78192,,
Chorley Borough Council,http://statistics.data.gov.uk/id/local-authority/30UE,Central Support Services,1009,Commercial & Property,General Repairs - Reactive,20004,Repairs Maintenance & Alts,5005,Cotswold House - reactive repair works,15/12/2021,0163521,438.00,Revenue,Lancashire Gas Services Ltd,78192,,
Chorley Borough Council,http://statistics.data.gov.uk/id/local-authority/30UE,Central Support Services,1009,Commercial & Property,General Repairs - Reactive,20004,Repairs Maintenance & Alts,5005,Primrose Gardens - reactive repair works,15/12/2021,0163522,"1,598.00",Revenue,Lancashire Gas Services Ltd,78192,,
Chorley Borough Council,http://statistics.data.gov.uk/id/local-authority/30UE,Central Support Services,1009,Communities,Core Funding Grants,40133,Grants and Subscriptions,5031,Core Small Funding Grant,08/12/2021,0163162,500.00,Revenue,Lancashire TAAG,57169,,
Chorley Borough Council,http://statistics.data.gov.uk/id/local-authority/30UE,Corporate Management,1008,Policy & Governance,Professional Fees,40063,Services,5027,Consultancy Fees regarding Settlement for Lease Cars finalising HMRC disclosure,08/12/2021,0163186,630.00,Revenue,LAVAT Consulting Ltd,76942,,
Chorley Borough Council,http://statistics.data.gov.uk/id/local-authority/30UE,Corporate Management,1008,Policy & Governance,Corp Training Organisational Development,17006,Indirect Employee Expenses,5002,CREDIT,01/12/2021,0162572,"13,216.00",Revenue,Learning Pool Limited,76161,,
Chorley Borough Council,http://statistics.data.gov.uk/id/local-authority/30UE,Corporate Management,1008,Policy & Governance,Corp Training Organisational Development,17006,Indirect Employee Expenses,5002,Year two of the agreement for contract for the supply of a hosted learning solution,01/12/2021,0162593,"19,500.00",Revenue,Learning Pool Limited,76161,,
Chorley Borough Council,http://statistics.data.gov.uk/id/local-authority/30UE,Central Support Services,1009,Customer & Digital,Publications,40054,"Printing, Stationery & General",5026,12-12-2021 to 11-12-2022,01/12/2021,0162820,"2,082.00",Revenue,Lexis Nexis UK,16688,,
Chorley Borough Council,http://statistics.data.gov.uk/id/local-authority/30UE,Central Support Services,1009,Customer & Digital,Professional Fees,14011,Direct Employee Expenses,5001,Empty Homes Review 2021,08/12/2021,0162132,"3,226.56",Revenue,Liberata (Capacity Grid),67989,,
Chorley Borough Council,http://statistics.data.gov.uk/id/local-authority/30UE,Capital,Capital,Commercial & Property,Main Contractor,03007,Capital Expenditure,Capital,Project management services for Astley Hall Restoration project,01/12/2021,0161489,"3,235.00",Capital,Linchpin Ltd,80779,,
Chorley Borough Council,http://statistics.data.gov.uk/id/local-authority/30UE,Capital,Capital,Commercial & Property,Main Contractor,03007,Capital Expenditure,Capital,Project management services for Astley Hall Restoration project,01/12/2021,0162754,"2,875.00",Capital,Linchpin Ltd,80779,,
Chorley Borough Council,http://statistics.data.gov.uk/id/local-authority/30UE,Central Support Services,1009,Communities,Children's Activities,40188,Miscellaneous Expenses,5034,Supply of food parcels for HAF programme,08/12/2021,0163057,"10,000.00",Revenue,Living Waters Storehouse,60925,,
Chorley Borough Council,http://statistics.data.gov.uk/id/local-authority/30UE,Central Support Services,1009,Communities,Core Funding Grants,40133,Grants and Subscriptions,5031,Core Small Funding Grant,08/12/2021,0163095,500.00,Revenue,Living Waters Storehouse,60925,,
Chorley Borough Council,http://statistics.data.gov.uk/id/local-authority/30UE,Corporate Management,1008,Policy & Governance,Miscellaneous Expenses,40200,Miscellaneous Expenses,5034,GRN'd in full but should have been for 2 invoices and uaed in full against first,01/12/2021,0160012,300.00,Revenue,Loop Publishing Ltd,18770,,
Chorley Borough Council,http://statistics.data.gov.uk/id/local-authority/30UE,Corporate Management,1008,Policy & Governance,Miscellaneous Expenses,40200,Miscellaneous Expenses,5034,Full page in Northern Life Magazine to promote Christmas in Chorley offer,22/12/2021,0163711,550.00,Revenue,Loop Publishing Ltd,18770,,
Chorley Borough Council,http://statistics.data.gov.uk/id/local-authority/30UE,Central Support Services,1009,Policy & Governance,Exhibitions & Special Events,40158,Miscellaneous Expenses,5034,Entertaining at Lights Switch On,22/12/2021,0163692,500.00,Revenue,Louby Lou Ltd,76335,,
Chorley Borough Council,http://statistics.data.gov.uk/id/local-authority/30UE,Recreation & Sport,1037,Communities,Stationery,40050,"Printing, Stationery & General",5026,"BX20 THERMAL TILL ROLL TR5740 57X40MM, BX5000 LEITZ 26/6 STAPLES, MICRON B/PEN FINE BLK, Ink Multipack",08/12/2021,0158801,274.36,Revenue,Lyreco UK Ltd,17623,,
Chorley Borough Council,http://statistics.data.gov.uk/id/local-authority/30UE,Central Support Services,1009,Policy & Governance,Stationery,40050,"Printing, Stationery & General",5026,HP Magenta Ink Cartridge 953,08/12/2021,0162494,17.77,Revenue,Lyreco UK Ltd,17623,,
Chorley Borough Council,http://statistics.data.gov.uk/id/local-authority/30UE,Central Support Services,1009,Policy & Governance,Stationery,40050,"Printing, Stationery & General",5026,HP Blue Ink Cartridge 953,08/12/2021,0162494,17.77,Revenue,Lyreco UK Ltd,17623,,
Chorley Borough Council,http://statistics.data.gov.uk/id/local-authority/30UE,Central Support Services,1009,Policy & Governance,Stationery,40050,"Printing, Stationery & General",5026,HP Yellow Ink Cartridge 953,08/12/2021,0162494,53.31,Revenue,Lyreco UK Ltd,17623,,
Chorley Borough Council,http://statistics.data.gov.uk/id/local-authority/30UE,Central Support Services,1009,Policy & Governance,Stationery,40050,"Printing, Stationery & General",5026,4340HP Black Ink Cartridge 953,08/12/2021,0162494,97.04,Revenue,Lyreco UK Ltd,17623,,
Chorley Borough Council,http://statistics.data.gov.uk/id/local-authority/30UE,Central Support Services,1009,Policy & Governance,Stationery,40050,"Printing, Stationery & General",5026,Micron Stick Ball Point,08/12/2021,0162494,3.00,Revenue,Lyreco UK Ltd,17623,,
Chorley Borough Council,http://statistics.data.gov.uk/id/local-authority/30UE,Central Support Services,1009,Policy & Governance,Stationery,40050,"Printing, Stationery & General",5026,KEY CABINET GREY,08/12/2021,0162494,49.27,Revenue,Lyreco UK Ltd,17623,,
Chorley Borough Council,http://statistics.data.gov.uk/id/local-authority/30UE,Central Support Services,1009,Policy & Governance,Stationery,40050,"Printing, Stationery & General",5026,BALL SISAL TWINE 3PLY 2.5KG,08/12/2021,0162494,19.26,Revenue,Lyreco UK Ltd,17623,,
Chorley Borough Council,http://statistics.data.gov.uk/id/local-authority/30UE,Central Support Services,1009,Policy & Governance,Stationery,40050,"Printing, Stationery & General",5026,PK5 EXACOMPTA DOC WALLET A4 VELCRO ASSTD,08/12/2021,0162494,43.45,Revenue,Lyreco UK Ltd,17623,,
Chorley Borough Council,http://statistics.data.gov.uk/id/local-authority/30UE,Central Support Services,1009,Policy & Governance,Stationery,40050,"Printing, Stationery & General",5026,Pukka White A4 Wirebound Pads (Ruled/Margin) - Pack Of 5 (5 X 100 Sheets),08/12/2021,0162494,35.55,Revenue,Lyreco UK Ltd,17623,,
Chorley Borough Council,http://statistics.data.gov.uk/id/local-authority/30UE,Parking Services,1066,Commercial & Property,Salting & Gritting,20059,Grounds Maintenance Costs,5013,"1 x pallet of salt free non-corrosive de-icer, Price: 29.75 per 25kg, (1 pallet 40x25kgs), delivery to Chorley Council Depot",01/12/2021,0162887,"1,190.00",Revenue,Maclin Sourcing Solutions Ltd,78066,,
Chorley Borough Council,http://statistics.data.gov.uk/id/local-authority/30UE,Recreation & Sport,1037,Communities,Other Materials,40032,"Equipment, Furniture & Materia",5023,"465022 All seasons Leisure Centre Latex Cap-R2, 465022 Brinscall Swimming Pool Latex Caps-R2",22/12/2021,0163498,275.00,Revenue,Mares S.p.A,82058,,
Chorley Borough Council,http://statistics.data.gov.uk/id/local-authority/30UE,Corporate Management,1008,Policy & Governance,Agency Staff,13000,Direct Employee Expenses,5001,NAME REDACTED,01/12/2021,0162832,558.99,Revenue,Matrix SCM Ltd,22128,,
Chorley Borough Council,http://statistics.data.gov.uk/id/local-authority/30UE,Corporate Management,1008,Policy & Governance,Agency Staff,13000,Direct Employee Expenses,5001,NAME REDACTED,01/12/2021,0162832,711.00,Revenue,Matrix SCM Ltd,22128,,
Chorley Borough Council,http://statistics.data.gov.uk/id/local-authority/30UE,Corporate Management,1008,Policy & Governance,Agency Staff,13000,Direct Employee Expenses,5001,NAME REDACTED,01/12/2021,0162917,555.32,Revenue,Matrix SCM Ltd,22128,,
Chorley Borough Council,http://statistics.data.gov.uk/id/local-authority/30UE,Corporate Management,1008,Policy & Governance,Agency Staff,13000,Direct Employee Expenses,5001,NAME REDACTED,01/12/2021,0162917,739.44,Revenue,Matrix SCM Ltd,22128,,
Chorley Borough Council,http://statistics.data.gov.uk/id/local-authority/30UE,Corporate Management,1008,Policy & Governance,Agency Staff,13000,Direct Employee Expenses,5001,NAME REDACTED,22/12/2021,0163320,562.68,Revenue,Matrix SCM Ltd,22128,,
Chorley Borough Council,http://statistics.data.gov.uk/id/local-authority/30UE,Corporate Management,1008,Policy & Governance,Agency Staff,13000,Direct Employee Expenses,5001,NAME REDACTED,22/12/2021,0163320,113.76,Revenue,Matrix SCM Ltd,22128,,
Chorley Borough Council,http://statistics.data.gov.uk/id/local-authority/30UE,Central Support Services,1009,Commercial & Property,Planned Maintenance,20006,Repairs Maintenance & Alts,5005,"Legionella monitoring Astley Hall, Coach House and Farmhouse",15/12/2021,0163429,75.00,Revenue,Maxigiene Environmental Services Ltd,67160,,
Chorley Borough Council,http://statistics.data.gov.uk/id/local-authority/30UE,Central Support Services,1009,Commercial & Property,Planned Maintenance,20006,Repairs Maintenance & Alts,5005,"Legionella monitoring Parks Buildings -  Devonshire rec, harpers rec",15/12/2021,0163429,40.00,Revenue,Maxigiene Environmental Services Ltd,67160,,
Chorley Borough Council,http://statistics.data.gov.uk/id/local-authority/30UE,Central Support Services,1009,Commercial & Property,Planned Maintenance,20006,Repairs Maintenance & Alts,5005,Legionella monitoring Community centres,15/12/2021,0163429,169.16,Revenue,Maxigiene Environmental Services Ltd,67160,,
Chorley Borough Council,http://statistics.data.gov.uk/id/local-authority/30UE,Central Support Services,1009,Commercial & Property,Planned Maintenance,20006,Repairs Maintenance & Alts,5005,Legionella monitoring WC's including cemetery wc,15/12/2021,0163429,65.00,Revenue,Maxigiene Environmental Services Ltd,67160,,
Chorley Borough Council,http://statistics.data.gov.uk/id/local-authority/30UE,Central Support Services,1009,Commercial & Property,Planned Maintenance,20006,Repairs Maintenance & Alts,5005,Legionella monitoring sports pitches/pavilions,15/12/2021,0163429,72.08,Revenue,Maxigiene Environmental Services Ltd,67160,,
Chorley Borough Council,http://statistics.data.gov.uk/id/local-authority/30UE,Central Support Services,1009,Commercial & Property,Planned Maintenance,20006,Repairs Maintenance & Alts,5005,Legionella monitoring Bengal St,15/12/2021,0163429,25.00,Revenue,Maxigiene Environmental Services Ltd,67160,,
Chorley Borough Council,http://statistics.data.gov.uk/id/local-authority/30UE,Central Support Services,1009,Commercial & Property,Planned Maintenance,20006,Repairs Maintenance & Alts,5005,Legionella monitoring chorley cem,15/12/2021,0163429,20.00,Revenue,Maxigiene Environmental Services Ltd,67160,,
Chorley Borough Council,http://statistics.data.gov.uk/id/local-authority/30UE,Community Development,1097,Commercial & Property,Planned Maintenance,20006,Repairs Maintenance & Alts,5005,Legionella monitoring CAB (CIC),15/12/2021,0163429,20.00,Revenue,Maxigiene Environmental Services Ltd,67160,,
Chorley Borough Council,http://statistics.data.gov.uk/id/local-authority/30UE,Business Support,1095,Commercial & Property,Planned Maintenance,20006,Repairs Maintenance & Alts,5005,Legionella monitoring MW Mgt,15/12/2021,0163429,20.00,Revenue,Maxigiene Environmental Services Ltd,67160,,
Chorley Borough Council,http://statistics.data.gov.uk/id/local-authority/30UE,Central Support Services,1009,Commercial & Property,Planned Maintenance,20006,Repairs Maintenance & Alts,5005,Legionella monitoring Cotswold House,15/12/2021,0163429,20.00,Revenue,Maxigiene Environmental Services Ltd,67160,,
Chorley Borough Council,http://statistics.data.gov.uk/id/local-authority/30UE,Central Support Services,1009,Commercial & Property,Planned Maintenance,20006,Repairs Maintenance & Alts,5005,Legionella monitoring Market,15/12/2021,0163429,20.00,Revenue,Maxigiene Environmental Services Ltd,67160,,
Chorley Borough Council,http://statistics.data.gov.uk/id/local-authority/30UE,Central Support Services,1009,Commercial & Property,Planned Maintenance,20006,Repairs Maintenance & Alts,5005,Legionella monitoring Primrose,15/12/2021,0163429,30.00,Revenue,Maxigiene Environmental Services Ltd,67160,,
Chorley Borough Council,http://statistics.data.gov.uk/id/local-authority/30UE,Business Support,1095,Commercial & Property,Planned Maintenance,20006,Repairs Maintenance & Alts,5005,Legionella monitoring DOP,15/12/2021,0163429,30.00,Revenue,Maxigiene Environmental Services Ltd,67160,,
Chorley Borough Council,http://statistics.data.gov.uk/id/local-authority/30UE,Central Support Services,1009,Commercial & Property,Planned Maintenance,20006,Repairs Maintenance & Alts,5005,Legionella monitoring Town Hall,15/12/2021,0163429,25.00,Revenue,Maxigiene Environmental Services Ltd,67160,,
Chorley Borough Council,http://statistics.data.gov.uk/id/local-authority/30UE,Central Support Services,1009,Commercial & Property,Planned Maintenance,20006,Repairs Maintenance & Alts,5005,Legionella monitoring Union St,15/12/2021,0163429,25.00,Revenue,Maxigiene Environmental Services Ltd,67160,,
Chorley Borough Council,http://statistics.data.gov.uk/id/local-authority/30UE,Central Support Services,1009,Commercial & Property,General Repairs - Reactive,20004,Repairs Maintenance & Alts,5005,Ref: Car parks Your Order No 12948 To clear a number of blocked gulleys to 3 car parks,01/12/2021,0158243,560.00,Revenue,Michael Roe,78294,,
Chorley Borough Council,http://statistics.data.gov.uk/id/local-authority/30UE,Central Support Services,1009,Commercial & Property,General Repairs - Reactive,20004,Repairs Maintenance & Alts,5005,Astley Hall surface water drains at front,01/12/2021,0162970,280.00,Revenue,Michael Roe,78294,,
Chorley Borough Council,http://statistics.data.gov.uk/id/local-authority/30UE,Service Management & Support,1009,Customer & Digital,Maintenance Street Furniture,20055,Grounds Maintenance Costs,5013,Byers Walk x2 (both on rails) Belmont Drive (on rails) Springwood Drive x2 (both on rails) Sharratts Path x2 (both on rails),15/12/2021,0161883,295.00,Revenue,Midland Signs (Leicester) Ltd,16606,,
Chorley Borough Council,http://statistics.data.gov.uk/id/local-authority/30UE,Capital,Capital,Communities,Grants,03002,Capital Expenditure,Capital,NAME REDACTED,08/12/2021,0163171,"5,052.70",Capital,Mint Northwest Ltd,65607,,
Chorley Borough Council,http://statistics.data.gov.uk/id/local-authority/30UE,Capital,Capital,Communities,Grants,03002,Capital Expenditure,Capital,21/00064/DFG,08/12/2021,0163172,"4,184.03",Capital,Mint Northwest Ltd,65607,,
Chorley Borough Council,http://statistics.data.gov.uk/id/local-authority/30UE,Capital,Capital,Communities,Grants,03002,Capital Expenditure,Capital,ADDRESS REDACTED,15/12/2021,0163539,"3,741.24",Capital,Mint Northwest Ltd,65607,,
Chorley Borough Council,http://statistics.data.gov.uk/id/local-authority/30UE,Capital,Capital,Communities,Grants,03002,Capital Expenditure,Capital,ADDRESS REDACTED,15/12/2021,0163543,"3,914.57",Capital,Mint Northwest Ltd,65607,,
Chorley Borough Council,http://statistics.data.gov.uk/id/local-authority/30UE,Private Sector HSG Renewal,1073,Communities,External Contractor,40198,Miscellaneous Expenses,5034,Ref 5415,15/12/2021,0162840,120.00,Revenue,Mobility Care Services,70841,,
Chorley Borough Council,http://statistics.data.gov.uk/id/local-authority/30UE,Private Sector HSG Renewal,1073,Communities,External Contractor,40198,Miscellaneous Expenses,5034,Ref 5416,15/12/2021,0162840,260.00,Revenue,Mobility Care Services,70841,,
Chorley Borough Council,http://statistics.data.gov.uk/id/local-authority/30UE,Private Sector HSG Renewal,1073,Communities,External Contractor,40198,Miscellaneous Expenses,5034,Ref 5417,15/12/2021,0162840,390.00,Revenue,Mobility Care Services,70841,,
Chorley Borough Council,http://statistics.data.gov.uk/id/local-authority/30UE,Private Sector HSG Renewal,1073,Communities,External Contractor,40198,Miscellaneous Expenses,5034,Ref 5418,15/12/2021,0162840,130.00,Revenue,Mobility Care Services,70841,,
Chorley Borough Council,http://statistics.data.gov.uk/id/local-authority/30UE,Private Sector HSG Renewal,1073,Communities,External Contractor,40198,Miscellaneous Expenses,5034,Ref 5419,15/12/2021,0162840,280.00,Revenue,Mobility Care Services,70841,,
Chorley Borough Council,http://statistics.data.gov.uk/id/local-authority/30UE,Private Sector HSG Renewal,1073,Communities,External Contractor,40198,Miscellaneous Expenses,5034,Ref 5434,15/12/2021,0162840,67.00,Revenue,Mobility Care Services,70841,,
Chorley Borough Council,http://statistics.data.gov.uk/id/local-authority/30UE,Private Sector HSG Renewal,1073,Communities,External Contractor,40198,Miscellaneous Expenses,5034,Ref 5301,15/12/2021,0162840,67.00,Revenue,Mobility Care Services,70841,,
Chorley Borough Council,http://statistics.data.gov.uk/id/local-authority/30UE,Private Sector HSG Renewal,1073,Communities,External Contractor,40198,Miscellaneous Expenses,5034,Ref 5309,15/12/2021,0162840,390.00,Revenue,Mobility Care Services,70841,,
Chorley Borough Council,http://statistics.data.gov.uk/id/local-authority/30UE,Private Sector HSG Renewal,1073,Communities,External Contractor,40198,Miscellaneous Expenses,5034,Ref 5310,15/12/2021,0162840,112.75,Revenue,Mobility Care Services,70841,,
Chorley Borough Council,http://statistics.data.gov.uk/id/local-authority/30UE,Private Sector HSG Renewal,1073,Communities,External Contractor,40198,Miscellaneous Expenses,5034,Ref 5311,15/12/2021,0162840,50.25,Revenue,Mobility Care Services,70841,,
Chorley Borough Council,http://statistics.data.gov.uk/id/local-authority/30UE,Private Sector HSG Renewal,1073,Communities,External Contractor,40198,Miscellaneous Expenses,5034,Ref 5312,15/12/2021,0162840,480.00,Revenue,Mobility Care Services,70841,,
Chorley Borough Council,http://statistics.data.gov.uk/id/local-authority/30UE,Private Sector HSG Renewal,1073,Communities,External Contractor,40198,Miscellaneous Expenses,5034,Ref 5313,15/12/2021,0162840,480.00,Revenue,Mobility Care Services,70841,,
Chorley Borough Council,http://statistics.data.gov.uk/id/local-authority/30UE,Private Sector HSG Renewal,1073,Communities,External Contractor,40198,Miscellaneous Expenses,5034,Ref 5314,15/12/2021,0162840,112.75,Revenue,Mobility Care Services,70841,,
Chorley Borough Council,http://statistics.data.gov.uk/id/local-authority/30UE,Private Sector HSG Renewal,1073,Communities,External Contractor,40198,Miscellaneous Expenses,5034,Ref 5315,15/12/2021,0162840,112.75,Revenue,Mobility Care Services,70841,,
Chorley Borough Council,http://statistics.data.gov.uk/id/local-authority/30UE,Private Sector HSG Renewal,1073,Communities,External Contractor,40198,Miscellaneous Expenses,5034,Ref 5318,15/12/2021,0162840,90.00,Revenue,Mobility Care Services,70841,,
Chorley Borough Council,http://statistics.data.gov.uk/id/local-authority/30UE,Private Sector HSG Renewal,1073,Communities,External Contractor,40198,Miscellaneous Expenses,5034,Ref 5443,15/12/2021,0162840,83.75,Revenue,Mobility Care Services,70841,,
Chorley Borough Council,http://statistics.data.gov.uk/id/local-authority/30UE,Private Sector HSG Renewal,1073,Communities,External Contractor,40198,Miscellaneous Expenses,5034,Ref 5362,15/12/2021,0162840,67.00,Revenue,Mobility Care Services,70841,,
Chorley Borough Council,http://statistics.data.gov.uk/id/local-authority/30UE,Private Sector HSG Renewal,1073,Communities,External Contractor,40198,Miscellaneous Expenses,5034,Ref 5363,15/12/2021,0162840,67.00,Revenue,Mobility Care Services,70841,,
Chorley Borough Council,http://statistics.data.gov.uk/id/local-authority/30UE,Private Sector HSG Renewal,1073,Communities,External Contractor,40198,Miscellaneous Expenses,5034,Ref 5364,15/12/2021,0162840,67.00,Revenue,Mobility Care Services,70841,,
Chorley Borough Council,http://statistics.data.gov.uk/id/local-authority/30UE,Private Sector HSG Renewal,1073,Communities,External Contractor,40198,Miscellaneous Expenses,5034,Ref 5385,15/12/2021,0162840,50.25,Revenue,Mobility Care Services,70841,,
Chorley Borough Council,http://statistics.data.gov.uk/id/local-authority/30UE,Private Sector HSG Renewal,1073,Communities,External Contractor,40198,Miscellaneous Expenses,5034,Ref 5397,15/12/2021,0162840,50.25,Revenue,Mobility Care Services,70841,,
Chorley Borough Council,http://statistics.data.gov.uk/id/local-authority/30UE,Private Sector HSG Renewal,1073,Communities,External Contractor,40198,Miscellaneous Expenses,5034,Ref 5435,15/12/2021,0162840,83.75,Revenue,Mobility Care Services,70841,,
Chorley Borough Council,http://statistics.data.gov.uk/id/local-authority/30UE,Private Sector HSG Renewal,1073,Communities,External Contractor,40198,Miscellaneous Expenses,5034,Ref 5469,08/12/2021,0163287,112.75,Revenue,Mobility Care Services,70841,,
Chorley Borough Council,http://statistics.data.gov.uk/id/local-authority/30UE,Private Sector HSG Renewal,1073,Communities,External Contractor,40198,Miscellaneous Expenses,5034,Ref 5484,08/12/2021,0163287,67.00,Revenue,Mobility Care Services,70841,,
Chorley Borough Council,http://statistics.data.gov.uk/id/local-authority/30UE,Private Sector HSG Renewal,1073,Communities,External Contractor,40198,Miscellaneous Expenses,5034,Ref 5485,08/12/2021,0163287,67.00,Revenue,Mobility Care Services,70841,,
Chorley Borough Council,http://statistics.data.gov.uk/id/local-authority/30UE,Private Sector HSG Renewal,1073,Communities,External Contractor,40198,Miscellaneous Expenses,5034,Ref 5503,08/12/2021,0163287,67.00,Revenue,Mobility Care Services,70841,,
Chorley Borough Council,http://statistics.data.gov.uk/id/local-authority/30UE,Private Sector HSG Renewal,1073,Communities,External Contractor,40198,Miscellaneous Expenses,5034,Ref 5520,08/12/2021,0163287,67.00,Revenue,Mobility Care Services,70841,,
Chorley Borough Council,http://statistics.data.gov.uk/id/local-authority/30UE,Private Sector HSG Renewal,1073,Communities,External Contractor,40198,Miscellaneous Expenses,5034,Ref 5521,08/12/2021,0163287,67.00,Revenue,Mobility Care Services,70841,,
Chorley Borough Council,http://statistics.data.gov.uk/id/local-authority/30UE,Private Sector HSG Renewal,1073,Communities,External Contractor,40198,Miscellaneous Expenses,5034,Ref 5522,08/12/2021,0163287,67.00,Revenue,Mobility Care Services,70841,,
Chorley Borough Council,http://statistics.data.gov.uk/id/local-authority/30UE,Private Sector HSG Renewal,1073,Communities,External Contractor,40198,Miscellaneous Expenses,5034,Ref 5536,08/12/2021,0163287,67.00,Revenue,Mobility Care Services,70841,,
Chorley Borough Council,http://statistics.data.gov.uk/id/local-authority/30UE,Private Sector HSG Renewal,1073,Communities,External Contractor,40198,Miscellaneous Expenses,5034,Ref 5537,08/12/2021,0163287,67.00,Revenue,Mobility Care Services,70841,,
Chorley Borough Council,http://statistics.data.gov.uk/id/local-authority/30UE,Private Sector HSG Renewal,1073,Communities,External Contractor,40198,Miscellaneous Expenses,5034,Ref 5567,08/12/2021,0163287,112.75,Revenue,Mobility Care Services,70841,,
Chorley Borough Council,http://statistics.data.gov.uk/id/local-authority/30UE,Private Sector HSG Renewal,1073,Communities,External Contractor,40198,Miscellaneous Expenses,5034,Ref 5568,08/12/2021,0163287,112.75,Revenue,Mobility Care Services,70841,,
Chorley Borough Council,http://statistics.data.gov.uk/id/local-authority/30UE,Private Sector HSG Renewal,1073,Communities,External Contractor,40198,Miscellaneous Expenses,5034,Ref 5577,08/12/2021,0163287,50.25,Revenue,Mobility Care Services,70841,,
Chorley Borough Council,http://statistics.data.gov.uk/id/local-authority/30UE,Private Sector HSG Renewal,1073,Communities,External Contractor,40198,Miscellaneous Expenses,5034,Ref 5441,08/12/2021,0163287,67.00,Revenue,Mobility Care Services,70841,,
Chorley Borough Council,http://statistics.data.gov.uk/id/local-authority/30UE,Private Sector HSG Renewal,1073,Communities,External Contractor,40198,Miscellaneous Expenses,5034,Ref 5442,08/12/2021,0163287,260.00,Revenue,Mobility Care Services,70841,,
Chorley Borough Council,http://statistics.data.gov.uk/id/local-authority/30UE,Private Sector HSG Renewal,1073,Communities,External Contractor,40198,Miscellaneous Expenses,5034,Ref 5443,08/12/2021,0163287,130.00,Revenue,Mobility Care Services,70841,,
Chorley Borough Council,http://statistics.data.gov.uk/id/local-authority/30UE,Private Sector HSG Renewal,1073,Communities,External Contractor,40198,Miscellaneous Expenses,5034,Ref 5444,08/12/2021,0163287,130.00,Revenue,Mobility Care Services,70841,,
Chorley Borough Council,http://statistics.data.gov.uk/id/local-authority/30UE,Private Sector HSG Renewal,1073,Communities,External Contractor,40198,Miscellaneous Expenses,5034,Ref 5466,08/12/2021,0163287,260.00,Revenue,Mobility Care Services,70841,,
Chorley Borough Council,http://statistics.data.gov.uk/id/local-authority/30UE,Private Sector HSG Renewal,1073,Communities,External Contractor,40198,Miscellaneous Expenses,5034,Ref 5467,08/12/2021,0163287,225.50,Revenue,Mobility Care Services,70841,,
Chorley Borough Council,http://statistics.data.gov.uk/id/local-authority/30UE,Private Sector HSG Renewal,1073,Communities,External Contractor,40198,Miscellaneous Expenses,5034,Ref 5468,08/12/2021,0163287,260.00,Revenue,Mobility Care Services,70841,,
Chorley Borough Council,http://statistics.data.gov.uk/id/local-authority/30UE,Capital,Capital,Commercial & Property,Other Capital Related Fees,03024,Capital Expenditure,Capital,"Market Walk Ext Unit 4a, Manufacture, supply and installation of a structural steel access platform",15/12/2021,0163343,"12,450.00",Capital,Morgan Brothers Metalwork Solutions,76663,,
Chorley Borough Council,http://statistics.data.gov.uk/id/local-authority/30UE,Development Control,1091,Policy & Governance,Legal Fees,40171,Miscellaneous Expenses,5034,"Professional Fees of Ian Ponter - Blainscough Lane Planning Appeal, Brief on Case Management Hearing - Prep and cmc",08/12/2021,0162546,"1,125.00",Revenue,Mr Ian Ponter,19968,,
Chorley Borough Council,http://statistics.data.gov.uk/id/local-authority/30UE,Capital,Capital,Communities,Grants,03002,Capital Expenditure,Capital,NAME REDACTED,08/12/2021,0163165,300.00,Capital,NAME REDACTED,78191,,
Chorley Borough Council,http://statistics.data.gov.uk/id/local-authority/30UE,Central Support Services,1009,Policy & Governance,Processional Routes,40177,Miscellaneous Expenses,5034,8PP A5 Self Cover Remembrance Day Order of Service 2021. Quantity 3000.,15/12/2021,0162858,351.00,Revenue,N B Colour Print Ltd,17917,,
Chorley Borough Council,http://statistics.data.gov.uk/id/local-authority/30UE,Tourism,1039,Policy & Governance,Publicity - Advertising,40157,Miscellaneous Expenses,5034,Estimate No: 43356 12 page A5 Sweet Pea Booklet Qty 1000 Delivery to NAME REDACTED,01/12/2021,0162860,388.00,Revenue,N B Colour Print Ltd,17917,,
Chorley Borough Council,http://statistics.data.gov.uk/id/local-authority/30UE,Central Support Services,1009,Commercial & Property,Professional Fees,40063,Services,5027,"Alker Lane BAPA: initial meetings, site attendance and discussions",01/12/2021,0159734,"1,839.96",Revenue,Network Rail Infrastructure Ltd,20759,,
Chorley Borough Council,http://statistics.data.gov.uk/id/local-authority/30UE,Capital,Capital,Commercial & Property,Other Capital Related Fees,03024,Capital Expenditure,Capital,Service requirements changed to 24 hour cover at Westway,08/12/2021,0160159,"2,016.00",Capital,New Concept Security NW Ltd T/A New Concept Goup,80488,,
Chorley Borough Council,http://statistics.data.gov.uk/id/local-authority/30UE,Business Support,1095,Commercial & Property,Security Service,40062,Services,5027,"Evening Site Security Services at Market Walk Shopping Centre, 5pm until midnight, From 1st April 2021 to End March 2022",08/12/2021,0161456,904.75,Revenue,New Concept Security NW Ltd T/A New Concept Goup,80488,,
Chorley Borough Council,http://statistics.data.gov.uk/id/local-authority/30UE,Business Support,1095,Commercial & Property,Security Service,40062,Services,5027,"Evening Site Security Services at Market Walk Shopping Centre, 5pm until midnight, From 1st April 2021 to End March 2022",08/12/2021,0162319,740.25,Revenue,New Concept Security NW Ltd T/A New Concept Goup,80488,,
Chorley Borough Council,http://statistics.data.gov.uk/id/local-authority/30UE,Business Support,1095,Commercial & Property,Security Service,40062,Services,5027,"Evening Site Security Services at Market Walk Shopping Centre, 5pm until midnight, From 1st April 2021 to End March 2022",08/12/2021,0162861,881.25,Revenue,New Concept Security NW Ltd T/A New Concept Goup,80488,,
Chorley Borough Council,http://statistics.data.gov.uk/id/local-authority/30UE,Business Support,1095,Commercial & Property,Security Service,40062,Services,5027,"Evening Site Security Services at Market Walk Shopping Centre, 5pm until midnight, From 1st April 2021 to End March 2022",15/12/2021,0163342,904.75,Revenue,New Concept Security NW Ltd T/A New Concept Goup,80488,,
Chorley Borough Council,http://statistics.data.gov.uk/id/local-authority/30UE,Central Support Services,1009,Customer & Digital,IT Software - Annual Licences,40101,Communication and Computing,5028,"Lot 1 DNS Services - Call Off Charges (Q1 - Feb 21- April 21), Community Charge, Individual quarterly invoice charge",22/12/2021,0163433,765.94,Revenue,Nominet UK,81408,,
Chorley Borough Council,http://statistics.data.gov.uk/id/local-authority/30UE,Central Support Services,1009,Customer & Digital,Computer Equipment - Security,40106,Communication and Computing,5028,DNS - call off charges 2021/2022,22/12/2021,0163713,765.94,Revenue,Nominet UK,81408,,
Chorley Borough Council,http://statistics.data.gov.uk/id/local-authority/30UE,Central Support Services,1009,Customer & Digital,Computer Equipment - Security,40106,Communication and Computing,5028,DNS - call off charges 2021/2022,22/12/2021,0163741,765.94,Revenue,Nominet UK,81408,,
Chorley Borough Council,http://statistics.data.gov.uk/id/local-authority/30UE,Corporate Management,1008,Customer & Digital,Hire Of Vehicles and Plant,30028,Contrct Hire & Operating Lease,5018,"3 x Ford transit Connect vans 72 days hire to the 20th December net value for 3 vans @ 9.29 each- 2,006.64p",22/12/2021,0162924,260.12,Revenue,Northgate Vehicle Hire (NW) Ltd,17360,,
Chorley Borough Council,http://statistics.data.gov.uk/id/local-authority/30UE,Corporate Management,1008,Customer & Digital,Hire Of Vehicles and Plant,30028,Contrct Hire & Operating Lease,5018,"3 x Ford transit Connect vans 72 days hire to the 20th December net value for 3 vans @ 9.29 each- 2,006.64p",22/12/2021,0162977,260.12,Revenue,Northgate Vehicle Hire (NW) Ltd,17360,,
Chorley Borough Council,http://statistics.data.gov.uk/id/local-authority/30UE,Recreation & Sport,1037,Commercial & Property,Electricity,20013,Energy Costs,5006,1/11 to 30/11/21,15/12/2021,0163363,972.15,Revenue,Npower Commercial Gas,16814,,
Chorley Borough Council,http://statistics.data.gov.uk/id/local-authority/30UE,Recreation & Sport,1037,Commercial & Property,Electricity,20013,Energy Costs,5006,1/11 to 30/11/21,15/12/2021,0163364,"5,909.78",Revenue,Npower Commercial Gas,16814,,
Chorley Borough Council,http://statistics.data.gov.uk/id/local-authority/30UE,Central Support Services,1009,Commercial & Property,Electricity,20013,Energy Costs,5006,1/11 to 30/11/21,22/12/2021,0163574,"2,923.77",Revenue,Npower Commercial Gas,16814,,
Chorley Borough Council,http://statistics.data.gov.uk/id/local-authority/30UE,Service Management Support,1009,Commercial & Property,Electricity,20013,Energy Costs,5006,1/11 to 30/11/21,22/12/2021,0163579,254.88,Revenue,Npower Commercial Gas,16814,,
Chorley Borough Council,http://statistics.data.gov.uk/id/local-authority/30UE,Central Support Services,1009,Commercial & Property,Electricity,20013,Energy Costs,5006,1/11 to 30/11/21,22/12/2021,0163580,"1,272.51",Revenue,Npower Commercial Gas,16814,,
Chorley Borough Council,http://statistics.data.gov.uk/id/local-authority/30UE,Open Spaces,1038,Commercial & Property,Electricity,20013,Energy Costs,5006,1/11 to 30/11/21,22/12/2021,0163582,"1,589.24",Revenue,Npower Commercial Gas,16814,,
Chorley Borough Council,http://statistics.data.gov.uk/id/local-authority/30UE,Central Support Services,1009,Commercial & Property,Electricity,20013,Energy Costs,5006,1/11 to 30/11/21,22/12/2021,0163584,"2,439.48",Revenue,Npower Commercial Gas,16814,,
Chorley Borough Council,http://statistics.data.gov.uk/id/local-authority/30UE,Parking Services,1066,Commercial & Property,External Contractors,50008,Private Contractors,5042,Provision of Off Street Car Park Cash Collection & Enforcement - final year of contract 01.11.21 to 31.10.22,15/12/2021,0163308,"4,961.70",Revenue,NSL Limited,67253,,
Chorley Borough Council,http://statistics.data.gov.uk/id/local-authority/30UE,Central Support Services,1009,Policy & Governance,Exhibitions & Special Events,40158,Miscellaneous Expenses,5034,Betty's Tipis for Chorley's Winter Wonderland 1000 per week (4 week period),22/12/2021,0163712,"1,000.00",Revenue,Outside Events Ltd,84236,,
Chorley Borough Council,http://statistics.data.gov.uk/id/local-authority/30UE,Parking Services,1066,Commercial & Property,Printing,40043,"Printing, Stationery & General",5026,"Please supply 200k Stelio Adhesive, Check out Chorley tickets, Please deliver FAO: NAME REDACTED, PR7 1DE",15/12/2021,0163495,"1,473.33",Revenue,Paperwork (UK) Limited,18296,,
Chorley Borough Council,http://statistics.data.gov.uk/id/local-authority/30UE,Planning Policy,1092,Communities,Operational Employees Salaries,10000,Direct Employee Expenses,5001,Temporary Agency Staff (Standard Hours) for work on the Central Lancashire Local Plan,01/12/2021,0162845,644.00,Revenue,Park Avenue Recruitment Ltd,82305,,
Chorley Borough Council,http://statistics.data.gov.uk/id/local-authority/30UE,Planning Policy,1092,Communities,Operational Employees Salaries,10000,Direct Employee Expenses,5001,Temporary Agency Staff (Standard Hours) for work on the Central Lancashire Local Plan,01/12/2021,0162930,"1,046.50",Revenue,Park Avenue Recruitment Ltd,82305,,
Chorley Borough Council,http://statistics.data.gov.uk/id/local-authority/30UE,Planning Policy,1092,Communities,Operational Employees Salaries,10000,Direct Employee Expenses,5001,Temporary Agency Staff (Standard Hours) for work on the Central Lancashire Local Plan,08/12/2021,0163272,989.00,Revenue,Park Avenue Recruitment Ltd,82305,,
Chorley Borough Council,http://statistics.data.gov.uk/id/local-authority/30UE,Culture & Heritage,1036,Policy & Governance,Cleaning Materials,40019,"Equipment, Furniture & Materia",5023,"Delivery to Astley Hall, Chorley. mop heads green, yellow and red, x2 of each colour, Jangro centrefeed roll (6), Jumbo toilet roll",01/12/2021,0162493,318.44,Revenue,Pattersons Holdings (Bristol),77537,,
Chorley Borough Council,http://statistics.data.gov.uk/id/local-authority/30UE,Economic Development,1096,Commercial & Property,Cleaning Materials,40019,"Equipment, Furniture & Materia",5023,Please supply cleaning materials as per email,15/12/2021,0163275,380.71,Revenue,Pattersons Holdings (Bristol),77537,,
Chorley Borough Council,http://statistics.data.gov.uk/id/local-authority/30UE,Central Support Services,1009,Policy & Governance,Exhibitions & Special Events,40158,Miscellaneous Expenses,5034,Photography at events throughout 2021,01/12/2021,0162868,300.00,Revenue,Paul Heyes Photographer,20909,,
Chorley Borough Council,http://statistics.data.gov.uk/id/local-authority/30UE,Central Support Services,1009,Policy & Governance,Exhibitions & Special Events,40158,Miscellaneous Expenses,5034,Photography at events throughout 2021,22/12/2021,0163646,300.00,Revenue,Paul Heyes Photographer,20909,,
Chorley Borough Council,http://statistics.data.gov.uk/id/local-authority/30UE,Central Support Services,1009,Policy & Governance,Exhibitions & Special Events,40158,Miscellaneous Expenses,5034,"Bonfire Night PA system, generator, fuel and setting up and taking down of lighting towers.",01/12/2021,0162922,890.00,Revenue,Paul K Sound & Vision,16607,,
Chorley Borough Council,http://statistics.data.gov.uk/id/local-authority/30UE,Central Support Services,1009,Policy & Governance,Exhibitions & Special Events,40158,Miscellaneous Expenses,5034,SUPPLY P.A. FOR REMEMBERANCE SERVICE P.A. AND CREW GENERATOR,08/12/2021,0163313,750.00,Revenue,Paul K Sound & Vision,16607,,
Chorley Borough Council,http://statistics.data.gov.uk/id/local-authority/30UE,Central Support Services,1009,Commercial & Property,General Repairs - Reactive,20004,Repairs Maintenance & Alts,5005,"CLAYTON GREEN SPORTS CENTRE, Repairs and renewals to the existing MUGA, Take down and remove from site",15/12/2021,0163441,"2,522.19",Revenue,Peerless Fencing Limited,78148,,
Chorley Borough Council,http://statistics.data.gov.uk/id/local-authority/30UE,Central Support Services,1009,Policy & Governance,HR Approved Occ Health Fees,15201,Indirect Employee Expenses,5002,Occupational Health Charges for October 2021,01/12/2021,0162533,315.00,Revenue,People Asset Management Limited,76487,,
Chorley Borough Council,http://statistics.data.gov.uk/id/local-authority/30UE,Central Support Services,1009,Policy & Governance,HR Approved Occ Health Fees,15201,Indirect Employee Expenses,5002,vat item,01/12/2021,0162533,203.00,Revenue,People Asset Management Limited,76487,,
Chorley Borough Council,http://statistics.data.gov.uk/id/local-authority/30UE,Central Support Services,1009,Commercial & Property,Professional Fees,40063,Services,5027,Extension to professional services,08/12/2021,0163212,"5,200.00",Revenue,Perfect Circle JV Ltd,76438,,
Chorley Borough Council,http://statistics.data.gov.uk/id/local-authority/30UE,Central Support Services,1009,Policy & Governance,HR Recruitment Expenses,15200,Indirect Employee Expenses,5002,DBS checks for staff,22/12/2021,0162520,159.96,Revenue,Personnel Checks Ltd,81534,,
Chorley Borough Council,http://statistics.data.gov.uk/id/local-authority/30UE,Central Support Services,1009,Policy & Governance,HR Recruitment Expenses,15200,Indirect Employee Expenses,5002,,22/12/2021,0162520,286.00,Revenue,Personnel Checks Ltd,81534,,
Chorley Borough Council,http://statistics.data.gov.uk/id/local-authority/30UE,Planning Policy,1092,Commercial & Property,Legal Fees,40171,Miscellaneous Expenses,5034,Professional Fees - land adj Wigan Lodge Wigan Lane Duxbury,01/12/2021,0161614,"1,677.00",Revenue,Peter E Gilkes & Co,17634,,
Chorley Borough Council,http://statistics.data.gov.uk/id/local-authority/30UE,Service Management & Support,1009,Customer & Digital,Supplies-Grounds Maintenance,40025,"Equipment, Furniture & Materia",5023,"Supply 20 Peace Lilys, 40 White Begonias, 20 Boston Ferns & 40 Ivy",08/12/2021,0162628,358.04,Revenue,Peter H Smith Limited,17088,,
Chorley Borough Council,http://statistics.data.gov.uk/id/local-authority/30UE,Central Support Services,1009,Customer & Digital,IT Software - Annual Licences,40101,Communication and Computing,5028,Microsoft 365 E3 Shared Server All Language Subscription Per User - Licence x20,22/12/2021,0162234,"1,666.60",Revenue,Phoenix Software Ltd,17046,,
Chorley Borough Council,http://statistics.data.gov.uk/id/local-authority/30UE,Service Management & Support,1009,Customer & Digital,Diesel/Derv,30007,Direct Transport Costs,5016,8000 litres road white diesel @ 1.18ppl 1200 litres red diesel @ 0.78ppl As procured via the chest,01/12/2021,0162412,"9,440.00",Revenue,Pilkington Oils,18075,,
Chorley Borough Council,http://statistics.data.gov.uk/id/local-authority/30UE,Service Management & Support,1009,Customer & Digital,Diesel/Derv,30007,Direct Transport Costs,5016,8000 litres road white diesel @ 1.18ppl 1200 litres red diesel @ 0.78ppl As procured via the chest,08/12/2021,0162492,936.00,Revenue,Pilkington Oils,18075,,
Chorley Borough Council,http://statistics.data.gov.uk/id/local-authority/30UE,Development Control,1091,Customer & Digital,Professional Fees,40063,Services,5027,Planning Enforcement Services 18 April 2021 to March 2022,22/12/2021,0161260,"1,919.00",Revenue,Planning and PACE Solutions Ltd,82083,,
Chorley Borough Council,http://statistics.data.gov.uk/id/local-authority/30UE,Development Control,1091,Customer & Digital,Professional Fees,40063,Services,5027,zero rate item,22/12/2021,0161260,13.70,Revenue,Planning and PACE Solutions Ltd,82083,,
Chorley Borough Council,http://statistics.data.gov.uk/id/local-authority/30UE,Development Control,1091,Customer & Digital,Professional Fees,40063,Services,5027,Planning Enforcement Services 18 April 2021 to March 2022,22/12/2021,0161396,"1,222.85",Revenue,Planning and PACE Solutions Ltd,82083,,
Chorley Borough Council,http://statistics.data.gov.uk/id/local-authority/30UE,Development Control,1091,Customer & Digital,Professional Fees,40063,Services,5027,vatable,22/12/2021,0161396,79.65,Revenue,Planning and PACE Solutions Ltd,82083,,
Chorley Borough Council,http://statistics.data.gov.uk/id/local-authority/30UE,Central Support Services,1009,Policy & Governance,Exhibitions & Special Events,40158,Miscellaneous Expenses,5034,"Take the display out of stock at Poppy Signs and re-install exactly as last time, Installation out of hours",01/12/2021,0162847,"1,126.47",Revenue,Poppy Signs Ltd,21898,,
Chorley Borough Council,http://statistics.data.gov.uk/id/local-authority/30UE,Parking Services,1066,Commercial & Property,Fixtures & Fittings - Purchase,20027,Fixtures and Fittings,5010,"Second Tariff Board - Cleveland St, Short Stay, 3mm aluminium panel, 90cm x 195cm. Black on rear. Full colour digital print",01/12/2021,0162856,791.42,Revenue,Poppy Signs Ltd,21898,,
Chorley Borough Council,http://statistics.data.gov.uk/id/local-authority/30UE,Central Support Services,1009,Policy & Governance,Exhibitions & Special Events,40158,Miscellaneous Expenses,5034,1 1 Unit(s) Install all the ice rink panels. 330.53 330.53,22/12/2021,0163714,330.53,Revenue,Poppy Signs Ltd,21898,,
Chorley Borough Council,http://statistics.data.gov.uk/id/local-authority/30UE,Democratic Represent and  Mgnt,1007,Policy & Governance,Member Development Programme,17007,Indirect Employee Expenses,5002,Resilience half day training  450 Chairs training for members 150,01/12/2021,0162795,600.00,Revenue,Potential Unearthed,22243,,
Chorley Borough Council,http://statistics.data.gov.uk/id/local-authority/30UE,Open Spaces,1038,Communities,Supplies-Grounds Maintenance,40025,"Equipment, Furniture & Materia",5023,Play area supply and installation at Middlewood Close in accordance with quotation submission.,08/12/2021,0159969,"20,000.00",Revenue,Proludic Ltd,22087,,
Chorley Borough Council,http://statistics.data.gov.uk/id/local-authority/30UE,Culture & Heritage,1036,Policy & Governance,Exhibitions & Special Events,40158,Miscellaneous Expenses,5034,Christmas Lighting hire and installation - Astley Hall,22/12/2021,0163691,"1,042.90",Revenue,R A Ryan,82222,,
Chorley Borough Council,http://statistics.data.gov.uk/id/local-authority/30UE,Capital,Capital,Commercial & Property,Main Contractor,03007,Capital Expenditure,Capital,Construction of Whittle GP surgery,08/12/2021,0162223,"178,582.09",Capital,Rayner Rowen Construction Limited,80915,,
Chorley Borough Council,http://statistics.data.gov.uk/id/local-authority/30UE,Capital,Capital,Commercial & Property,Main Contractor,03007,Capital Expenditure,Capital,Construction of Whittle GP surgery,08/12/2021,0162764,"260,932.50",Capital,Rayner Rowen Construction Limited,80915,,
Chorley Borough Council,http://statistics.data.gov.uk/id/local-authority/30UE,Central Support Services,1009,Commercial & Property,Miscellaneous Expenses,40200,Miscellaneous Expenses,5034,Works Variations for Delivery of Whittle GP Surgery,15/12/2021,0163437,"215,914.95",Revenue,Rayner Rowen Construction Limited,80915,,
Chorley Borough Council,http://statistics.data.gov.uk/id/local-authority/30UE,Central Support Services,1009,Communities,Core Funding Grants,40133,Grants and Subscriptions,5031,Core Small Funding Grant,08/12/2021,0163150,300.00,Revenue,RCCG Rehoboth Christian Centre - Chorley,78273,,
Chorley Borough Council,http://statistics.data.gov.uk/id/local-authority/30UE,Open Spaces,1038,Communities,Grounds Maintenance Contractor,20043,Grounds Maintenance Costs,5013,"3 x 1kgs of Super Blue Bee mix and 300 x packets to put the seed in. Delivery to Lindsey Blackstock, Chorley Council.",22/12/2021,0161223,540.00,Revenue,Rigby Taylor Ltd,16299,,
Chorley Borough Council,http://statistics.data.gov.uk/id/local-authority/30UE,Central Support Services,1009,Commercial & Property,Professional Fees,40063,Services,5027,Marketing fees for council commercial property,08/12/2021,0163196,570.00,Revenue,Rightmove Group Ltd,77717,,
Chorley Borough Council,http://statistics.data.gov.uk/id/local-authority/30UE,Culture & Heritage,1036,Policy & Governance,Souvenirs,40033,"Equipment, Furniture & Materia",5023,"Delivery to Astley Hall, PR7 1XA. Mini Cats Whiskers Planter; Mini Cats Whiskers Terracotta Planter; Leggy Terracotta Planter",22/12/2021,0163685,583.80,Revenue,RJB Stone LTD t/a Sass & Belle,80514,,
Chorley Borough Council,http://statistics.data.gov.uk/id/local-authority/30UE,Central Support Services,1009,Policy & Governance,Processional Routes,40177,Miscellaneous Expenses,5034,Traffic management services for Chorley's Remembrance Sunday on 14th November 2021.,15/12/2021,0162799,882.00,Revenue,Road Safety Services Ltd,69457,,
Chorley Borough Council,http://statistics.data.gov.uk/id/local-authority/30UE,Capital,Capital,Commercial & Property,Main Contractor,03007,Capital Expenditure,Capital,"Delivery of the Tatton regeneration scheme, All in accordance with the executed NEC Engineering & Construct Contract",15/12/2021,0163432,"744,065.38",Capital,Robertson CE Limited,81176,,
Chorley Borough Council,http://statistics.data.gov.uk/id/local-authority/30UE,Central Support Services,1009,Communities,Core Funding Grants,40133,Grants and Subscriptions,5031,Core Small Funding Grant,08/12/2021,0163149,429.00,Revenue,Run Fit Chorley,78272,,
Chorley Borough Council,http://statistics.data.gov.uk/id/local-authority/30UE,Homelessness,1075,Commercial & Property,Security Service,40062,Services,5027,In respect of concierge services at Cotswold Supported House for the period: 01/04/2021 - 31/03/2022,08/12/2021,0162159,"6,775.02",Revenue,Sector Security Services,19269,,
Chorley Borough Council,http://statistics.data.gov.uk/id/local-authority/30UE,Recreation & Sport,1037,Communities,Miscellaneous Expenses,40200,Miscellaneous Expenses,5034,"Monthy Service Charges - as per Quote 2866, 9 months, July 21 - March 22",08/12/2021,0160954,"1,595.00",Revenue,Service Sport Ltd,65601,,
Chorley Borough Council,http://statistics.data.gov.uk/id/local-authority/30UE,Recreation & Sport,1037,Communities,Miscellaneous Expenses,40200,Miscellaneous Expenses,5034,"Monthy Service Charges - as per Quote 2866, 9 months, July 21 - March 22",22/12/2021,0161923,"1,595.00",Revenue,Service Sport Ltd,65601,,
Chorley Borough Council,http://statistics.data.gov.uk/id/local-authority/30UE,Recreation & Sport,1037,Communities,General Repairs - Reactive,20004,Repairs Maintenance & Alts,5005,"PRECOR KEY PANEL, MACHINE CTRL P20, Call out, Labour - Fixed Rate, Labour, Sub-Total ex VAT 468.65",22/12/2021,0162219,411.92,Revenue,Service Sport Ltd,65601,,
Chorley Borough Council,http://statistics.data.gov.uk/id/local-authority/30UE,Recreation & Sport,1037,Communities,Miscellaneous Expenses,40200,Miscellaneous Expenses,5034,Monthy Service Charges - as per Quote 2866 9 months July 21 - March 22,22/12/2021,0162498,"1,595.00",Revenue,Service Sport Ltd,65601,,
Chorley Borough Council,http://statistics.data.gov.uk/id/local-authority/30UE,Recreation & Sport,1037,Commercial & Property,Miscellaneous Expenses,40200,Miscellaneous Expenses,5034,130 Litre Slimline Grit Bin (JGB1) 153.00 Net each,01/12/2021,0162748,153.00,Revenue,Seton Ltd,16674,,
Chorley Borough Council,http://statistics.data.gov.uk/id/local-authority/30UE,Recreation & Sport,1037,Commercial & Property,Miscellaneous Expenses,40200,Miscellaneous Expenses,5034,130 Litre Slimline Grit Bin (JGB1) 153.00 Net each,01/12/2021,0162748,153.00,Revenue,Seton Ltd,16674,,
Chorley Borough Council,http://statistics.data.gov.uk/id/local-authority/30UE,Recreation & Sport,1037,Commercial & Property,Miscellaneous Expenses,40200,Miscellaneous Expenses,5034,freight,01/12/2021,0162748,5.95,Revenue,Seton Ltd,16674,,
Chorley Borough Council,http://statistics.data.gov.uk/id/local-authority/30UE,Central Support Services,1009,Communities,Core Funding Grants,40133,Grants and Subscriptions,5031,Core Small Funding Grant,08/12/2021,0163147,500.00,Revenue,Shooting Stars Fan Club,78287,,
Chorley Borough Council,http://statistics.data.gov.uk/id/local-authority/30UE,Central Support Services,1009,Customer & Digital,IT Software - Annual Licences,40101,Communication and Computing,5028,AutoCAD LT 2022 Commercial New Single-user ELD Annual Subscription,22/12/2021,0162216,"3,120.00",Revenue,Softcat Ltd,69996,,
Chorley Borough Council,http://statistics.data.gov.uk/id/local-authority/30UE,Central Support Services,1009,Policy & Governance,Service Fees to other Local Authorities,40076,Services,5027,Shared Services Recharges to CBC for Quarters 1 & 2 21/22,01/12/2021,0163027,"1,018,149.00",Revenue,South Ribble Borough Council,17889,,
Chorley Borough Council,http://statistics.data.gov.uk/id/local-authority/30UE,Service Management & Support,1009,Customer & Digital,Tools & Equipment - Purchase,40003,"Equipment, Furniture & Materia",5023,as per quotation SQ-2220347 Stihl 4238 011 2800 CUT OFF SAW TS410 @ 637.20,01/12/2021,0162804,637.20,Revenue,Spalding (UK) Limited,20264,,
Chorley Borough Council,http://statistics.data.gov.uk/id/local-authority/30UE,Central Support Services,1009,Commercial & Property,Planned Maintenance,20006,Repairs Maintenance & Alts,5005,Town Hall window cleaning,15/12/2021,0162598,375.00,Revenue,Sparkle Window Cleaning (Michael Jennings),77989,,
Chorley Borough Council,http://statistics.data.gov.uk/id/local-authority/30UE,Control Accounts,Control,Policy & Governance,General Balances,00100,Balance Sheet,Balance,Deductions from payroll,22/12/2021,0163678,355.88,Revenue,St Catherines Hospice Promotions,72375,,
Chorley Borough Council,http://statistics.data.gov.uk/id/local-authority/30UE,Central Support Services,1009,Commercial & Property,General Repairs - Reactive,20004,Repairs Maintenance & Alts,5005,BRINSCALL BATHS - MOBILITY HOIST - FAO ATTENTION OF NAME REDACTED Call out fee 67 repairs 877,22/12/2021,0162952,877.00,Revenue,St Helens Mobility Shop Ltd T/A Aline Mobility,83374,,
Chorley Borough Council,http://statistics.data.gov.uk/id/local-authority/30UE,Central Support Services,1009,Communities,Core Funding Grants,40133,Grants and Subscriptions,5031,Core Small Funding Grant,08/12/2021,0163155,500.00,Revenue,St John`s Church Hall,18227,,
Chorley Borough Council,http://statistics.data.gov.uk/id/local-authority/30UE,Central Support Services,1009,Communities,Core Funding Grants,40133,Grants and Subscriptions,5031,Core Small Funding Grant,08/12/2021,0163159,500.00,Revenue,St Laurence`s PCC,17814,,
Chorley Borough Council,http://statistics.data.gov.uk/id/local-authority/30UE,Capital,Capital,Communities,Grants,03002,Capital Expenditure,Capital,NAME REDACTED,08/12/2021,0163164,"6,039.00",Capital,Stannah Lift Services Ltd,80943,,
Chorley Borough Council,http://statistics.data.gov.uk/id/local-authority/30UE,Capital,Capital,Communities,Grants,03002,Capital Expenditure,Capital,NAME REDACTED,08/12/2021,0163180,"6,702.00",Capital,Stannah Lift Services Ltd,80943,,
Chorley Borough Council,http://statistics.data.gov.uk/id/local-authority/30UE,Capital,Capital,Communities,Grants,03002,Capital Expenditure,Capital,NAME REDACTED,08/12/2021,0163181,"6,672.00",Capital,Stannah Lift Services Ltd,80943,,
Chorley Borough Council,http://statistics.data.gov.uk/id/local-authority/30UE,Capital,Capital,Communities,Grants,03002,Capital Expenditure,Capital,ADDRESS REDACTED,22/12/2021,0163537,"15,297.99",Capital,Stannah Lift Services Ltd,80943,,
Chorley Borough Council,http://statistics.data.gov.uk/id/local-authority/30UE,Capital,Capital,Communities,Grants,03002,Capital Expenditure,Capital,ADDRESS REDACTED,22/12/2021,0163655,"2,878.00",Capital,Stannah Lift Services Ltd,80943,,
Chorley Borough Council,http://statistics.data.gov.uk/id/local-authority/30UE,Capital,Capital,Communities,Main Contractor,03007,Capital Expenditure,Capital,Wigan Lane Playing Pitch Improvements. Consultants fees and Professional Services,22/12/2021,0163775,"5,000.00",Capital,Steve Wells Associates Ltd,77157,,
Chorley Borough Council,http://statistics.data.gov.uk/id/local-authority/30UE,Central Support Services,1009,Commercial & Property,Professional Fees,40063,Services,5027,Building Consultancy - M&E Design & Consultancy,01/12/2021,0162325,"1,214.68",Revenue,Steven A Hunt & Associates Ltd,80511,,
Chorley Borough Council,http://statistics.data.gov.uk/id/local-authority/30UE,Parking Services,1066,Commercial & Property,Fixtures & Fittings - Purchase,20027,Fixtures and Fittings,5010,Cleveland St Overflow car par (Civic Square) To supply and install a selection of Pay & display signage & Overflow car park sign,01/12/2021,0162848,692.00,Revenue,Street Civil Engineering Limited,76750,,
Chorley Borough Council,http://statistics.data.gov.uk/id/local-authority/30UE,Economic Development,1096,Commercial & Property,Fixtures & Fittings - Purchase,20027,Fixtures and Fittings,5010,Supply fire exit signs only as instructed on-site by NAME REDACTED for Chorley Market,01/12/2021,0163026,337.90,Revenue,Street Civil Engineering Limited,76750,,
Chorley Borough Council,http://statistics.data.gov.uk/id/local-authority/30UE,Parking Services,1066,Commercial & Property,Consultants` Fees,40077,Services,5027,"Provision of Public Realm & Highway Design, Engineering services, April 2021 � January 2022, Invoiced monthly",15/12/2021,0163346,"4,213.62",Revenue,Street Civil Engineering Limited,76750,,
Chorley Borough Council,http://statistics.data.gov.uk/id/local-authority/30UE,Capital,Capital,Communities,Grants,03002,Capital Expenditure,Capital,NAME REDACTED,01/12/2021,0162920,"4,335.00",Capital,Stringfellow Bldg Cntrctrs Ltd,17893,,
Chorley Borough Council,http://statistics.data.gov.uk/id/local-authority/30UE,Central Support Services,1009,Commercial & Property,General Repairs - Reactive,20004,Repairs Maintenance & Alts,5005,Common Farm reinstate damaged fence by soil tipping,01/12/2021,0162941,280.79,Revenue,Stringfellow Bldg Cntrctrs Ltd,17893,,
Chorley Borough Council,http://statistics.data.gov.uk/id/local-authority/30UE,Capital,Capital,Communities,Grants,03002,Capital Expenditure,Capital,NAME REDACTED,08/12/2021,0163166,"5,390.00",Capital,Stringfellow Bldg Cntrctrs Ltd,17893,,
Chorley Borough Council,http://statistics.data.gov.uk/id/local-authority/30UE,Capital,Capital,Communities,Grants,03002,Capital Expenditure,Capital,NAME REDACTED,08/12/2021,0163182,"8,130.00",Capital,Stringfellow Bldg Cntrctrs Ltd,17893,,
Chorley Borough Council,http://statistics.data.gov.uk/id/local-authority/30UE,Capital,Capital,Communities,Grants,03002,Capital Expenditure,Capital,ADDRESS REDACTED,22/12/2021,0163554,"5,300.00",Capital,Stringfellow Bldg Cntrctrs Ltd,17893,,
Chorley Borough Council,http://statistics.data.gov.uk/id/local-authority/30UE,Capital,Capital,Commercial & Property,Main Contractor,03007,Capital Expenditure,Capital,"All Seasons Leisure Centre, Improve existing entrance lobby to provide better visibility in the centre.",01/12/2021,0162842,"6,500.00",Capital,studio -LADY- Ltd,83773,,
Chorley Borough Council,http://statistics.data.gov.uk/id/local-authority/30UE,Central Support Services,1009,Policy & Governance,Publicity - Advertising,40157,Miscellaneous Expenses,5034,237 individual buffet boxes for the staff thank you events. 5.49 each = 1301.13 Event dates 4 and 10 November 2021,08/12/2021,0163032,"1,301.13",Revenue,Style Catering,66901,,
Chorley Borough Council,http://statistics.data.gov.uk/id/local-authority/30UE,Central Support Services,1009,Customer & Digital,Refuse Collection,20037,Cleaning and Domestic Supplies,5012,"(1 April 21 to 31 March 22). Town Hall, PR7 1DP GENERAL WASTE 1 x 1100L bin 3 times per week.",01/12/2021,0160437,113.01,Revenue,SUEZ R&R UK LTD,17615,,
Chorley Borough Council,http://statistics.data.gov.uk/id/local-authority/30UE,Central Support Services,1009,Customer & Digital,Refuse Collection,20037,Cleaning and Domestic Supplies,5012,"(1 April 21 to 31 March 22). Town Hall, PR7 1DP MIXED RECYCLING 1 x 1100L bin once per week.",01/12/2021,0160437,22.01,Revenue,SUEZ R&R UK LTD,17615,,
Chorley Borough Council,http://statistics.data.gov.uk/id/local-authority/30UE,Central Support Services,1009,Customer & Digital,Refuse Collection,20037,Cleaning and Domestic Supplies,5012,(1 April 21 to 31 March 22). Civic Offices PR7 1AL GENERAL WASTE 2 x 1100L bin 3 times per week.,01/12/2021,0160437,226.03,Revenue,SUEZ R&R UK LTD,17615,,
Chorley Borough Council,http://statistics.data.gov.uk/id/local-authority/30UE,Central Support Services,1009,Customer & Digital,Refuse Collection,20037,Cleaning and Domestic Supplies,5012,(1 April 21 to 31 March 22). Civic Offices PR7 1AL MIXED RECYCLING 1 x 1100L bin once per week.,01/12/2021,0160437,22.01,Revenue,SUEZ R&R UK LTD,17615,,
Chorley Borough Council,http://statistics.data.gov.uk/id/local-authority/30UE,Culture & Heritage,1036,Customer & Digital,Refuse Collection,20037,Cleaning and Domestic Supplies,5012,"(1 April 21 to 31 March 22). Astley Hall, PR7 1NP GENERAL WASTE 1 x 1100L bin once per week.",01/12/2021,0160437,37.67,Revenue,SUEZ R&R UK LTD,17615,,
Chorley Borough Council,http://statistics.data.gov.uk/id/local-authority/30UE,Community Development,1097,Customer & Digital,Refuse Collection,20037,Cleaning and Domestic Supplies,5012,"(FY 2021 :2022) MP's Constituency Office 35-39 Market Street, PR7 2SW  1 X1100 L bin emptied once per week",01/12/2021,0160437,37.67,Revenue,SUEZ R&R UK LTD,17615,,
Chorley Borough Council,http://statistics.data.gov.uk/id/local-authority/30UE,Recreation & Sport,1037,Customer & Digital,Refuse Collection,20037,Cleaning and Domestic Supplies,5012,"(April 2021 - March 2022) Eaves Green Community Centre, Lower Burgh Way, PR7 3QG 1 X 360 L bin emptied once per week",01/12/2021,0160437,20.49,Revenue,SUEZ R&R UK LTD,17615,,
Chorley Borough Council,http://statistics.data.gov.uk/id/local-authority/30UE,Recreation & Sport,1037,Customer & Digital,Refuse Collection,20037,Cleaning and Domestic Supplies,5012,"(April 2021 - March 2022) Astley Village Community Centre, PR7 1XA 1 X 360 L bin emptied once per week",01/12/2021,0160437,20.49,Revenue,SUEZ R&R UK LTD,17615,,
Chorley Borough Council,http://statistics.data.gov.uk/id/local-authority/30UE,Recreation & Sport,1037,Customer & Digital,Miscellaneous Expenses,40200,Miscellaneous Expenses,5034,"(April 2021 - March 2022) Buttermere Green Community Centre, PR7 2JG  1 X 360 L bin emptied once per week",01/12/2021,0160437,20.49,Revenue,SUEZ R&R UK LTD,17615,,
Chorley Borough Council,http://statistics.data.gov.uk/id/local-authority/30UE,Recreation & Sport,1037,Customer & Digital,Miscellaneous Expenses,40200,Miscellaneous Expenses,5034,"(April 2021 - March 2022) Lancaster Way Community Centre, Buckshaw Village PR7 7LJ, 1 X 360 L bin emptied once per week",01/12/2021,0160437,20.49,Revenue,SUEZ R&R UK LTD,17615,,
Chorley Borough Council,http://statistics.data.gov.uk/id/local-authority/30UE,Recreation & Sport,1037,Customer & Digital,Refuse Collection,20037,Cleaning and Domestic Supplies,5012,"(April 2021 - March 2022) Tatton Community Centre, Worthy Street, PR6 0PL  1 X 360 L bin emptied once per week",01/12/2021,0160437,20.49,Revenue,SUEZ R&R UK LTD,17615,,
Chorley Borough Council,http://statistics.data.gov.uk/id/local-authority/30UE,Recreation & Sport,1037,Customer & Digital,Refuse Collection,20037,Cleaning and Domestic Supplies,5012,"(April 2021 - March 2022) Clayton Brook Village Hall, Clayton Brook, PR5 8SE Refuse Sacks -6 per week",01/12/2021,0160437,24.80,Revenue,SUEZ R&R UK LTD,17615,,
Chorley Borough Council,http://statistics.data.gov.uk/id/local-authority/30UE,Business Support,1095,Customer & Digital,Refuse Collection,20037,Cleaning and Domestic Supplies,5012,"(April 2021 - March 2022) Strawberry Fields Digital Hub, Chorley PR7 1PQ GENERAL WASTE 3 X 1100L bins once per week",01/12/2021,0160437,113.01,Revenue,SUEZ R&R UK LTD,17615,,
Chorley Borough Council,http://statistics.data.gov.uk/id/local-authority/30UE,Business Support,1095,Customer & Digital,Refuse Collection,20037,Cleaning and Domestic Supplies,5012,"(April 2021 - March 2022) Strawberry Fields Digital Hub, Chorley PR7 1PQ MIXED RECYCLING 3 X 1100L bins once per week",01/12/2021,0160437,66.03,Revenue,SUEZ R&R UK LTD,17615,,
Chorley Borough Council,http://statistics.data.gov.uk/id/local-authority/30UE,Recreation & Sport,1037,Customer & Digital,Miscellaneous Expenses,40200,Miscellaneous Expenses,5034,"(April 2021 - March 2022) All Seasons Leisure Centre, Water Street, PR7 1EX GENERAL WASTE 2 X 1100L bins once per week",01/12/2021,0160437,75.34,Revenue,SUEZ R&R UK LTD,17615,,
Chorley Borough Council,http://statistics.data.gov.uk/id/local-authority/30UE,Recreation & Sport,1037,Customer & Digital,Miscellaneous Expenses,40200,Miscellaneous Expenses,5034,"(April 2021 - March 2022) All Seasons Leisure Centre, PR7 1EX MIXED RECYCLING 1 X 1100L bins once per week",01/12/2021,0160437,22.01,Revenue,SUEZ R&R UK LTD,17615,,
Chorley Borough Council,http://statistics.data.gov.uk/id/local-authority/30UE,Recreation & Sport,1037,Customer & Digital,Miscellaneous Expenses,40200,Miscellaneous Expenses,5034,"(April 2021 - March 2022) Clayton Green Sports Centre, PR6 7TL GENERAL WASTE 1 X 1100L bins once per week",01/12/2021,0160437,37.67,Revenue,SUEZ R&R UK LTD,17615,,
Chorley Borough Council,http://statistics.data.gov.uk/id/local-authority/30UE,Recreation & Sport,1037,Customer & Digital,Miscellaneous Expenses,40200,Miscellaneous Expenses,5034,"(April 2021 - March 2022) Clayton Green Sports Centre, PR6 7TL MIXED RECYCLING 1 X 1100L bin once EVERY 2 WEEKS",01/12/2021,0160437,10.98,Revenue,SUEZ R&R UK LTD,17615,,
Chorley Borough Council,http://statistics.data.gov.uk/id/local-authority/30UE,Recreation & Sport,1037,Customer & Digital,Miscellaneous Expenses,40200,Miscellaneous Expenses,5034,"(April 2021 - March 2022)  Brinscall Public Baths, PR6 8QR MIXED RECYCLING 1 X 1100L bin once EVERY 2 WEEKS",01/12/2021,0160437,10.98,Revenue,SUEZ R&R UK LTD,17615,,
Chorley Borough Council,http://statistics.data.gov.uk/id/local-authority/30UE,Recreation & Sport,1037,Customer & Digital,Miscellaneous Expenses,40200,Miscellaneous Expenses,5034,"(April 2021 - March 2022)  Brinscall Public Baths, Brinscall, PR6 8QR GENERAL WASTE 1 X 1100L bin once per week.",01/12/2021,0160437,37.67,Revenue,SUEZ R&R UK LTD,17615,,
Chorley Borough Council,http://statistics.data.gov.uk/id/local-authority/30UE,Open Spaces,1038,Communities,External Contractor,40198,Miscellaneous Expenses,5034,14yrd skip Delivery to Sandringham Road (Windsor Allotments) PR7 1LG. Phone NAME REDACTED for gate access.,01/12/2021,0161476,325.63,Revenue,SUEZ R&R UK LTD,17615,,
Chorley Borough Council,http://statistics.data.gov.uk/id/local-authority/30UE,Central Support Services,1009,Communities,Miscellaneous Expenses,40200,Miscellaneous Expenses,5034,Provision of skip at Mawdesley Village Hall - 18th Sept Booked via Paul Wilde by NAME REDACTED,01/12/2021,0161476,407.97,Revenue,SUEZ R&R UK LTD,17615,,
Chorley Borough Council,http://statistics.data.gov.uk/id/local-authority/30UE,Economic Development,1096,Commercial & Property,Refuse Collection,20037,Cleaning and Domestic Supplies,5012,Market Walk/Market Walk Extension/Markets/Calico Lounge/Reel Cinema Waste Removal 01.04.2021 - 31.03.2022,01/12/2021,0162391,"2,260.26",Revenue,SUEZ R&R UK LTD,17615,,
Chorley Borough Council,http://statistics.data.gov.uk/id/local-authority/30UE,Economic Development,1096,Commercial & Property,Refuse Collection,20037,Cleaning and Domestic Supplies,5012,Market Walk YARD 1 - GENERAL WASTE (Market Walk) - 8 cubic yard FEL skip x 1 55.78 per week,01/12/2021,0162391,241.77,Revenue,SUEZ R&R UK LTD,17615,,
Chorley Borough Council,http://statistics.data.gov.uk/id/local-authority/30UE,Economic Development,1096,Commercial & Property,Refuse Collection,20037,Cleaning and Domestic Supplies,5012,Market Walk YARD 1 - CARDBOARD ONLY - 35 cubic yard RoRo skip x 1 25 per month,01/12/2021,0162391,25.00,Revenue,SUEZ R&R UK LTD,17615,,
Chorley Borough Council,http://statistics.data.gov.uk/id/local-authority/30UE,Business Support,1095,Commercial & Property,Refuse Collection,20037,Cleaning and Domestic Supplies,5012,Market Walk YARD 2 - CARDBOARD ONLY - 35 cubic yard RoRo skip x 1 25 per month,01/12/2021,0162391,25.00,Revenue,SUEZ R&R UK LTD,17615,,
Chorley Borough Council,http://statistics.data.gov.uk/id/local-authority/30UE,Business Support,1095,Commercial & Property,Refuse Collection,20037,Cleaning and Domestic Supplies,5012,Market Walk YARD 2 - GENERAL WASTE - 8 cubic yard FEL skip x 1 55.78 per week,01/12/2021,0162391,242.64,Revenue,SUEZ R&R UK LTD,17615,,
Chorley Borough Council,http://statistics.data.gov.uk/id/local-authority/30UE,Business Support,1095,Commercial & Property,Refuse Collection,20037,Cleaning and Domestic Supplies,5012,Market Walk YARD 3 - GENERAL WASTE - 8 cubic yard FEL skip x 2 55.78 per skip per week. (111.56 pw for 2 skips),01/12/2021,0162391,485.29,Revenue,SUEZ R&R UK LTD,17615,,
Chorley Borough Council,http://statistics.data.gov.uk/id/local-authority/30UE,Business Support,1095,Commercial & Property,Refuse Collection,20037,Cleaning and Domestic Supplies,5012,Market Walk YARD 3 - CARDBOARD ONLY - 35 cubic yard RoRo skip x 1 25 per month,01/12/2021,0162391,25.00,Revenue,SUEZ R&R UK LTD,17615,,
Chorley Borough Council,http://statistics.data.gov.uk/id/local-authority/30UE,Business Support,1095,Commercial & Property,Refuse Collection,20037,Cleaning and Domestic Supplies,5012,Market Walk YARD 3 - PLASTIC FILM - 35 cubic yard RoRo skip x 1 25 per month,01/12/2021,0162391,25.00,Revenue,SUEZ R&R UK LTD,17615,,
Chorley Borough Council,http://statistics.data.gov.uk/id/local-authority/30UE,Business Support,1095,Commercial & Property,Refuse Collection,20037,Cleaning and Domestic Supplies,5012,Market Walk YARD 3 - CARDBOARD ONLY - 12 cubic yard Bakkie cage x 1. 54.17 per month,01/12/2021,0162391,54.17,Revenue,SUEZ R&R UK LTD,17615,,
Chorley Borough Council,http://statistics.data.gov.uk/id/local-authority/30UE,Business Support,1095,Commercial & Property,Refuse Collection,20037,Cleaning and Domestic Supplies,5012,"Market Walk Ext, Chorley PR7 1FD - GENERAL WASTE - Euro 1100 Litre x 8. 8.66 per bin per week",01/12/2021,0162391,301.37,Revenue,SUEZ R&R UK LTD,17615,,
Chorley Borough Council,http://statistics.data.gov.uk/id/local-authority/30UE,Business Support,1095,Commercial & Property,Refuse Collection,20037,Cleaning and Domestic Supplies,5012,"Market Walk Ext, Chorley PR7 1FD - MIXED RECYCLING - Euro 1100 Litre x 8. 5.06 per bin per week",01/12/2021,0162391,176.09,Revenue,SUEZ R&R UK LTD,17615,,
Chorley Borough Council,http://statistics.data.gov.uk/id/local-authority/30UE,Business Support,1095,Commercial & Property,Refuse Collection,20037,Cleaning and Domestic Supplies,5012,"Market Walk Ext, Chorley PR7 1FD - FOOD WASTE - 240 Litre bins x 4. 8.75 per bin per week",01/12/2021,0162391,97.88,Revenue,SUEZ R&R UK LTD,17615,,
Chorley Borough Council,http://statistics.data.gov.uk/id/local-authority/30UE,Business Support,1095,Commercial & Property,Refuse Collection,20037,Cleaning and Domestic Supplies,5012,"Market Walk Ext, Chorley PR7 1FD - GLASS ONLY - 240 Litre bins x 6. 3.75 per bin per week",01/12/2021,0162391,53.90,Revenue,SUEZ R&R UK LTD,17615,,
Chorley Borough Council,http://statistics.data.gov.uk/id/local-authority/30UE,Business Support,1095,Commercial & Property,Refuse Collection,20037,Cleaning and Domestic Supplies,5012,"Calico Lounge, Market Walk, Chorley, PR7 1FD - GENERAL WASTE - Euro 1100 Litre bins x 3. 8.66 per bin per week",01/12/2021,0162391,156.76,Revenue,SUEZ R&R UK LTD,17615,,
Chorley Borough Council,http://statistics.data.gov.uk/id/local-authority/30UE,Business Support,1095,Commercial & Property,Refuse Collection,20037,Cleaning and Domestic Supplies,5012,"Calico Lounge, Market Walk, Chorley, PR7 1FD - MIXED RECYCLING - Euro 1100 Litre bins x 3. 5.06 per bin per week",01/12/2021,0162391,66.03,Revenue,SUEZ R&R UK LTD,17615,,
Chorley Borough Council,http://statistics.data.gov.uk/id/local-authority/30UE,Business Support,1095,Commercial & Property,Refuse Collection,20037,Cleaning and Domestic Supplies,5012,"Calico Lounge, Market Walk, Chorley, PR7 1FD  - FOOD WASTE - 240 Litre bins x 2. 8.75 per bin per week",01/12/2021,0162391,65.25,Revenue,SUEZ R&R UK LTD,17615,,
Chorley Borough Council,http://statistics.data.gov.uk/id/local-authority/30UE,Business Support,1095,Commercial & Property,Refuse Collection,20037,Cleaning and Domestic Supplies,5012,"Calico Lounge, Market Walk, Chorley, PR7 1FD - GLASS ONLY - 240 Litre bins x 4. 3.75 per bin per week",01/12/2021,0162391,54.02,Revenue,SUEZ R&R UK LTD,17615,,
Chorley Borough Council,http://statistics.data.gov.uk/id/local-authority/30UE,Business Support,1095,Commercial & Property,Refuse Collection,20037,Cleaning and Domestic Supplies,5012,REEL Cinema - GENERAL WASTE - Euro 1100 Litre bins x 4. 8.66 per bin - emptied twice a week,01/12/2021,0162391,301.37,Revenue,SUEZ R&R UK LTD,17615,,
Chorley Borough Council,http://statistics.data.gov.uk/id/local-authority/30UE,Business Support,1095,Commercial & Property,Refuse Collection,20037,Cleaning and Domestic Supplies,5012,REEL Cinema - MIXED RECYCLING - Euro 1100 Litre bins x 2. 5.06 per bin emptied twice a week,01/12/2021,0162391,88.04,Revenue,SUEZ R&R UK LTD,17615,,
Chorley Borough Council,http://statistics.data.gov.uk/id/local-authority/30UE,Service Management & Support,1009,Customer & Digital,Refuse Collection,20037,Cleaning and Domestic Supplies,5012,Exchange 20 yard Street Sweeping Skip @ 80.96 to cover period  01/09/2021 - 31/03/2022,22/12/2021,0163289,"2,266.88",Revenue,SUEZ R&R UK LTD,17615,,
Chorley Borough Council,http://statistics.data.gov.uk/id/local-authority/30UE,Service Management & Support,1009,Customer & Digital,Refuse Collection,20037,Cleaning and Domestic Supplies,5012,Exchange 35 yard General Waste Skip @ 89.94 to cover period  01/09/2021 - 31/03/2022,22/12/2021,0163289,989.34,Revenue,SUEZ R&R UK LTD,17615,,
Chorley Borough Council,http://statistics.data.gov.uk/id/local-authority/30UE,Service Management & Support,1009,Customer & Digital,Refuse Collection,20037,Cleaning and Domestic Supplies,5012,Exchange 35 yard Green Waste skip @ 84.26 to cover period 01/09/2021 - 31/03/2022,22/12/2021,0163289,337.04,Revenue,SUEZ R&R UK LTD,17615,,
Chorley Borough Council,http://statistics.data.gov.uk/id/local-authority/30UE,Service Management & Support,1009,Customer & Digital,Refuse Collection,20037,Cleaning and Domestic Supplies,5012,Disposal charge and processing of Green Waste @ 37.50 per tonne,22/12/2021,0163289,611.25,Revenue,SUEZ R&R UK LTD,17615,,
Chorley Borough Council,http://statistics.data.gov.uk/id/local-authority/30UE,Economic Development,1096,Commercial & Property,Refuse Collection,20037,Cleaning and Domestic Supplies,5012,Market Walk/Market Walk Extension/Markets/Calico Lounge/Reel Cinema Waste Removal 01.04.2021 - 31.03.2022,08/12/2021,0163290,"2,260.26",Revenue,SUEZ R&R UK LTD,17615,,
Chorley Borough Council,http://statistics.data.gov.uk/id/local-authority/30UE,Economic Development,1096,Commercial & Property,Refuse Collection,20037,Cleaning and Domestic Supplies,5012,Market Walk YARD 1 - GENERAL WASTE (Market Walk) - 8 cubic yard FEL skip x 1 55.78 per week,08/12/2021,0163290,241.77,Revenue,SUEZ R&R UK LTD,17615,,
Chorley Borough Council,http://statistics.data.gov.uk/id/local-authority/30UE,Economic Development,1096,Commercial & Property,Refuse Collection,20037,Cleaning and Domestic Supplies,5012,Market Walk YARD 1 - CARDBOARD ONLY - 35 cubic yard RoRo skip x 1 25 per month,08/12/2021,0163290,25.00,Revenue,SUEZ R&R UK LTD,17615,,
Chorley Borough Council,http://statistics.data.gov.uk/id/local-authority/30UE,Business Support,1095,Commercial & Property,Refuse Collection,20037,Cleaning and Domestic Supplies,5012,Market Walk YARD 2 - CARDBOARD ONLY - 35 cubic yard RoRo skip x 1 25 per month,08/12/2021,0163290,25.00,Revenue,SUEZ R&R UK LTD,17615,,
Chorley Borough Council,http://statistics.data.gov.uk/id/local-authority/30UE,Business Support,1095,Commercial & Property,Refuse Collection,20037,Cleaning and Domestic Supplies,5012,Market Walk YARD 2 - GENERAL WASTE - 8 cubic yard FEL skip x 1 55.78 per week,08/12/2021,0163290,242.64,Revenue,SUEZ R&R UK LTD,17615,,
Chorley Borough Council,http://statistics.data.gov.uk/id/local-authority/30UE,Business Support,1095,Commercial & Property,Refuse Collection,20037,Cleaning and Domestic Supplies,5012,Market Walk YARD 3 - GENERAL WASTE - 8 cubic yard FEL skip x 2 55.78 per skip per week. (111.56 pw for 2 skips),08/12/2021,0163290,485.29,Revenue,SUEZ R&R UK LTD,17615,,
Chorley Borough Council,http://statistics.data.gov.uk/id/local-authority/30UE,Business Support,1095,Commercial & Property,Refuse Collection,20037,Cleaning and Domestic Supplies,5012,Market Walk YARD 3 - CARDBOARD ONLY - 35 cubic yard RoRo skip x 1 25 per month,08/12/2021,0163290,25.00,Revenue,SUEZ R&R UK LTD,17615,,
Chorley Borough Council,http://statistics.data.gov.uk/id/local-authority/30UE,Business Support,1095,Commercial & Property,Refuse Collection,20037,Cleaning and Domestic Supplies,5012,Market Walk YARD 3 - PLASTIC FILM - 35 cubic yard RoRo skip x 1 25 per month,08/12/2021,0163290,25.00,Revenue,SUEZ R&R UK LTD,17615,,
Chorley Borough Council,http://statistics.data.gov.uk/id/local-authority/30UE,Business Support,1095,Commercial & Property,Refuse Collection,20037,Cleaning and Domestic Supplies,5012,Market Walk YARD 3 - CARDBOARD ONLY - 12 cubic yard Bakkie cage x 1. 54.17 per month,08/12/2021,0163290,54.17,Revenue,SUEZ R&R UK LTD,17615,,
Chorley Borough Council,http://statistics.data.gov.uk/id/local-authority/30UE,Business Support,1095,Commercial & Property,Refuse Collection,20037,Cleaning and Domestic Supplies,5012,"Market Walk Ext, Chorley PR7 1FD - GENERAL WASTE - Euro 1100 Litre x 8. 8.66 per bin per week",08/12/2021,0163290,301.37,Revenue,SUEZ R&R UK LTD,17615,,
Chorley Borough Council,http://statistics.data.gov.uk/id/local-authority/30UE,Business Support,1095,Commercial & Property,Refuse Collection,20037,Cleaning and Domestic Supplies,5012,"Market Walk Ext, Chorley PR7 1FD - MIXED RECYCLING - Euro 1100 Litre x 8. 5.06 per bin per week",08/12/2021,0163290,176.09,Revenue,SUEZ R&R UK LTD,17615,,
Chorley Borough Council,http://statistics.data.gov.uk/id/local-authority/30UE,Business Support,1095,Commercial & Property,Refuse Collection,20037,Cleaning and Domestic Supplies,5012,"Market Walk Ext, Chorley PR7 1FD - GLASS ONLY - 240 Litre bins x 6. 3.75 per bin per week",08/12/2021,0163290,97.88,Revenue,SUEZ R&R UK LTD,17615,,
Chorley Borough Council,http://statistics.data.gov.uk/id/local-authority/30UE,Business Support,1095,Commercial & Property,Refuse Collection,20037,Cleaning and Domestic Supplies,5012,"Calico Lounge, Market Walk, Chorley, PR7 1FD - GENERAL WASTE - Euro 1100 Litre bins x 3. 8.66 per bin per week",08/12/2021,0163290,226.03,Revenue,SUEZ R&R UK LTD,17615,,
Chorley Borough Council,http://statistics.data.gov.uk/id/local-authority/30UE,Business Support,1095,Commercial & Property,Refuse Collection,20037,Cleaning and Domestic Supplies,5012,"Calico Lounge, Market Walk, Chorley, PR7 1FD - MIXED RECYCLING - Euro 1100 Litre bins x 3. 5.06 per bin per week",08/12/2021,0163290,66.03,Revenue,SUEZ R&R UK LTD,17615,,
Chorley Borough Council,http://statistics.data.gov.uk/id/local-authority/30UE,Business Support,1095,Commercial & Property,Refuse Collection,20037,Cleaning and Domestic Supplies,5012,"Calico Lounge, Market Walk, Chorley, PR7 1FD - GLASS ONLY - 240 Litre bins x 4. 3.75 per bin per week",08/12/2021,0163290,65.25,Revenue,SUEZ R&R UK LTD,17615,,
Chorley Borough Council,http://statistics.data.gov.uk/id/local-authority/30UE,Business Support,1095,Commercial & Property,Refuse Collection,20037,Cleaning and Domestic Supplies,5012,REEL Cinema - GENERAL WASTE - Euro 1100 Litre bins x 4. 8.66 per bin - emptied twice a week,08/12/2021,0163290,301.37,Revenue,SUEZ R&R UK LTD,17615,,
Chorley Borough Council,http://statistics.data.gov.uk/id/local-authority/30UE,Business Support,1095,Commercial & Property,Refuse Collection,20037,Cleaning and Domestic Supplies,5012,REEL Cinema - MIXED RECYCLING - Euro 1100 Litre bins x 2. 5.06 per bin emptied twice a week,08/12/2021,0163290,88.04,Revenue,SUEZ R&R UK LTD,17615,,
Chorley Borough Council,http://statistics.data.gov.uk/id/local-authority/30UE,Business Support,1095,Commercial & Property,Refuse Collection,20037,Cleaning and Domestic Supplies,5012,Any excess weight charges for skips & FELS,08/12/2021,0163290,21.00,Revenue,SUEZ R&R UK LTD,17615,,
Chorley Borough Council,http://statistics.data.gov.uk/id/local-authority/30UE,Central Support Services,1009,Commercial & Property,Planned Maintenance,20006,Repairs Maintenance & Alts,5005,"Carry out a Pendulum slip test and compile report, 8 sample areas will be tested, Each test thereafter will be 30.00",01/12/2021,0162951,500.00,Revenue,Surface Consultants Ltd,82899,,
Chorley Borough Council,http://statistics.data.gov.uk/id/local-authority/30UE,Central Support Services,1009,Commercial & Property,General Repairs - Reactive,20004,Repairs Maintenance & Alts,5005,Slip test at all Seasons following a child accident,22/12/2021,0163683,500.00,Revenue,Surface Consultants Ltd,82899,,
Chorley Borough Council,http://statistics.data.gov.uk/id/local-authority/30UE,Central Support Services,1009,Commercial & Property,General Repairs - Reactive,20004,Repairs Maintenance & Alts,5005,"G7 works The Green Walled Garden, Astley Park, Topographical/Underground Utility Survey As requested by NAME REDACTED",01/12/2021,0162938,825.00,Revenue,Survey Operations Ltd,55910,,
Chorley Borough Council,http://statistics.data.gov.uk/id/local-authority/30UE,Central Support Services,1009,Communities,Core Funding Grants,40133,Grants and Subscriptions,5031,Core Small Funding Grant,08/12/2021,0163145,500.00,Revenue,SVP Chorley Buddies,82307,,
Chorley Borough Council,http://statistics.data.gov.uk/id/local-authority/30UE,Open Spaces,1038,Customer & Digital,Grounds Maintenance Contractor,20043,Grounds Maintenance Costs,5013,"Mow Valley Bottoms, Lower Burgh Meadows, Blainscough Wood Nature Reserve and Burgh Hall Road",08/12/2021,0163060,"3,500.00",Revenue,T & L Kirkham,17058,,
Chorley Borough Council,http://statistics.data.gov.uk/id/local-authority/30UE,Unapportionable Central OHeads,1009,Policy & Governance,Pensions Increase Act Payments,18005,Indirect Employee Expenses,5002,rechargeable pension costs 2021/22,01/12/2021,0162879,"2,891.02",Revenue,Tameside MBC-Gmpf,17034,,
Chorley Borough Council,http://statistics.data.gov.uk/id/local-authority/30UE,Central Support Services,1009,Customer & Digital,Miscellaneous Expenses,40200,Miscellaneous Expenses,5034,Sweeper Collector for maintenance tractor,22/12/2021,0163273,925.00,Revenue,Technical Surfaces Ltd,80955,,
Chorley Borough Council,http://statistics.data.gov.uk/id/local-authority/30UE,Central Support Services,1009,Customer & Digital,CCTV Camera Maintenance,40007,"Equipment, Furniture & Materia",5023,CCTV ongoing maintenance and repair,01/12/2021,0162243,570.00,Revenue,Technology Solutions,72376,,
Chorley Borough Council,http://statistics.data.gov.uk/id/local-authority/30UE,Central Support Services,1009,Customer & Digital,CCTV Camera Maintenance,40007,"Equipment, Furniture & Materia",5023,CCTV ongoing maintenance and repair,22/12/2021,0163187,"1,024.41",Revenue,Technology Solutions,72376,,
Chorley Borough Council,http://statistics.data.gov.uk/id/local-authority/30UE,Economic Development,1096,Commercial & Property,Publicity - Advertising,40157,Miscellaneous Expenses,5034,"Chorley Markets Christmas Bags, Kraft with twisted paper handles, 100 gsm white kraft white handles, flexo printed",01/12/2021,0162399,"1,250.00",Revenue,Templecoombe Ltd,48607,,
Chorley Borough Council,http://statistics.data.gov.uk/id/local-authority/30UE,Planning Policy,1092,Commercial & Property,Professional Fees,40063,Services,5027,Greater Manchester Spatial Framework - Strategic Site Transport Impact Assessment,08/12/2021,0162630,"9,541.00",Revenue,Tetra Tech Environment Planning Transport Limited,76236,,
Chorley Borough Council,http://statistics.data.gov.uk/id/local-authority/30UE,Economic Development,1096,Commercial & Property,General Subscriptions,40146,Grants and Subscriptions,5031,CCTV User Group Membership renewal - Dec 20 - Dec 21.,22/12/2021,0163757,275.00,Revenue,The CCTV User Group,68077,,
Chorley Borough Council,http://statistics.data.gov.uk/id/local-authority/30UE,Economic Development,1096,Commercial & Property,General Subscriptions,40146,Grants and Subscriptions,5031,Renewal Membership NAME REDACTED - 2021,22/12/2021,0163757,299.00,Revenue,The CCTV User Group,68077,,
Chorley Borough Council,http://statistics.data.gov.uk/id/local-authority/30UE,Business Support,1095,Commercial & Property,Security Service,40062,Services,5027,Security cover at Strawberry Fields between October 2021 to December 2021,22/12/2021,0163276,"6,548.97",Revenue,The ExcluSec Group Ltd,78056,,
Chorley Borough Council,http://statistics.data.gov.uk/id/local-authority/30UE,Central Support Services,1009,Customer & Digital,Miscellaneous Expenses,40200,Miscellaneous Expenses,5034,As per Quotation LPCJEFFERY0000264 x20 LP0011 x100 LP1033,08/12/2021,0163293,"1,018.40",Revenue,The Helping Hand Company,17779,,
Chorley Borough Council,http://statistics.data.gov.uk/id/local-authority/30UE,Central Support Services,1009,Customer & Digital,Network Line Rental,40248,Communication and Computing,5028,Cloud Connect Per Site Cloud Connect Per 1000 Concurrent Users,22/12/2021,0162210,"3,000.00",Revenue,The Networking People (NorthWest) Ltd T/a TNP Ltd,73446,,
Chorley Borough Council,http://statistics.data.gov.uk/id/local-authority/30UE,Central Support Services,1009,Commercial & Property,Agency Staff,13000,Direct Employee Expenses,5001,Estate Surveyor fees for NAME REDACTED until end of 2021,01/12/2021,0162743,"1,881.25",Revenue,The Oyster Partnership Ltd,81409,,
Chorley Borough Council,http://statistics.data.gov.uk/id/local-authority/30UE,Central Support Services,1009,Commercial & Property,Agency Staff,13000,Direct Employee Expenses,5001,Estate Surveyor fees for NAME REDACTED until end of 2021,01/12/2021,0162801,"2,212.39",Revenue,The Oyster Partnership Ltd,81409,,
Chorley Borough Council,http://statistics.data.gov.uk/id/local-authority/30UE,Central Support Services,1009,Commercial & Property,Agency Staff,13000,Direct Employee Expenses,5001,Estate Surveyor fees for NAME REDACTED until end of 2021,01/12/2021,0162802,"1,714.80",Revenue,The Oyster Partnership Ltd,81409,,
Chorley Borough Council,http://statistics.data.gov.uk/id/local-authority/30UE,Central Support Services,1009,Commercial & Property,Agency Staff,13000,Direct Employee Expenses,5001,Estate Surveyor fees for NAME REDACTED until end of 2021,22/12/2021,0163191,"1,815.63",Revenue,The Oyster Partnership Ltd,81409,,
Chorley Borough Council,http://statistics.data.gov.uk/id/local-authority/30UE,Central Support Services,1009,Commercial & Property,Agency Staff,13000,Direct Employee Expenses,5001,Estate Surveyor fees for NAME REDACTED until end of 2021,22/12/2021,0163211,"1,651.56",Revenue,The Oyster Partnership Ltd,81409,,
Chorley Borough Council,http://statistics.data.gov.uk/id/local-authority/30UE,Central Support Services,1009,Commercial & Property,Agency Staff,13000,Direct Employee Expenses,5001,Estate Surveyor fees for NAME REDACTED until end of 2021,22/12/2021,0163467,"1,728.13",Revenue,The Oyster Partnership Ltd,81409,,
Chorley Borough Council,http://statistics.data.gov.uk/id/local-authority/30UE,Central Support Services,1009,Commercial & Property,Professional Fees,40063,Services,5027,Alker cycleway engineering design,15/12/2021,0163423,"1,350.00",Revenue,THOMAS CONSULTING LIMITED,84030,,
Chorley Borough Council,http://statistics.data.gov.uk/id/local-authority/30UE,Elections,1012,Policy & Governance,Publications,40054,"Printing, Stationery & General",5026,schofields election law R60,01/12/2021,0162746,144.00,Revenue,Thomson Reuters RE;Sweet & Maxwell Limited,17932,,
Chorley Borough Council,http://statistics.data.gov.uk/id/local-authority/30UE,Elections,1012,Policy & Governance,Publications,40054,"Printing, Stationery & General",5026,zero rate,01/12/2021,0162746,144.00,Revenue,Thomson Reuters RE;Sweet & Maxwell Limited,17932,,
Chorley Borough Council,http://statistics.data.gov.uk/id/local-authority/30UE,Elections,1012,Policy & Governance,Publications,40054,"Printing, Stationery & General",5026,Schofields election update R61,15/12/2021,0163434,144.00,Revenue,Thomson Reuters RE;Sweet & Maxwell Limited,17932,,
Chorley Borough Council,http://statistics.data.gov.uk/id/local-authority/30UE,Elections,1012,Policy & Governance,Publications,40054,"Printing, Stationery & General",5026,zero rate,15/12/2021,0163434,144.00,Revenue,Thomson Reuters RE;Sweet & Maxwell Limited,17932,,
Chorley Borough Council,http://statistics.data.gov.uk/id/local-authority/30UE,Capital,Capital,Commercial & Property,Main Contractor,03007,Capital Expenditure,Capital,Quantity surveying for Astley Hall Refurbishment project,08/12/2021,0163194,"1,325.00",Capital,Thornber and Walker Ltd,80557,,
Chorley Borough Council,http://statistics.data.gov.uk/id/local-authority/30UE,Corporate Management,1008,Policy & Governance,Grants to Voluntary Organisations,40124,Grants and Subscriptions,5031,"Funding support for Totally Locally Chorley market events, to fund Slime Workshop and Ice Queen children's activities.",01/12/2021,0162208,812.50,Revenue,Totally Locally Chorley,77188,,
Chorley Borough Council,http://statistics.data.gov.uk/id/local-authority/30UE,Capital,Capital,Communities,Grants,03002,Capital Expenditure,Capital,ADDRESS REDACTED,15/12/2021,0163366,"1,000.00",Capital,NAME REDACTED,83892,,
Chorley Borough Council,http://statistics.data.gov.uk/id/local-authority/30UE,Service Management & Support,1009,Customer & Digital,Grounds Maintenance Contractor,20043,Grounds Maintenance Costs,5013,Cloverfield Ash tree Fell.,08/12/2021,0162205,840.00,Revenue,Treescape North West Ltd,17688,,
Chorley Borough Council,http://statistics.data.gov.uk/id/local-authority/30UE,Service Management & Support,1009,Customer & Digital,Grounds Maintenance Contractor,20043,Grounds Maintenance Costs,5013,Sycamore felling and Oak pruning at Hardy Drive.,08/12/2021,0162206,840.00,Revenue,Treescape North West Ltd,17688,,
Chorley Borough Council,http://statistics.data.gov.uk/id/local-authority/30UE,Service Management & Support,1009,Customer & Digital,Grounds Maintenance Contractor,20043,Grounds Maintenance Costs,5013,Invoice 1008,15/12/2021,0163430,"2,345.00",Revenue,Treexpert Tree Care,78580,,
Chorley Borough Council,http://statistics.data.gov.uk/id/local-authority/30UE,Service Management & Support,1009,Customer & Digital,Grounds Maintenance Contractor,20043,Grounds Maintenance Costs,5013,Invoice 1005,15/12/2021,0163431,"1,680.00",Revenue,Treexpert Tree Care,78580,,
Chorley Borough Council,http://statistics.data.gov.uk/id/local-authority/30UE,Central Support Services,1009,Policy & Governance,Miscellaneous Expenses,40200,Miscellaneous Expenses,5034,3D rendered drawings of Tatton Garden apartment for use in promotional materials,22/12/2021,0163708,"1,100.00",Revenue,Triangle Architects Ltd,80413,,
Chorley Borough Council,http://statistics.data.gov.uk/id/local-authority/30UE,Service Management & Support,1009,Customer & Digital,Tools & Equipment - Maintenance,40005,"Equipment, Furniture & Materia",5023,"Chorley Borough Council PR7 1SA, HYTEK - ALPHA 70 MONO, JIGSAW - ECLIPSE FMS, WEB SITE LICENCE",08/12/2021,0162398,"1,578.75",Revenue,TSG UK Solutions Ltd,81173,,
Chorley Borough Council,http://statistics.data.gov.uk/id/local-authority/30UE,Homelessness,1075,Communities,Television Licence,40170,Miscellaneous Expenses,5034,cotswold & Primrose,22/12/2021,0163573,318.00,Revenue,TV Licensing,18105,,
Chorley Borough Council,http://statistics.data.gov.uk/id/local-authority/30UE,Elections,1012,Policy & Governance,Tools & Equipment - Maintenance,40005,"Equipment, Furniture & Materia",5023,Annual Maintenance - Mailpost 123 sided letter opener 200139/04 TMA9850 06/12/2021 to 05/12/2022,01/12/2021,0162850,410.99,Revenue,Twofold Ltd,77795,,
Chorley Borough Council,http://statistics.data.gov.uk/id/local-authority/30UE,Central Support Services,1009,Policy & Governance,Miscellaneous Expenses,40200,Miscellaneous Expenses,5034,01 nov 2021,08/12/2021,0163255,"1,389.20",Revenue,UK Healthcare (BDHSC),17241,,
Chorley Borough Council,http://statistics.data.gov.uk/id/local-authority/30UE,Central Support Services,1009,Policy & Governance,Miscellaneous Expenses,40200,Miscellaneous Expenses,5034,01 dec 2021,08/12/2021,0163256,"1,380.00",Revenue,UK Healthcare (BDHSC),17241,,
Chorley Borough Council,http://statistics.data.gov.uk/id/local-authority/30UE,Central Support Services,1009,Policy & Governance,Exhibitions & Special Events,40158,Miscellaneous Expenses,5034,45 Minute Performance BOB,01/12/2021,0162851,"3,500.00",Revenue,UK Media and Events Limited,71221,,
Chorley Borough Council,http://statistics.data.gov.uk/id/local-authority/30UE,Central Support Services,1009,Policy & Governance,Exhibitions & Special Events,40158,Miscellaneous Expenses,5034,"Chorley Christmas Lights, Staging, PA, Lights, Crew, Infrastructure, Special FX",01/12/2021,0162855,"7,560.00",Revenue,UK Media and Events Limited,71221,,
Chorley Borough Council,http://statistics.data.gov.uk/id/local-authority/30UE,Central Support Services,1009,Policy & Governance,Publicity - Advertising,40157,Miscellaneous Expenses,5034,"Renewal of the hosting/server space for the WordPress websites (e.g. Chorley Flower Show, Check out Chorley, Astley Hall).",22/12/2021,0163459,264.65,Revenue,UKFast.Net Limited,74638,,
Chorley Borough Council,http://statistics.data.gov.uk/id/local-authority/30UE,Central Support Services,1009,Customer & Digital,Postages,40082,Communication and Computing,5028,UKMail letters from all queues from consolidated account.,22/12/2021,0163558,912.72,Revenue,UKMAIL Ltd (Mail),57758,,
Chorley Borough Council,http://statistics.data.gov.uk/id/local-authority/30UE,Control Accounts,Control,Policy & Governance,General Balances,00100,Balance Sheet,Balance,Monthly Deductions from payroll,15/12/2021,0163548,"1,668.70",Revenue,Unify Credit Union Ltd,55509,,
Chorley Borough Council,http://statistics.data.gov.uk/id/local-authority/30UE,Central Support Services,1009,Commercial & Property,Training Course Fees,17010,Indirect Employee Expenses,5002,Payment of fees for final year of study.,01/12/2021,0162203,"2,880.00",Revenue,University Of Salford,16234,,
Chorley Borough Council,http://statistics.data.gov.uk/id/local-authority/30UE,Capital,Capital,Communities,Grants,03002,Capital Expenditure,Capital,NAME REDACTED,01/12/2021,0162919,"8,450.63",Capital,UPS Building and Maintenance Ltd,76235,,
Chorley Borough Council,http://statistics.data.gov.uk/id/local-authority/30UE,Capital,Capital,Communities,Grants,03002,Capital Expenditure,Capital,ADDRESS REDACTED,15/12/2021,0163538,"6,636.00",Capital,UPS Building and Maintenance Ltd,76235,,
Chorley Borough Council,http://statistics.data.gov.uk/id/local-authority/30UE,Capital,Capital,Communities,Grants,03002,Capital Expenditure,Capital,ADDRESS REDACTED,15/12/2021,0163544,"5,450.00",Capital,UPS Building and Maintenance Ltd,76235,,
Chorley Borough Council,http://statistics.data.gov.uk/id/local-authority/30UE,Central Support Services,1009,Policy & Governance,Miscellaneous Expenses,40200,Miscellaneous Expenses,5034,"Black Mourning Arm Bands as follows: 50 x Medium, 50 x Large, 20 x Extra Large, Postage",15/12/2021,0162283,684.24,Revenue,Vanessa treasure Designs,83954,,
Chorley Borough Council,http://statistics.data.gov.uk/id/local-authority/30UE,Regulatory Services,1048,Customer & Digital,"Hackney Badges, Plates Etc.",40023,"Equipment, Furniture & Materia",5023,"Flexiplate, Clear, Size 4F, Type A Adhesive x 3 packs @ 138.85 each",22/12/2021,0163724,416.55,Revenue,VIP-SYSTEM LIMITED,69902,,
Chorley Borough Council,http://statistics.data.gov.uk/id/local-authority/30UE,Regulatory Services,1048,Customer & Digital,"Hackney Badges, Plates Etc.",40023,"Equipment, Furniture & Materia",5023,"VIP Lasersafe Self-Adhesive Labels, 4 Up On A4 Sheet x 1pack @ 40.52",22/12/2021,0163724,40.52,Revenue,VIP-SYSTEM LIMITED,69902,,
Chorley Borough Council,http://statistics.data.gov.uk/id/local-authority/30UE,Regulatory Services,1048,Customer & Digital,"Hackney Badges, Plates Etc.",40023,"Equipment, Furniture & Materia",5023,Chorley HCV Size 4F unique V5 x 1 pack @ 128.54,22/12/2021,0163724,128.54,Revenue,VIP-SYSTEM LIMITED,69902,,
Chorley Borough Council,http://statistics.data.gov.uk/id/local-authority/30UE,Regulatory Services,1048,Customer & Digital,"Hackney Badges, Plates Etc.",40023,"Equipment, Furniture & Materia",5023,Chorley PHV Size 4F unique V5 x 2 packs @ 128.54 each,22/12/2021,0163724,257.08,Revenue,VIP-SYSTEM LIMITED,69902,,
Chorley Borough Council,http://statistics.data.gov.uk/id/local-authority/30UE,Regulatory Services,1048,Customer & Digital,"Hackney Badges, Plates Etc.",40023,"Equipment, Furniture & Materia",5023,"Harpoon Security Button, Yellow x 8 packs @ 14.65 each",22/12/2021,0163724,117.20,Revenue,VIP-SYSTEM LIMITED,69902,,
Chorley Borough Council,http://statistics.data.gov.uk/id/local-authority/30UE,Regulatory Services,1048,Customer & Digital,"Hackney Badges, Plates Etc.",40023,"Equipment, Furniture & Materia",5023,"Quick Release Key Only, Clear x 3 packs @ 58.50 each",22/12/2021,0163724,175.50,Revenue,VIP-SYSTEM LIMITED,69902,,
Chorley Borough Council,http://statistics.data.gov.uk/id/local-authority/30UE,Regulatory Services,1048,Customer & Digital,"Hackney Badges, Plates Etc.",40023,"Equipment, Furniture & Materia",5023,Chorley HCV Size 2 x 1E Style x1 pack @ 25.09,22/12/2021,0163724,25.09,Revenue,VIP-SYSTEM LIMITED,69902,,
Chorley Borough Council,http://statistics.data.gov.uk/id/local-authority/30UE,Regulatory Services,1048,Customer & Digital,"Hackney Badges, Plates Etc.",40023,"Equipment, Furniture & Materia",5023,Chorley PHV Size 2 x 1E Style x 2 packs @ 25.09 each,22/12/2021,0163724,50.18,Revenue,VIP-SYSTEM LIMITED,69902,,
Chorley Borough Council,http://statistics.data.gov.uk/id/local-authority/30UE,Regulatory Services,1048,Customer & Digital,"Hackney Badges, Plates Etc.",40023,"Equipment, Furniture & Materia",5023,"platform, Universal, Size 4, Kit x 2 packs @ 156.23. each",22/12/2021,0163724,312.46,Revenue,VIP-SYSTEM LIMITED,69902,,
Chorley Borough Council,http://statistics.data.gov.uk/id/local-authority/30UE,Development Control,1091,Policy & Governance,Consultants` Fees,40077,Services,5027,"The Agreement No: 38523 Start Date: 28/06/2021 - End date: 31/12/2021, Consultant name: NAME REDACTED",22/12/2021,0161253,"2,220.00",Revenue,Vivid Resourcing Ltd,76938,,
Chorley Borough Council,http://statistics.data.gov.uk/id/local-authority/30UE,Development Control,1091,Policy & Governance,Consultants` Fees,40077,Services,5027,"The Agreement No: 38523 Start Date: 28/06/2021 - End date: 31/12/2021, Consultant name: NAME REDACTED",22/12/2021,0161582,"1,110.00",Revenue,Vivid Resourcing Ltd,76938,,
Chorley Borough Council,http://statistics.data.gov.uk/id/local-authority/30UE,Development Control,1091,Policy & Governance,Consultants` Fees,40077,Services,5027,"The Agreement No: 38523 Start Date: 28/06/2021 - End date: 31/12/2021, Consultant name: NAME REDACTED",22/12/2021,0162078,"1,110.00",Revenue,Vivid Resourcing Ltd,76938,,
Chorley Borough Council,http://statistics.data.gov.uk/id/local-authority/30UE,Development Control,1091,Policy & Governance,Consultants` Fees,40077,Services,5027,"The Agreement No: 38523 Start Date: 28/06/2021 - End date: 31/12/2021, Consultant name: NAME REDACTED",22/12/2021,0162200,"1,005.00",Revenue,Vivid Resourcing Ltd,76938,,
Chorley Borough Council,http://statistics.data.gov.uk/id/local-authority/30UE,Development Control,1091,Policy & Governance,Consultants` Fees,40077,Services,5027,"The Agreement No: 38523 Start Date: 28/06/2021 - End date: 31/12/2021, Consultant name: NAME REDACTED",22/12/2021,0162202,"1,110.00",Revenue,Vivid Resourcing Ltd,76938,,
Chorley Borough Council,http://statistics.data.gov.uk/id/local-authority/30UE,Development Control,1091,Policy & Governance,Consultants` Fees,40077,Services,5027,"The Agreement No: 38523 Start Date: 28/06/2021 - End date: 31/12/2021, Consultant name: NAME REDACTED",22/12/2021,0162384,285.00,Revenue,Vivid Resourcing Ltd,76938,,
Chorley Borough Council,http://statistics.data.gov.uk/id/local-authority/30UE,Development Control,1091,Policy & Governance,Consultants` Fees,40077,Services,5027,"The Agreement No: 38523 Start Date: 28/06/2021 - End date: 31/12/2021, Consultant name: NAME REDACTED",22/12/2021,0162611,"1,110.00",Revenue,Vivid Resourcing Ltd,76938,,
Chorley Borough Council,http://statistics.data.gov.uk/id/local-authority/30UE,Central Support Services,1009,Communities,Agency Staff,13000,Direct Employee Expenses,5001,Env Health Contractors,01/12/2021,0162794,512.38,Revenue,Vivid Resourcing Ltd,76938,,
Chorley Borough Council,http://statistics.data.gov.uk/id/local-authority/30UE,Central Support Services,1009,Communities,Agency Staff,13000,Direct Employee Expenses,5001,Env Health Contractors,15/12/2021,0162974,465.80,Revenue,Vivid Resourcing Ltd,76938,,
Chorley Borough Council,http://statistics.data.gov.uk/id/local-authority/30UE,Central Support Services,1009,Communities,Agency Staff,13000,Direct Employee Expenses,5001,Env Health Contractors,15/12/2021,0163457,465.80,Revenue,Vivid Resourcing Ltd,76938,,
Chorley Borough Council,http://statistics.data.gov.uk/id/local-authority/30UE,Central Support Services,1009,Customer & Digital,Computer Equipment - Security,40106,Communication and Computing,5028,01 Oct 2021,08/12/2021,0162989,980.86,Revenue,Vodafone Ltd,60180,,
Chorley Borough Council,http://statistics.data.gov.uk/id/local-authority/30UE,Service Management & Support,1009,Customer & Digital,Supplies-Grounds Maintenance,40025,"Equipment, Furniture & Materia",5023,Supply spring bedding 2022,08/12/2021,0162511,"4,135.36",Revenue,Walkers Nurseries Chester Ltd,81322,,
Chorley Borough Council,http://statistics.data.gov.uk/id/local-authority/30UE,Control Accounts,Control,Customer & Digital,Manual Control Account,00001,Balance Sheet,Balance,,22/12/2021,0163672,258.00,Revenue,Walter Carefoot Construction (Ltd),80601,,
Chorley Borough Council,http://statistics.data.gov.uk/id/local-authority/30UE,Capital,Capital,Commercial & Property,Main Contractor,03007,Capital Expenditure,Capital,Updated bat survey to the former Buzz Bingo site. Pre-dawn survey to establish the current status of bat roosts,01/12/2021,0162181,"3,737.87",Capital,Wardell Armstrong LLP,77818,,
Chorley Borough Council,http://statistics.data.gov.uk/id/local-authority/30UE,Business Support,1095,Commercial & Property,Tools & Equipment - Purchase,40003,"Equipment, Furniture & Materia",5023,"Roof Walkway Matting 10M x 91cm x 14mm YELLOW, Qty 3, 741 per item, Free Delivery, Please contact NAME REDACTED",22/12/2021,0162765,"2,223.00",Revenue,Watco UK Limited,83987,,
Chorley Borough Council,http://statistics.data.gov.uk/id/local-authority/30UE,Community Development,1097,Commercial & Property,Water - Metered Supplies,20022,Water Services,5009,19/7 to 7/11/2021,01/12/2021,0163005,363.58,Revenue,Water-plus,17926,,
Chorley Borough Council,http://statistics.data.gov.uk/id/local-authority/30UE,Economic Development,1096,Commercial & Property,Water - Metered Supplies,20022,Water Services,5009,600 050 0703,08/12/2021,0163167,789.01,Revenue,Water-plus,17926,,
Chorley Borough Council,http://statistics.data.gov.uk/id/local-authority/30UE,Central Support Services,1009,Commercial & Property,Water - Metered Supplies,20022,Water Services,5009,06/05/21 - 04/08/21,22/12/2021,0163532,869.56,Revenue,WaterPlus,84183,,
Chorley Borough Council,http://statistics.data.gov.uk/id/local-authority/30UE,Central Support Services,1009,Commercial & Property,Water - Metered Supplies,20022,Water Services,5009,05/08/21 - 02/10/21,22/12/2021,0163533,659.82,Revenue,WaterPlus,84183,,
Chorley Borough Council,http://statistics.data.gov.uk/id/local-authority/30UE,Central Support Services,1009,Commercial & Property,Water - Metered Supplies,20022,Water Services,5009,05/11/2020 - 06/02/2021,22/12/2021,0163534,978.87,Revenue,WaterPlus,84183,,
Chorley Borough Council,http://statistics.data.gov.uk/id/local-authority/30UE,Central Support Services,1009,Commercial & Property,Water - Metered Supplies,20022,Water Services,5009,07/02/21 - 05/05/21,22/12/2021,0163535,"1,048.73",Revenue,WaterPlus,84183,,
Chorley Borough Council,http://statistics.data.gov.uk/id/local-authority/30UE,Central Support Services,1009,Commercial & Property,Water - Metered Supplies,20022,Water Services,5009,07/02/21 - 05/05/21,22/12/2021,0163536,852.69,Revenue,WaterPlus,84183,,
Chorley Borough Council,http://statistics.data.gov.uk/id/local-authority/30UE,Central Support Services,1009,Commercial & Property,Water - Metered Supplies,20022,Water Services,5009,20/05/21 - 08/09/21,22/12/2021,0163615,"1,457.47",Revenue,WaterPlus,84240,,
Chorley Borough Council,http://statistics.data.gov.uk/id/local-authority/30UE,Central Support Services,1009,Commercial & Property,Water - Metered Supplies,20022,Water Services,5009,20/05/21 - 08/08/21,22/12/2021,0163616,"1,055.03",Revenue,WaterPlus,84240,,
Chorley Borough Council,http://statistics.data.gov.uk/id/local-authority/30UE,Central Support Services,1009,Commercial & Property,Water - Metered Supplies,20022,Water Services,5009,09/09/21 - 20/11/21,22/12/2021,0163617,894.04,Revenue,WaterPlus,84240,,
Chorley Borough Council,http://statistics.data.gov.uk/id/local-authority/30UE,Central Support Services,1009,Commercial & Property,Water - Metered Supplies,20022,Water Services,5009,20/05/2020 - 08/09/2020,22/12/2021,0163618,"1,067.47",Revenue,WaterPlus,84240,,
Chorley Borough Council,http://statistics.data.gov.uk/id/local-authority/30UE,Central Support Services,1009,Commercial & Property,Water - Metered Supplies,20022,Water Services,5009,09/09/2020 - 17/11/2020,22/12/2021,0163620,850.71,Revenue,WaterPlus,84240,,
Chorley Borough Council,http://statistics.data.gov.uk/id/local-authority/30UE,Central Support Services,1009,Commercial & Property,Water - Metered Supplies,20022,Water Services,5009,18/11/2020 - 09/03/2021,22/12/2021,0163621,"1,554.35",Revenue,WaterPlus,84240,,
Chorley Borough Council,http://statistics.data.gov.uk/id/local-authority/30UE,Central Support Services,1009,Commercial & Property,Water - Metered Supplies,20022,Water Services,5009,10/03/21 - 19/05/21,22/12/2021,0163622,943.36,Revenue,WaterPlus,84240,,
Chorley Borough Council,http://statistics.data.gov.uk/id/local-authority/30UE,Culture & Heritage,1036,Commercial & Property,Water - Metered Supplies,20022,Water Services,5009,27/01/21 - 20/04/21,08/12/2021,0163297,839.10,Revenue,WaterPlus,84178,,
Chorley Borough Council,http://statistics.data.gov.uk/id/local-authority/30UE,Culture & Heritage,1036,Commercial & Property,Water - Metered Supplies,20022,Water Services,5009,21/04/21 - 27/07/21,08/12/2021,0163298,747.11,Revenue,WaterPlus,84178,,
Chorley Borough Council,http://statistics.data.gov.uk/id/local-authority/30UE,Culture & Heritage,1036,Commercial & Property,Water - Metered Supplies,20022,Water Services,5009,28/07/21 - 24/10/21,08/12/2021,0163299,551.73,Revenue,WaterPlus,84178,,
Chorley Borough Council,http://statistics.data.gov.uk/id/local-authority/30UE,Culture & Heritage,1036,Commercial & Property,Water - Metered Supplies,20022,Water Services,5009,22/07/20 - 27/10/20,08/12/2021,0163300,673.46,Revenue,WaterPlus,84178,,
Chorley Borough Council,http://statistics.data.gov.uk/id/local-authority/30UE,Economic Development,1096,Commercial & Property,Promotional Expenses,40159,Miscellaneous Expenses,5034,As per quotation 11682 - Chorley Market Red Albion Grip Ballpen (Full Colour Print) Qty 1000,01/12/2021,0162884,580.00,Revenue,WeBrand4You,68716,,
Chorley Borough Council,http://statistics.data.gov.uk/id/local-authority/30UE,Capital,Capital,Communities,Main Contractor,03007,Capital Expenditure,Capital,"Carr Brook Natural Flood Management Scheme, Meeting arboriculturist on site, follow-up meeting to understand concerns.",15/12/2021,0163475,256.50,Capital,Wetland Engineering,80769,,
Chorley Borough Council,http://statistics.data.gov.uk/id/local-authority/30UE,Central Support Services,1009,Policy & Governance,Postages,40082,Communication and Computing,5028,Postal collection for Town Hall and Uni,08/12/2021,0163012,298.17,Revenue,Whistl North Limited,67256,,
Chorley Borough Council,http://statistics.data.gov.uk/id/local-authority/30UE,Central Support Services,1009,Policy & Governance,Postages,40082,Communication and Computing,5028,zero rate,08/12/2021,0163012,2.00,Revenue,Whistl North Limited,67256,,
Chorley Borough Council,http://statistics.data.gov.uk/id/local-authority/30UE,Open Spaces,1038,Communities,Supplies-Grounds Maintenance,40025,"Equipment, Furniture & Materia",5023,"For Cripplegate Lane Pond. Spruce, Delivery to Brockholes Nature Reserve, PR5 0AG. FAO NAME REDACTED",15/12/2021,0163344,489.00,Revenue,White Hill Direct Ltd.,64098,,
Chorley Borough Council,http://statistics.data.gov.uk/id/local-authority/30UE,Culture & Heritage,1036,Policy & Governance,Maintenance of Building Services,20070,Fixtures and Fittings,5010,Structural consultancy services for inspection of Chancel floor opening up to the Standish Vault - St Laurence's Church Chorley,08/12/2021,0163030,740.00,Revenue,WML Consulting,84126,,
Chorley Borough Council,http://statistics.data.gov.uk/id/local-authority/30UE,Street Cleansing,1049,Customer & Digital,Provn Of Street Furniture,20057,Grounds Maintenance Costs,5013,"As per sales quotation- 9000000334, Delivery before 10th September as agreed with NAME REDACTED",01/12/2021,0159972,"9,999.88",Revenue,Wybone Ltd,18097,,
Chorley Borough Council,http://statistics.data.gov.uk/id/local-authority/30UE,Culture & Heritage,1036,Policy & Governance,Souvenirs,40033,"Equipment, Furniture & Materia",5023,"Yarto, Anne Boleyn x24; Charles Dickens x24; Jane Austen x24; Queen 12979 x24; Queen Victoria",01/12/2021,0162892,522.48,Revenue,Yarto Europe Limited,80961,,
